Workbook

Sheet Infos
B7: Présentation du générateur de codes d'éco-participation
B9: Créer les codes pour l'application de l'éco-participation sur les Jeux et jouets
B10: Version 1.5 - 03 mai 2023
B12: A qui s’adresse cet outil ?
B13: Cet outil s'adresse aux metteurs sur le marché de jeux et jouets de plein air.
B15: A quoi sert-il ?
B16: Ce fichier permet de générer les codes produits qui servent à déclarer les mises en marché. Ces codes produits permettent d'appliquer le tarif de l'éco-participation aux Jeux et jouets en fonction de leurs caractéristiques : type de jeux, matériaux, poids.
B17: Pour comprendre comment est constitué ce code produit à 11 chiffres, cliquez sur l’onglet « Comprendre la codification »
B19: Comment générer un code produit ?
B20: Pour générer un code produit cliquez sur l’onglet « Générateur code produit »
B21: Attention : Pour être certain de renseigner les bons codes lors de votre déclaration, utilisez l'onglet « Générateur code produit » et la fonction « copier-coller » en sélectionnant « collage spécial valeur absolue ».
B22: Quel est le code GTIN/EAN de la filière Jouets ?
B23: Un code GTIN / EAN a été attribué à la filière jouet. Ce code est le suivant : 3001000002831
B25: Déclarer l’éco-participation
B27: A quel moment faire votre déclaration ?
B28: La première déclaration à partir des codes produits sera à réaliser en avril 2023 pour les mises en marché du 1er trimestre 2023.
B29: Remarque importante : une déclaration simplifiée devra être réalisée en octobre 2022 sur la base du CA HT estimée pour décembre 2022. Toutes les informations sont à retrouver dans le guide adhérent.
B30: Pour les déclarations trimestrielles, celles-ci doivent être faites le mois suivant chaque trimestre calendaire (avril pour le T1, juillet pour le T2, octobre pour le T3 et janvier pour le T4).
B32: Comment faire votre déclaration (avec les codes produits) ?
B33: La déclaration des mises en marché avec les codes produits se fait par saisie ou chargement d'un fichier* format .csv sur l'Extranet d'Eco-mobilier : https://espace-services.eco-mobilier.fr/ *Vous pouvez télécharger le fichier type dans la rubrique Déclarations.
B35: Le fichier doit contenir les intitulés de colonnes suivants :
B42: > Pour savoir comment effectuer votre déclaration, consultez le mode opératoire complet : https://espace-services.eco-mobilier.fr/mode-operatoire-declarer

Sheet Comprendre la codification
A1: Nomenclature des codes produits à 11 chiffres
A2: =Infos!$B$10 -> Version 1.5 - 03 mai 2023
A3: Composition du code Eco-mobilier :
A11: Code catégorie | D11: Code type de produit | G11: Code matériau | J11: Code caractéristique | M11: 11ème chiffre
A13: 31 | B13: Jouets | D13: 201 | E13: Figurines d'action & accessoires | G13: 00 | H13: Non connu | J13: 083 | K13: inférieur strictement à 0,1 kg | M13: 0 | N13: Non spécifié
A14: 32 | B14: Jouets de plein air | D14: 202 | E14: Jeux de construction & accessoires | G14: 01 | H14: Bois, panneaux et dérivés de bois >50% | J14: 084 | K14: Compris entre 0,1 kg et 0,2 kg exclus
A15: 33 | B15: Jeux de société | D15: 203 | E15: Poupées, Poupons & accessoires | G15: 02 | H15: Métal >50% | J15: 085 | K15: Compris entre 0,2 kg et 0,3 kg exclus
A16: 34 | B16: Jouets cadeaux | D16: 204 | E16: Peluches & accessoires | G16: 03 | H16: Bambou/Rotin >50% | J16: 086 | K16: Compris entre 0,3 kg et 0,4 kg exclus
D17: 205 | E17: Jouets Premier âge et Pré-scolaires & accessoires (3 ans et moins) | G17: 04 | H17: Osier et autres tiges végétales >50% | J17: 087 | K17: Compris entre 0,4 kg et 0,5 kg exclus
D18: 206 | E18: Véhicules miniatures & accessoires | G18: 05 | H18: Plastiques >50% | J18: 021 | K18: Compris entre 0,5 kg et 1 kg exclus
D19: 207 | E19: Loisirs créatifs jouets & accessoires | G19: 06 | H19: Textiles, cuirs, fourrures… >50% | J19: 022 | K19: Compris entre 1 kg et 2 kg exclus
D20: 208 | E20: Jouets d'exploration et autres jouets & accessoires | G20: 07 | H20: Verre et miroir >50% | J20: 052 | K20: Compris entre 2 kg et 3 kg exclus
D21: 209 | E21: Jouets porteurs à pédales & accessoires | G21: 08 | H21: Inerte, minéraux >50% | J21: 053 | K21: Compris entre 3 kg et 5 kg exclus
D22: 210 | E22: Jouets porteurs sans pédales & accessoires | G22: 12 | H22: Autres | J22: 054 | K22: Compris entre 5 kg et 7 kg exclus
D23: 211 | E23: Jouets sportifs & accessoires | G23: 13 | H23: Rembourrage naturel (plume, laine…) | J23: 055 | K23: Compris entre 7 kg et 10 kg exclus
D24: 212 | E24: Jouets d'été & accessoires | G24: 14 | H24: Rembourrage Synthétique (mousse, polyester…) | J24: 056 | K24: Compris entre 10 kg et 15 kg exclus
D25: 213 | E25: Jouets d’activités à usage familial | G25: 15 | H25: Composites et compact >50% | J25: 057 | K25: Compris entre 15 kg et 20 kg exclus
D26: 214 | E26: Jeux de Société & accessoires (directive jouet) | G26: 16 | H26: Pierre artificielle >50% | J26: 058 | K26: Compris entre 20 kg et 25 kg exclus
D27: 215 | E27: Jeux de Société & accessoires (hors directive jouet) | G27: 17 | H27: Ciment, béton >50% | J27: 059 | K27: Compris entre 25 kg et 30 kg exclus
D28: 216 | E28: Puzzles & accessoires (directive jouet) | G28: 18 | H28: Céramique >50% | J28: 027 | K28: Compris entre 30 kg et 40 kg exclus
D29: 217 | E29: Puzzles & accessoires (hors directive jouet) | G29: 19 | H29: Papier, carton >50% | J29: 060 | K29: Compris entre 40 kg et 50 kg exclus
D30: 218 | E30: Maquettes & accessoires (directive jouet) | G30: 20 | H30: Bois massif certifié à plus de 75% | J30: 088 | K30: Compris entre 50 kg et 100 kg exclus
D31: 219 | E31: Maquettes & accessoires (hors directive jouet) | G31: 21 | H31: Bois massif non certifié à plus de 75% | J31: 030 | K31: Compris entre 100 kg et 150 kg exclus
D32: 220 | E32: Jouets cadeaux & accessoires | G32: 22 | H32: Métal à plus de 75% | J32: 031 | K32: Compris entre 150 kg et 200 kg exclus
G33: 23 | H33: Mélange bois massif certifié et métal à plus de 75% | J33: 032 | K33: Compris entre 200 kg et 250 kg exclus
G34: 24 | H34: Panneaux de particules et/ou bois et/ou métal à plus de 75% | J34: 082 | K34: supérieur à 250 kg
G35: 25 | H35: Panneaux de particules à plus de 75% | J35: 089 | K35: Lot de 1000
G36: 26 | H36: Contreplaqué à plus de 75%
G37: 27 | H37: OSB à plus de 75%
G38: 28 | H38: Métal à plus de 95%
G39: 29 | H39: Métal ferreux >50%
G40: 30 | H40: Métal ferreux à plus de 95%
G41: 31 | H41: Métal non ferreux >50%
G42: 32 | H42: Métal non ferreux à plus de 95%
G43: 33 | H43: Polyterephtalate d'Ethylène (PET) >50%
G44: 34 | H44: Polyéthylène (PE) >50%
G45: 35 | H45: Polypropylène (PP) >50%
G46: 36 | H46: Mélange PE et PP >50%
G47: 37 | H47: ABS >50%
G48: 38 | H48: Polystyrène >50%
G49: 39 | H49: PVC >50%
G50: 40 | H50: Caoutchouc >50%
G51: 41 | H51: Plastiques​ (sans spécificité) >95%
G52: 42 | H52: Polyterephtalate d'Ethylène (PET) >95%
G53: 43 | H53: Polyéthylène (PE) >95%
G54: 44 | H54: Polypropylène (PP) >95%
G55: 45 | H55: Mélange PE et PP >95%
G56: 46 | H56: ABS >95%
G57: 47 | H57: Polystyrène >95%
G58: 48 | H58: PVC >95%
G59: 49 | H59: Caoutchouc >95%
G60: 50 | H60: Papier >95%
G61: 51 | H61: Carton >95%
G62: 52 | H62: Bois massif certifié à plus de 95%
G63: 53 | H63: Bois massif non certifié à plus de 95%
G64: 54 | H64: Bambou/Rotin >95%
G65: 55 | H65: Osier et autres tiges végétales >95%
G66: 56 | H66: Textiles, cuirs, fourrures… >95%
G67: 57 | H67: Verre et miroir >95%
G68: 58 | H68: Inerte, minéraux >95%
G69: 99 | H69: Assemblage de 3 matériaux maximum | I69: (Attention code utilisable uniquement pour les produits supérieurs à 160cm (L+l))

Sheet Generateur code produit
A1: Générateur de code produit - Jeux et jouets | H1: MASQUER | I1: MASQUER | K1: =Infos!$B$10 -> Version 1.5 - 03 mai 2023
A2: Sélectionner les éléments dans les cases vertes
A4: 1 - Choisissez une catégorie : | G4: Code: | H4: =LEFT(A4,1)+0 -> 1
G6: =IF(D6="","",VLOOKUP(D6,Listes_masqué!$H$3:$K$14,2,FALSE)) ->  | I6: =VLOOKUP(D6,Listes_masqué!$H$3:$J$6,3,FALSE) -> 
A8: =H4+1&" - Choisissez un type de produit : " -> 2 - Choisissez un type de produit : | H8: =LEFT(A8,1)+0 -> 2
E10: _ | G10: =IF(D10="","",VLOOKUP(D10,Listes_masqué!$N$3:$O$22,2,FALSE)) -> 
A12: =H8+1&" - Choisissez un type de matériau puis le matériau majoritaire en poids : " -> 3 - Choisissez un type de matériau puis le matériau majoritaire en poids : | H12: =LEFT(A12,1)+0 -> 3
I14: =IF(G10="213",VLOOKUP(D14,Listes_masqué!$Q$9:$R$13,2,FALSE),VLOOKUP(D14,Listes_masqué!$Q$3:$R$7,2,FALSE)) -> 
A16: =IFERROR(IF(#REF!="Abs","Précisez le matériau majoritaire :","Précisez le rembourrage :"),"") ->  | G16: =IF(D16="","",VLOOKUP(D16,Listes_masqué!$F$3:$G$62,2,FALSE)) -> 
D17: =IF(G16="99","Attention, ce code n'est utilisable que pour les produits de plus de 160cm","") -> 
A18: =H12+1&IF(G6="34"," - Choisissez l'allottissement du produit"," - Choisissez la caractéristique (poids net du produit) en fonction du type de produit : ") -> 4 - Choisissez la caractéristique (poids net du produit) en fonction du type de produit : | H18: =LEFT(A18,1)+0 -> 4
G20: =IF(D20="","",VLOOKUP(D20,Listes_masqué!$B$3:$C$25,2,FALSE)) -> 
A22: D'où le code produit:
D24: =IF(OR(D20="",D16="",D10="",D6=""),"",CONCATENATE(G6,G10,G16,G20,0)) ->  | G24: =IF(G20="089","Attention! Il faut déclarer un nombre de lot de 1000 et non par unité.","") -> 
D25: =IF(D24="","",D6&" - "&D10&" en "&D16&D20) -> 
A27: Le montant de l'éco-participation (€/article mis en marché): | G27: et son code éco-participation associé:
A29: Vous pouvez le paramétrer le taux de TVA | D29: =IFERROR(VLOOKUP('Generateur code produit'!$D$24,Tableau13[[#All],[Code produit]:[Tarif HT]],3,FALSE),"") ->  | G29: =IFERROR(VLOOKUP('Generateur code produit'!$D$24,Tableau13[[#All],[Code produit]:[Code Eco part]],4,FALSE),"") -> 
B30: 0.2 | D30: =IF(D29="","",D29*(1+$B$30)) -> 
A32: Pour information, le code douanier tel qu'il sera transmis à l'ADEME:
A37: NB :
A38: penser à actionner le bouton "RESET" avant de faire une nouvelle génération. le montant TTC de l’éco-participation est donné à titre indicatif ; le barème applicable est le barème HT.

Sheet Codes
A1: Code Catégorie | B1: Libellé Cat | C1: Code Type de produit | D1: Libellé Type | E1: Code Matériau | F1: Libellé Mat | G1: Code Caractéristique | H1: Libellé Carac | I1: Index tarif | J1: Code produit | K1: Libellé | L1: Tarif HT | M1: Code Eco part | N1: Tarif TTC
A2: =MID(J2,1,2) -> 31 | B2: =VLOOKUP(A2,'Comprendre la codification'!$A$13:$B$16,2,FALSE) -> Jouets | C2: =MID(J2,3,3) -> 201 | D2: =VLOOKUP(C2,'Comprendre la codification'!$D$13:$E$50,2,FALSE) -> Figurines d'action & accessoires | E2: =MID(J2,6,2) -> 28 | F2: =VLOOKUP(E2,'Comprendre la codification'!$G$13:$H$69,2,FALSE) -> Métal à plus de 95% | G2: =MID(J2,8,3) -> 021 | H2: =VLOOKUP(G2,'Comprendre la codification'!$J$13:$K$35,2,FALSE) -> Compris entre 0,5 kg et 1 kg exclus | J2: 31201280210 | K2: =B2&" - "&D2&" en "&F2&H2 -> Jouets - Figurines d'action & accessoires en Métal à plus de 95%Compris entre 0,5 kg et 1 kg exclus | L2: 0.08 | M2: =VLOOKUP(Tableau13[[#This Row],[Tarif HT]],'Codes éco-part'!C:E,3,FALSE) -> 003 | N2: =Tableau13[[#This Row],[Tarif HT]]*1.2 -> 0.096
A3: 31 | B3: =VLOOKUP(A3,'Comprendre la codification'!$A$13:$B$16,2,FALSE) -> Jouets | C3: 201 | D3: =VLOOKUP(C3,'Comprendre la codification'!$D$13:$E$50,2,FALSE) -> Figurines d'action & accessoires | E3: 28 | F3: =VLOOKUP(E3,'Comprendre la codification'!$G$13:$H$69,2,FALSE) -> Métal à plus de 95% | G3: 022 | H3: =VLOOKUP(G3,'Comprendre la codification'!$J$13:$K$35,2,FALSE) -> Compris entre 1 kg et 2 kg exclus | J3: 31201280220 | K3: Jouets - Figurines d'action & accessoires en Métal à plus de 95%Compris entre 1 kg et 2 kg exclus | L3: 0.15 | M3: =VLOOKUP(Tableau13[[#This Row],[Tarif HT]],'Codes éco-part'!C:E,3,FALSE) -> 050 | N3: =Tableau13[[#This Row],[Tarif HT]]*1.2 -> 0.18
A4: 31 | B4: =VLOOKUP(A4,'Comprendre la codification'!$A$13:$B$16,2,FALSE) -> Jouets | C4: 201 | D4: =VLOOKUP(C4,'Comprendre la codification'!$D$13:$E$50,2,FALSE) -> Figurines d'action & accessoires | E4: 28 | F4: =VLOOKUP(E4,'Comprendre la codification'!$G$13:$H$69,2,FALSE) -> Métal à plus de 95% | G4: 027 | H4: =VLOOKUP(G4,'Comprendre la codification'!$J$13:$K$35,2,FALSE) -> Compris entre 30 kg et 40 kg exclus | J4: 31201280270 | K4: Jouets - Figurines d'action & accessoires en Métal à plus de 95%Compris entre 30 kg et 40 kg exclus | L4: 2.2 | M4: =VLOOKUP(Tableau13[[#This Row],[Tarif HT]],'Codes éco-part'!C:E,3,FALSE) -> 390 | N4: =Tableau13[[#This Row],[Tarif HT]]*1.2 -> 2.64
A5: 31 | B5: =VLOOKUP(A5,'Comprendre la codification'!$A$13:$B$16,2,FALSE) -> Jouets | C5: 201 | D5: =VLOOKUP(C5,'Comprendre la codification'!$D$13:$E$50,2,FALSE) -> Figurines d'action & accessoires | E5: 28 | F5: =VLOOKUP(E5,'Comprendre la codification'!$G$13:$H$69,2,FALSE) -> Métal à plus de 95% | G5: 030 | H5: =VLOOKUP(G5,'Comprendre la codification'!$J$13:$K$35,2,FALSE) -> Compris entre 100 kg et 150 kg exclus | J5: 31201280300 | K5: Jouets - Figurines d'action & accessoires en Métal à plus de 95%Compris entre 100 kg et 150 kg exclus | L5: 4.84 | M5: =VLOOKUP(Tableau13[[#This Row],[Tarif HT]],'Codes éco-part'!C:E,3,FALSE) -> 391 | N5: =Tableau13[[#This Row],[Tarif HT]]*1.2 -> 5.808
A6: 31 | B6: =VLOOKUP(A6,'Comprendre la codification'!$A$13:$B$16,2,FALSE) -> Jouets | C6: 201 | D6: =VLOOKUP(C6,'Comprendre la codification'!$D$13:$E$50,2,FALSE) -> Figurines d'action & accessoires | E6: 28 | F6: =VLOOKUP(E6,'Comprendre la codification'!$G$13:$H$69,2,FALSE) -> Métal à plus de 95% | G6: 031 | H6: =VLOOKUP(G6,'Comprendre la codification'!$J$13:$K$35,2,FALSE) -> Compris entre 150 kg et 200 kg exclus | J6: 31201280310 | K6: Jouets - Figurines d'action & accessoires en Métal à plus de 95%Compris entre 150 kg et 200 kg exclus | L6: 6.78 | M6: =VLOOKUP(Tableau13[[#This Row],[Tarif HT]],'Codes éco-part'!C:E,3,FALSE) -> 392 | N6: =Tableau13[[#This Row],[Tarif HT]]*1.2 -> 8.136
A7: 31 | B7: =VLOOKUP(A7,'Comprendre la codification'!$A$13:$B$16,2,FALSE) -> Jouets | C7: 201 | D7: =VLOOKUP(C7,'Comprendre la codification'!$D$13:$E$50,2,FALSE) -> Figurines d'action & accessoires | E7: 28 | F7: =VLOOKUP(E7,'Comprendre la codification'!$G$13:$H$69,2,FALSE) -> Métal à plus de 95% | G7: 032 | H7: =VLOOKUP(G7,'Comprendre la codification'!$J$13:$K$35,2,FALSE) -> Compris entre 200 kg et 250 kg exclus | J7: 31201280320 | K7: Jouets - Figurines d'action & accessoires en Métal à plus de 95%Compris entre 200 kg et 250 kg exclus | L7: 8.71 | M7: =VLOOKUP(Tableau13[[#This Row],[Tarif HT]],'Codes éco-part'!C:E,3,FALSE) -> 393 | N7: =Tableau13[[#This Row],[Tarif HT]]*1.2 -> 10.452
A8: 31 | B8: =VLOOKUP(A8,'Comprendre la codification'!$A$13:$B$16,2,FALSE) -> Jouets | C8: 201 | D8: =VLOOKUP(C8,'Comprendre la codification'!$D$13:$E$50,2,FALSE) -> Figurines d'action & accessoires | E8: 28 | F8: =VLOOKUP(E8,'Comprendre la codification'!$G$13:$H$69,2,FALSE) -> Métal à plus de 95% | G8: 052 | H8: =VLOOKUP(G8,'Comprendre la codification'!$J$13:$K$35,2,FALSE) -> Compris entre 2 kg et 3 kg exclus | J8: 31201280520 | K8: Jouets - Figurines d'action & accessoires en Métal à plus de 95%Compris entre 2 kg et 3 kg exclus | L8: 0.25 | M8: =VLOOKUP(Tableau13[[#This Row],[Tarif HT]],'Codes éco-part'!C:E,3,FALSE) -> 095 | N8: =Tableau13[[#This Row],[Tarif HT]]*1.2 -> 0.3
A9: 31 | B9: =VLOOKUP(A9,'Comprendre la codification'!$A$13:$B$16,2,FALSE) -> Jouets | C9: 201 | D9: =VLOOKUP(C9,'Comprendre la codification'!$D$13:$E$50,2,FALSE) -> Figurines d'action & accessoires | E9: 28 | F9: =VLOOKUP(E9,'Comprendre la codification'!$G$13:$H$69,2,FALSE) -> Métal à plus de 95% | G9: 053 | H9: =VLOOKUP(G9,'Comprendre la codification'!$J$13:$K$35,2,FALSE) -> Compris entre 3 kg et 5 kg exclus | J9: 31201280530 | K9: Jouets - Figurines d'action & accessoires en Métal à plus de 95%Compris entre 3 kg et 5 kg exclus | L9: 0.39 | M9: =VLOOKUP(Tableau13[[#This Row],[Tarif HT]],'Codes éco-part'!C:E,3,FALSE) -> 253 | N9: =Tableau13[[#This Row],[Tarif HT]]*1.2 -> 0.468
A10: 31 | B10: =VLOOKUP(A10,'Comprendre la codification'!$A$13:$B$16,2,FALSE) -> Jouets | C10: 201 | D10: =VLOOKUP(C10,'Comprendre la codification'!$D$13:$E$50,2,FALSE) -> Figurines d'action & accessoires | E10: 28 | F10: =VLOOKUP(E10,'Comprendre la codification'!$G$13:$H$69,2,FALSE) -> Métal à plus de 95% | G10: 054 | H10: =VLOOKUP(G10,'Comprendre la codification'!$J$13:$K$35,2,FALSE) -> Compris entre 5 kg et 7 kg exclus | J10: 31201280540 | K10: Jouets - Figurines d'action & accessoires en Métal à plus de 95%Compris entre 5 kg et 7 kg exclus | L10: 0.59 | M10: =VLOOKUP(Tableau13[[#This Row],[Tarif HT]],'Codes éco-part'!C:E,3,FALSE) -> 254 | N10: =Tableau13[[#This Row],[Tarif HT]]*1.2 -> 0.708
A11: 31 | B11: =VLOOKUP(A11,'Comprendre la codification'!$A$13:$B$16,2,FALSE) -> Jouets | C11: 201 | D11: =VLOOKUP(C11,'Comprendre la codification'!$D$13:$E$50,2,FALSE) -> Figurines d'action & accessoires | E11: 28 | F11: =VLOOKUP(E11,'Comprendre la codification'!$G$13:$H$69,2,FALSE) -> Métal à plus de 95% | G11: 055 | H11: =VLOOKUP(G11,'Comprendre la codification'!$J$13:$K$35,2,FALSE) -> Compris entre 7 kg et 10 kg exclus | J11: 31201280550 | K11: Jouets - Figurines d'action & accessoires en Métal à plus de 95%Compris entre 7 kg et 10 kg exclus | L11: 0.73 | M11: =VLOOKUP(Tableau13[[#This Row],[Tarif HT]],'Codes éco-part'!C:E,3,FALSE) -> 255 | N11: =Tableau13[[#This Row],[Tarif HT]]*1.2 -> 0.876
A12: 31 | B12: =VLOOKUP(A12,'Comprendre la codification'!$A$13:$B$16,2,FALSE) -> Jouets | C12: 201 | D12: =VLOOKUP(C12,'Comprendre la codification'!$D$13:$E$50,2,FALSE) -> Figurines d'action & accessoires | E12: 28 | F12: =VLOOKUP(E12,'Comprendre la codification'!$G$13:$H$69,2,FALSE) -> Métal à plus de 95% | G12: 056 | H12: =VLOOKUP(G12,'Comprendre la codification'!$J$13:$K$35,2,FALSE) -> Compris entre 10 kg et 15 kg exclus | J12: 31201280560 | K12: Jouets - Figurines d'action & accessoires en Métal à plus de 95%Compris entre 10 kg et 15 kg exclus | L12: 1.21 | M12: =VLOOKUP(Tableau13[[#This Row],[Tarif HT]],'Codes éco-part'!C:E,3,FALSE) -> 114 | N12: =Tableau13[[#This Row],[Tarif HT]]*1.2 -> 1.452
A13: 31 | B13: =VLOOKUP(A13,'Comprendre la codification'!$A$13:$B$16,2,FALSE) -> Jouets | C13: 201 | D13: =VLOOKUP(C13,'Comprendre la codification'!$D$13:$E$50,2,FALSE) -> Figurines d'action & accessoires | E13: 28 | F13: =VLOOKUP(E13,'Comprendre la codification'!$G$13:$H$69,2,FALSE) -> Métal à plus de 95% | G13: 057 | H13: =VLOOKUP(G13,'Comprendre la codification'!$J$13:$K$35,2,FALSE) -> Compris entre 15 kg et 20 kg exclus | J13: 31201280570 | K13: Jouets - Figurines d'action & accessoires en Métal à plus de 95%Compris entre 15 kg et 20 kg exclus | L13: 1.7 | M13: =VLOOKUP(Tableau13[[#This Row],[Tarif HT]],'Codes éco-part'!C:E,3,FALSE) -> 256 | N13: =Tableau13[[#This Row],[Tarif HT]]*1.2 -> 2.04
A14: 31 | B14: =VLOOKUP(A14,'Comprendre la codification'!$A$13:$B$16,2,FALSE) -> Jouets | C14: 201 | D14: =VLOOKUP(C14,'Comprendre la codification'!$D$13:$E$50,2,FALSE) -> Figurines d'action & accessoires | E14: 28 | F14: =VLOOKUP(E14,'Comprendre la codification'!$G$13:$H$69,2,FALSE) -> Métal à plus de 95% | G14: 058 | H14: =VLOOKUP(G14,'Comprendre la codification'!$J$13:$K$35,2,FALSE) -> Compris entre 20 kg et 25 kg exclus | J14: 31201280580 | K14: Jouets - Figurines d'action & accessoires en Métal à plus de 95%Compris entre 20 kg et 25 kg exclus | L14: 1.74 | M14: =VLOOKUP(Tableau13[[#This Row],[Tarif HT]],'Codes éco-part'!C:E,3,FALSE) -> 394 | N14: =Tableau13[[#This Row],[Tarif HT]]*1.2 -> 2.088
A15: 31 | B15: =VLOOKUP(A15,'Comprendre la codification'!$A$13:$B$16,2,FALSE) -> Jouets | C15: 201 | D15: =VLOOKUP(C15,'Comprendre la codification'!$D$13:$E$50,2,FALSE) -> Figurines d'action & accessoires | E15: 28 | F15: =VLOOKUP(E15,'Comprendre la codification'!$G$13:$H$69,2,FALSE) -> Métal à plus de 95% | G15: 059 | H15: =VLOOKUP(G15,'Comprendre la codification'!$J$13:$K$35,2,FALSE) -> Compris entre 25 kg et 30 kg exclus | J15: 31201280590 | K15: Jouets - Figurines d'action & accessoires en Métal à plus de 95%Compris entre 25 kg et 30 kg exclus | L15: 1.92 | M15: =VLOOKUP(Tableau13[[#This Row],[Tarif HT]],'Codes éco-part'!C:E,3,FALSE) -> 060 | N15: =Tableau13[[#This Row],[Tarif HT]]*1.2 -> 2.304
A16: 31 | B16: =VLOOKUP(A16,'Comprendre la codification'!$A$13:$B$16,2,FALSE) -> Jouets | C16: 201 | D16: =VLOOKUP(C16,'Comprendre la codification'!$D$13:$E$50,2,FALSE) -> Figurines d'action & accessoires | E16: 28 | F16: =VLOOKUP(E16,'Comprendre la codification'!$G$13:$H$69,2,FALSE) -> Métal à plus de 95% | G16: 060 | H16: =VLOOKUP(G16,'Comprendre la codification'!$J$13:$K$35,2,FALSE) -> Compris entre 40 kg et 50 kg exclus | J16: 31201280600 | K16: Jouets - Figurines d'action & accessoires en Métal à plus de 95%Compris entre 40 kg et 50 kg exclus | L16: 2.54 | M16: =VLOOKUP(Tableau13[[#This Row],[Tarif HT]],'Codes éco-part'!C:E,3,FALSE) -> 338 | N16: =Tableau13[[#This Row],[Tarif HT]]*1.2 -> 3.048
A17: 31 | B17: =VLOOKUP(A17,'Comprendre la codification'!$A$13:$B$16,2,FALSE) -> Jouets | C17: 201 | D17: =VLOOKUP(C17,'Comprendre la codification'!$D$13:$E$50,2,FALSE) -> Figurines d'action & accessoires | E17: 28 | F17: =VLOOKUP(E17,'Comprendre la codification'!$G$13:$H$69,2,FALSE) -> Métal à plus de 95% | G17: 082 | H17: =VLOOKUP(G17,'Comprendre la codification'!$J$13:$K$35,2,FALSE) -> supérieur à 250 kg | J17: 31201280820 | K17: Jouets - Figurines d'action & accessoires en Métal à plus de 95%supérieur à 250 kg | L17: 9.68 | M17: =VLOOKUP(Tableau13[[#This Row],[Tarif HT]],'Codes éco-part'!C:E,3,FALSE) -> 395 | N17: =Tableau13[[#This Row],[Tarif HT]]*1.2 -> 11.616
A18: 31 | B18: =VLOOKUP(A18,'Comprendre la codification'!$A$13:$B$16,2,FALSE) -> Jouets | C18: 201 | D18: =VLOOKUP(C18,'Comprendre la codification'!$D$13:$E$50,2,FALSE) -> Figurines d'action & accessoires | E18: 28 | F18: =VLOOKUP(E18,'Comprendre la codification'!$G$13:$H$69,2,FALSE) -> Métal à plus de 95% | G18: 083 | H18: =VLOOKUP(G18,'Comprendre la codification'!$J$13:$K$35,2,FALSE) -> inférieur strictement à 0,1 kg | J18: 31201280830 | K18: Jouets - Figurines d'action & accessoires en Métal à plus de 95%inférieur strictement à 0,1 kg | L18: 0.01 | M18: =VLOOKUP(Tableau13[[#This Row],[Tarif HT]],'Codes éco-part'!C:E,3,FALSE) -> 260 | N18: =Tableau13[[#This Row],[Tarif HT]]*1.2 -> 0.012
A19: 31 | B19: =VLOOKUP(A19,'Comprendre la codification'!$A$13:$B$16,2,FALSE) -> Jouets | C19: 201 | D19: =VLOOKUP(C19,'Comprendre la codification'!$D$13:$E$50,2,FALSE) -> Figurines d'action & accessoires | E19: 28 | F19: =VLOOKUP(E19,'Comprendre la codification'!$G$13:$H$69,2,FALSE) -> Métal à plus de 95% | G19: 084 | H19: =VLOOKUP(G19,'Comprendre la codification'!$J$13:$K$35,2,FALSE) -> Compris entre 0,1 kg et 0,2 kg exclus | J19: 31201280840 | K19: Jouets - Figurines d'action & accessoires en Métal à plus de 95%Compris entre 0,1 kg et 0,2 kg exclus | L19: 0.02 | M19: =VLOOKUP(Tableau13[[#This Row],[Tarif HT]],'Codes éco-part'!C:E,3,FALSE) -> 047 | N19: =Tableau13[[#This Row],[Tarif HT]]*1.2 -> 0.024
A20: 31 | B20: =VLOOKUP(A20,'Comprendre la codification'!$A$13:$B$16,2,FALSE) -> Jouets | C20: 201 | D20: =VLOOKUP(C20,'Comprendre la codification'!$D$13:$E$50,2,FALSE) -> Figurines d'action & accessoires | E20: 28 | F20: =VLOOKUP(E20,'Comprendre la codification'!$G$13:$H$69,2,FALSE) -> Métal à plus de 95% | G20: 085 | H20: =VLOOKUP(G20,'Comprendre la codification'!$J$13:$K$35,2,FALSE) -> Compris entre 0,2 kg et 0,3 kg exclus | J20: 31201280850 | K20: Jouets - Figurines d'action & accessoires en Métal à plus de 95%Compris entre 0,2 kg et 0,3 kg exclus | L20: 0.03 | M20: =VLOOKUP(Tableau13[[#This Row],[Tarif HT]],'Codes éco-part'!C:E,3,FALSE) -> 092 | N20: =Tableau13[[#This Row],[Tarif HT]]*1.2 -> 0.036
A21: 31 | B21: =VLOOKUP(A21,'Comprendre la codification'!$A$13:$B$16,2,FALSE) -> Jouets | C21: 201 | D21: =VLOOKUP(C21,'Comprendre la codification'!$D$13:$E$50,2,FALSE) -> Figurines d'action & accessoires | E21: 28 | F21: =VLOOKUP(E21,'Comprendre la codification'!$G$13:$H$69,2,FALSE) -> Métal à plus de 95% | G21: 086 | H21: =VLOOKUP(G21,'Comprendre la codification'!$J$13:$K$35,2,FALSE) -> Compris entre 0,3 kg et 0,4 kg exclus | J21: 31201280860 | K21: Jouets - Figurines d'action & accessoires en Métal à plus de 95%Compris entre 0,3 kg et 0,4 kg exclus | L21: 0.04 | M21: =VLOOKUP(Tableau13[[#This Row],[Tarif HT]],'Codes éco-part'!C:E,3,FALSE) -> 002 | N21: =Tableau13[[#This Row],[Tarif HT]]*1.2 -> 0.048
A22: 31 | B22: =VLOOKUP(A22,'Comprendre la codification'!$A$13:$B$16,2,FALSE) -> Jouets | C22: 201 | D22: =VLOOKUP(C22,'Comprendre la codification'!$D$13:$E$50,2,FALSE) -> Figurines d'action & accessoires | E22: 28 | F22: =VLOOKUP(E22,'Comprendre la codification'!$G$13:$H$69,2,FALSE) -> Métal à plus de 95% | G22: 087 | H22: =VLOOKUP(G22,'Comprendre la codification'!$J$13:$K$35,2,FALSE) -> Compris entre 0,4 kg et 0,5 kg exclus | J22: 31201280870 | K22: Jouets - Figurines d'action & accessoires en Métal à plus de 95%Compris entre 0,4 kg et 0,5 kg exclus | L22: 0.05 | M22: =VLOOKUP(Tableau13[[#This Row],[Tarif HT]],'Codes éco-part'!C:E,3,FALSE) -> 048 | N22: =Tableau13[[#This Row],[Tarif HT]]*1.2 -> 0.06
A23: 31 | B23: =VLOOKUP(A23,'Comprendre la codification'!$A$13:$B$16,2,FALSE) -> Jouets | C23: 201 | D23: =VLOOKUP(C23,'Comprendre la codification'!$D$13:$E$50,2,FALSE) -> Figurines d'action & accessoires | E23: 28 | F23: =VLOOKUP(E23,'Comprendre la codification'!$G$13:$H$69,2,FALSE) -> Métal à plus de 95% | G23: 088 | H23: =VLOOKUP(G23,'Comprendre la codification'!$J$13:$K$35,2,FALSE) -> Compris entre 50 kg et 100 kg exclus | J23: 31201280880 | K23: Jouets - Figurines d'action & accessoires en Métal à plus de 95%Compris entre 50 kg et 100 kg exclus | L23: 3.81 | M23: =VLOOKUP(Tableau13[[#This Row],[Tarif HT]],'Codes éco-part'!C:E,3,FALSE) -> 396 | N23: =Tableau13[[#This Row],[Tarif HT]]*1.2 -> 4.572
A24: 31 | B24: =VLOOKUP(A24,'Comprendre la codification'!$A$13:$B$16,2,FALSE) -> Jouets | C24: 202 | D24: =VLOOKUP(C24,'Comprendre la codification'!$D$13:$E$50,2,FALSE) -> Jeux de construction & accessoires | E24: 28 | F24: =VLOOKUP(E24,'Comprendre la codification'!$G$13:$H$69,2,FALSE) -> Métal à plus de 95% | G24: 021 | H24: =VLOOKUP(G24,'Comprendre la codification'!$J$13:$K$35,2,FALSE) -> Compris entre 0,5 kg et 1 kg exclus | J24: 31202280210 | K24: Jouets - Jeux de construction & accessoires en Métal à plus de 95%Compris entre 0,5 kg et 1 kg exclus | L24: 0.08 | M24: =VLOOKUP(Tableau13[[#This Row],[Tarif HT]],'Codes éco-part'!C:E,3,FALSE) -> 003 | N24: =Tableau13[[#This Row],[Tarif HT]]*1.2 -> 0.096
A25: 31 | B25: =VLOOKUP(A25,'Comprendre la codification'!$A$13:$B$16,2,FALSE) -> Jouets | C25: 202 | D25: =VLOOKUP(C25,'Comprendre la codification'!$D$13:$E$50,2,FALSE) -> Jeux de construction & accessoires | E25: 28 | F25: =VLOOKUP(E25,'Comprendre la codification'!$G$13:$H$69,2,FALSE) -> Métal à plus de 95% | G25: 022 | H25: =VLOOKUP(G25,'Comprendre la codification'!$J$13:$K$35,2,FALSE) -> Compris entre 1 kg et 2 kg exclus | J25: 31202280220 | K25: Jouets - Jeux de construction & accessoires en Métal à plus de 95%Compris entre 1 kg et 2 kg exclus | L25: 0.15 | M25: =VLOOKUP(Tableau13[[#This Row],[Tarif HT]],'Codes éco-part'!C:E,3,FALSE) -> 050 | N25: =Tableau13[[#This Row],[Tarif HT]]*1.2 -> 0.18
A26: 31 | B26: =VLOOKUP(A26,'Comprendre la codification'!$A$13:$B$16,2,FALSE) -> Jouets | C26: 202 | D26: =VLOOKUP(C26,'Comprendre la codification'!$D$13:$E$50,2,FALSE) -> Jeux de construction & accessoires | E26: 28 | F26: =VLOOKUP(E26,'Comprendre la codification'!$G$13:$H$69,2,FALSE) -> Métal à plus de 95% | G26: 027 | H26: =VLOOKUP(G26,'Comprendre la codification'!$J$13:$K$35,2,FALSE) -> Compris entre 30 kg et 40 kg exclus | J26: 31202280270 | K26: Jouets - Jeux de construction & accessoires en Métal à plus de 95%Compris entre 30 kg et 40 kg exclus | L26: 2.2 | M26: =VLOOKUP(Tableau13[[#This Row],[Tarif HT]],'Codes éco-part'!C:E,3,FALSE) -> 390 | N26: =Tableau13[[#This Row],[Tarif HT]]*1.2 -> 2.64
A27: 31 | B27: =VLOOKUP(A27,'Comprendre la codification'!$A$13:$B$16,2,FALSE) -> Jouets | C27: 202 | D27: =VLOOKUP(C27,'Comprendre la codification'!$D$13:$E$50,2,FALSE) -> Jeux de construction & accessoires | E27: 28 | F27: =VLOOKUP(E27,'Comprendre la codification'!$G$13:$H$69,2,FALSE) -> Métal à plus de 95% | G27: 030 | H27: =VLOOKUP(G27,'Comprendre la codification'!$J$13:$K$35,2,FALSE) -> Compris entre 100 kg et 150 kg exclus | J27: 31202280300 | K27: Jouets - Jeux de construction & accessoires en Métal à plus de 95%Compris entre 100 kg et 150 kg exclus | L27: 4.84 | M27: =VLOOKUP(Tableau13[[#This Row],[Tarif HT]],'Codes éco-part'!C:E,3,FALSE) -> 391 | N27: =Tableau13[[#This Row],[Tarif HT]]*1.2 -> 5.808
A28: 31 | B28: =VLOOKUP(A28,'Comprendre la codification'!$A$13:$B$16,2,FALSE) -> Jouets | C28: 202 | D28: =VLOOKUP(C28,'Comprendre la codification'!$D$13:$E$50,2,FALSE) -> Jeux de construction & accessoires | E28: 28 | F28: =VLOOKUP(E28,'Comprendre la codification'!$G$13:$H$69,2,FALSE) -> Métal à plus de 95% | G28: 031 | H28: =VLOOKUP(G28,'Comprendre la codification'!$J$13:$K$35,2,FALSE) -> Compris entre 150 kg et 200 kg exclus | J28: 31202280310 | K28: Jouets - Jeux de construction & accessoires en Métal à plus de 95%Compris entre 150 kg et 200 kg exclus | L28: 6.78 | M28: =VLOOKUP(Tableau13[[#This Row],[Tarif HT]],'Codes éco-part'!C:E,3,FALSE) -> 392 | N28: =Tableau13[[#This Row],[Tarif HT]]*1.2 -> 8.136
A29: 31 | B29: =VLOOKUP(A29,'Comprendre la codification'!$A$13:$B$16,2,FALSE) -> Jouets | C29: 202 | D29: =VLOOKUP(C29,'Comprendre la codification'!$D$13:$E$50,2,FALSE) -> Jeux de construction & accessoires | E29: 28 | F29: =VLOOKUP(E29,'Comprendre la codification'!$G$13:$H$69,2,FALSE) -> Métal à plus de 95% | G29: 032 | H29: =VLOOKUP(G29,'Comprendre la codification'!$J$13:$K$35,2,FALSE) -> Compris entre 200 kg et 250 kg exclus | J29: 31202280320 | K29: Jouets - Jeux de construction & accessoires en Métal à plus de 95%Compris entre 200 kg et 250 kg exclus | L29: 8.71 | M29: =VLOOKUP(Tableau13[[#This Row],[Tarif HT]],'Codes éco-part'!C:E,3,FALSE) -> 393 | N29: =Tableau13[[#This Row],[Tarif HT]]*1.2 -> 10.452
A30: 31 | B30: =VLOOKUP(A30,'Comprendre la codification'!$A$13:$B$16,2,FALSE) -> Jouets | C30: 202 | D30: =VLOOKUP(C30,'Comprendre la codification'!$D$13:$E$50,2,FALSE) -> Jeux de construction & accessoires | E30: 28 | F30: =VLOOKUP(E30,'Comprendre la codification'!$G$13:$H$69,2,FALSE) -> Métal à plus de 95% | G30: 052 | H30: =VLOOKUP(G30,'Comprendre la codification'!$J$13:$K$35,2,FALSE) -> Compris entre 2 kg et 3 kg exclus | J30: 31202280520 | K30: Jouets - Jeux de construction & accessoires en Métal à plus de 95%Compris entre 2 kg et 3 kg exclus | L30: 0.25 | M30: =VLOOKUP(Tableau13[[#This Row],[Tarif HT]],'Codes éco-part'!C:E,3,FALSE) -> 095 | N30: =Tableau13[[#This Row],[Tarif HT]]*1.2 -> 0.3
A31: 31 | B31: =VLOOKUP(A31,'Comprendre la codification'!$A$13:$B$16,2,FALSE) -> Jouets | C31: 202 | D31: =VLOOKUP(C31,'Comprendre la codification'!$D$13:$E$50,2,FALSE) -> Jeux de construction & accessoires | E31: 28 | F31: =VLOOKUP(E31,'Comprendre la codification'!$G$13:$H$69,2,FALSE) -> Métal à plus de 95% | G31: 053 | H31: =VLOOKUP(G31,'Comprendre la codification'!$J$13:$K$35,2,FALSE) -> Compris entre 3 kg et 5 kg exclus | J31: 31202280530 | K31: Jouets - Jeux de construction & accessoires en Métal à plus de 95%Compris entre 3 kg et 5 kg exclus | L31: 0.39 | M31: =VLOOKUP(Tableau13[[#This Row],[Tarif HT]],'Codes éco-part'!C:E,3,FALSE) -> 253 | N31: =Tableau13[[#This Row],[Tarif HT]]*1.2 -> 0.468
A32: 31 | B32: =VLOOKUP(A32,'Comprendre la codification'!$A$13:$B$16,2,FALSE) -> Jouets | C32: 202 | D32: =VLOOKUP(C32,'Comprendre la codification'!$D$13:$E$50,2,FALSE) -> Jeux de construction & accessoires | E32: 28 | F32: =VLOOKUP(E32,'Comprendre la codification'!$G$13:$H$69,2,FALSE) -> Métal à plus de 95% | G32: 054 | H32: =VLOOKUP(G32,'Comprendre la codification'!$J$13:$K$35,2,FALSE) -> Compris entre 5 kg et 7 kg exclus | J32: 31202280540 | K32: Jouets - Jeux de construction & accessoires en Métal à plus de 95%Compris entre 5 kg et 7 kg exclus | L32: 0.59 | M32: =VLOOKUP(Tableau13[[#This Row],[Tarif HT]],'Codes éco-part'!C:E,3,FALSE) -> 254 | N32: =Tableau13[[#This Row],[Tarif HT]]*1.2 -> 0.708
A33: 31 | B33: =VLOOKUP(A33,'Comprendre la codification'!$A$13:$B$16,2,FALSE) -> Jouets | C33: 202 | D33: =VLOOKUP(C33,'Comprendre la codification'!$D$13:$E$50,2,FALSE) -> Jeux de construction & accessoires | E33: 28 | F33: =VLOOKUP(E33,'Comprendre la codification'!$G$13:$H$69,2,FALSE) -> Métal à plus de 95% | G33: 055 | H33: =VLOOKUP(G33,'Comprendre la codification'!$J$13:$K$35,2,FALSE) -> Compris entre 7 kg et 10 kg exclus | J33: 31202280550 | K33: Jouets - Jeux de construction & accessoires en Métal à plus de 95%Compris entre 7 kg et 10 kg exclus | L33: 0.73 | M33: =VLOOKUP(Tableau13[[#This Row],[Tarif HT]],'Codes éco-part'!C:E,3,FALSE) -> 255 | N33: =Tableau13[[#This Row],[Tarif HT]]*1.2 -> 0.876
A34: 31 | B34: =VLOOKUP(A34,'Comprendre la codification'!$A$13:$B$16,2,FALSE) -> Jouets | C34: 202 | D34: =VLOOKUP(C34,'Comprendre la codification'!$D$13:$E$50,2,FALSE) -> Jeux de construction & accessoires | E34: 28 | F34: =VLOOKUP(E34,'Comprendre la codification'!$G$13:$H$69,2,FALSE) -> Métal à plus de 95% | G34: 056 | H34: =VLOOKUP(G34,'Comprendre la codification'!$J$13:$K$35,2,FALSE) -> Compris entre 10 kg et 15 kg exclus | J34: 31202280560 | K34: Jouets - Jeux de construction & accessoires en Métal à plus de 95%Compris entre 10 kg et 15 kg exclus | L34: 1.21 | M34: =VLOOKUP(Tableau13[[#This Row],[Tarif HT]],'Codes éco-part'!C:E,3,FALSE) -> 114 | N34: =Tableau13[[#This Row],[Tarif HT]]*1.2 -> 1.452
A35: 31 | B35: =VLOOKUP(A35,'Comprendre la codification'!$A$13:$B$16,2,FALSE) -> Jouets | C35: 202 | D35: =VLOOKUP(C35,'Comprendre la codification'!$D$13:$E$50,2,FALSE) -> Jeux de construction & accessoires | E35: 28 | F35: =VLOOKUP(E35,'Comprendre la codification'!$G$13:$H$69,2,FALSE) -> Métal à plus de 95% | G35: 057 | H35: =VLOOKUP(G35,'Comprendre la codification'!$J$13:$K$35,2,FALSE) -> Compris entre 15 kg et 20 kg exclus | J35: 31202280570 | K35: Jouets - Jeux de construction & accessoires en Métal à plus de 95%Compris entre 15 kg et 20 kg exclus | L35: 1.7 | M35: =VLOOKUP(Tableau13[[#This Row],[Tarif HT]],'Codes éco-part'!C:E,3,FALSE) -> 256 | N35: =Tableau13[[#This Row],[Tarif HT]]*1.2 -> 2.04
A36: 31 | B36: =VLOOKUP(A36,'Comprendre la codification'!$A$13:$B$16,2,FALSE) -> Jouets | C36: 202 | D36: =VLOOKUP(C36,'Comprendre la codification'!$D$13:$E$50,2,FALSE) -> Jeux de construction & accessoires | E36: 28 | F36: =VLOOKUP(E36,'Comprendre la codification'!$G$13:$H$69,2,FALSE) -> Métal à plus de 95% | G36: 058 | H36: =VLOOKUP(G36,'Comprendre la codification'!$J$13:$K$35,2,FALSE) -> Compris entre 20 kg et 25 kg exclus | J36: 31202280580 | K36: Jouets - Jeux de construction & accessoires en Métal à plus de 95%Compris entre 20 kg et 25 kg exclus | L36: 1.74 | M36: =VLOOKUP(Tableau13[[#This Row],[Tarif HT]],'Codes éco-part'!C:E,3,FALSE) -> 394 | N36: =Tableau13[[#This Row],[Tarif HT]]*1.2 -> 2.088
A37: 31 | B37: =VLOOKUP(A37,'Comprendre la codification'!$A$13:$B$16,2,FALSE) -> Jouets | C37: 202 | D37: =VLOOKUP(C37,'Comprendre la codification'!$D$13:$E$50,2,FALSE) -> Jeux de construction & accessoires | E37: 28 | F37: =VLOOKUP(E37,'Comprendre la codification'!$G$13:$H$69,2,FALSE) -> Métal à plus de 95% | G37: 059 | H37: =VLOOKUP(G37,'Comprendre la codification'!$J$13:$K$35,2,FALSE) -> Compris entre 25 kg et 30 kg exclus | J37: 31202280590 | K37: Jouets - Jeux de construction & accessoires en Métal à plus de 95%Compris entre 25 kg et 30 kg exclus | L37: 1.92 | M37: =VLOOKUP(Tableau13[[#This Row],[Tarif HT]],'Codes éco-part'!C:E,3,FALSE) -> 060 | N37: =Tableau13[[#This Row],[Tarif HT]]*1.2 -> 2.304
A38: 31 | B38: =VLOOKUP(A38,'Comprendre la codification'!$A$13:$B$16,2,FALSE) -> Jouets | C38: 202 | D38: =VLOOKUP(C38,'Comprendre la codification'!$D$13:$E$50,2,FALSE) -> Jeux de construction & accessoires | E38: 28 | F38: =VLOOKUP(E38,'Comprendre la codification'!$G$13:$H$69,2,FALSE) -> Métal à plus de 95% | G38: 060 | H38: =VLOOKUP(G38,'Comprendre la codification'!$J$13:$K$35,2,FALSE) -> Compris entre 40 kg et 50 kg exclus | J38: 31202280600 | K38: Jouets - Jeux de construction & accessoires en Métal à plus de 95%Compris entre 40 kg et 50 kg exclus | L38: 2.54 | M38: =VLOOKUP(Tableau13[[#This Row],[Tarif HT]],'Codes éco-part'!C:E,3,FALSE) -> 338 | N38: =Tableau13[[#This Row],[Tarif HT]]*1.2 -> 3.048
A39: 31 | B39: =VLOOKUP(A39,'Comprendre la codification'!$A$13:$B$16,2,FALSE) -> Jouets | C39: 202 | D39: =VLOOKUP(C39,'Comprendre la codification'!$D$13:$E$50,2,FALSE) -> Jeux de construction & accessoires | E39: 28 | F39: =VLOOKUP(E39,'Comprendre la codification'!$G$13:$H$69,2,FALSE) -> Métal à plus de 95% | G39: 082 | H39: =VLOOKUP(G39,'Comprendre la codification'!$J$13:$K$35,2,FALSE) -> supérieur à 250 kg | J39: 31202280820 | K39: Jouets - Jeux de construction & accessoires en Métal à plus de 95%supérieur à 250 kg | L39: 9.68 | M39: =VLOOKUP(Tableau13[[#This Row],[Tarif HT]],'Codes éco-part'!C:E,3,FALSE) -> 395 | N39: =Tableau13[[#This Row],[Tarif HT]]*1.2 -> 11.616
A40: 31 | B40: =VLOOKUP(A40,'Comprendre la codification'!$A$13:$B$16,2,FALSE) -> Jouets | C40: 202 | D40: =VLOOKUP(C40,'Comprendre la codification'!$D$13:$E$50,2,FALSE) -> Jeux de construction & accessoires | E40: 28 | F40: =VLOOKUP(E40,'Comprendre la codification'!$G$13:$H$69,2,FALSE) -> Métal à plus de 95% | G40: 083 | H40: =VLOOKUP(G40,'Comprendre la codification'!$J$13:$K$35,2,FALSE) -> inférieur strictement à 0,1 kg | J40: 31202280830 | K40: Jouets - Jeux de construction & accessoires en Métal à plus de 95%inférieur strictement à 0,1 kg | L40: 0.01 | M40: =VLOOKUP(Tableau13[[#This Row],[Tarif HT]],'Codes éco-part'!C:E,3,FALSE) -> 260 | N40: =Tableau13[[#This Row],[Tarif HT]]*1.2 -> 0.012
A41: 31 | B41: =VLOOKUP(A41,'Comprendre la codification'!$A$13:$B$16,2,FALSE) -> Jouets | C41: 202 | D41: =VLOOKUP(C41,'Comprendre la codification'!$D$13:$E$50,2,FALSE) -> Jeux de construction & accessoires | E41: 28 | F41: =VLOOKUP(E41,'Comprendre la codification'!$G$13:$H$69,2,FALSE) -> Métal à plus de 95% | G41: 084 | H41: =VLOOKUP(G41,'Comprendre la codification'!$J$13:$K$35,2,FALSE) -> Compris entre 0,1 kg et 0,2 kg exclus | J41: 31202280840 | K41: Jouets - Jeux de construction & accessoires en Métal à plus de 95%Compris entre 0,1 kg et 0,2 kg exclus | L41: 0.02 | M41: =VLOOKUP(Tableau13[[#This Row],[Tarif HT]],'Codes éco-part'!C:E,3,FALSE) -> 047 | N41: =Tableau13[[#This Row],[Tarif HT]]*1.2 -> 0.024
A42: 31 | B42: =VLOOKUP(A42,'Comprendre la codification'!$A$13:$B$16,2,FALSE) -> Jouets | C42: 202 | D42: =VLOOKUP(C42,'Comprendre la codification'!$D$13:$E$50,2,FALSE) -> Jeux de construction & accessoires | E42: 28 | F42: =VLOOKUP(E42,'Comprendre la codification'!$G$13:$H$69,2,FALSE) -> Métal à plus de 95% | G42: 085 | H42: =VLOOKUP(G42,'Comprendre la codification'!$J$13:$K$35,2,FALSE) -> Compris entre 0,2 kg et 0,3 kg exclus | J42: 31202280850 | K42: Jouets - Jeux de construction & accessoires en Métal à plus de 95%Compris entre 0,2 kg et 0,3 kg exclus | L42: 0.03 | M42: =VLOOKUP(Tableau13[[#This Row],[Tarif HT]],'Codes éco-part'!C:E,3,FALSE) -> 092 | N42: =Tableau13[[#This Row],[Tarif HT]]*1.2 -> 0.036
A43: 31 | B43: =VLOOKUP(A43,'Comprendre la codification'!$A$13:$B$16,2,FALSE) -> Jouets | C43: 202 | D43: =VLOOKUP(C43,'Comprendre la codification'!$D$13:$E$50,2,FALSE) -> Jeux de construction & accessoires | E43: 28 | F43: =VLOOKUP(E43,'Comprendre la codification'!$G$13:$H$69,2,FALSE) -> Métal à plus de 95% | G43: 086 | H43: =VLOOKUP(G43,'Comprendre la codification'!$J$13:$K$35,2,FALSE) -> Compris entre 0,3 kg et 0,4 kg exclus | J43: 31202280860 | K43: Jouets - Jeux de construction & accessoires en Métal à plus de 95%Compris entre 0,3 kg et 0,4 kg exclus | L43: 0.04 | M43: =VLOOKUP(Tableau13[[#This Row],[Tarif HT]],'Codes éco-part'!C:E,3,FALSE) -> 002 | N43: =Tableau13[[#This Row],[Tarif HT]]*1.2 -> 0.048
A44: 31 | B44: =VLOOKUP(A44,'Comprendre la codification'!$A$13:$B$16,2,FALSE) -> Jouets | C44: 202 | D44: =VLOOKUP(C44,'Comprendre la codification'!$D$13:$E$50,2,FALSE) -> Jeux de construction & accessoires | E44: 28 | F44: =VLOOKUP(E44,'Comprendre la codification'!$G$13:$H$69,2,FALSE) -> Métal à plus de 95% | G44: 087 | H44: =VLOOKUP(G44,'Comprendre la codification'!$J$13:$K$35,2,FALSE) -> Compris entre 0,4 kg et 0,5 kg exclus | J44: 31202280870 | K44: Jouets - Jeux de construction & accessoires en Métal à plus de 95%Compris entre 0,4 kg et 0,5 kg exclus | L44: 0.05 | M44: =VLOOKUP(Tableau13[[#This Row],[Tarif HT]],'Codes éco-part'!C:E,3,FALSE) -> 048 | N44: =Tableau13[[#This Row],[Tarif HT]]*1.2 -> 0.06
A45: 31 | B45: =VLOOKUP(A45,'Comprendre la codification'!$A$13:$B$16,2,FALSE) -> Jouets | C45: 202 | D45: =VLOOKUP(C45,'Comprendre la codification'!$D$13:$E$50,2,FALSE) -> Jeux de construction & accessoires | E45: 28 | F45: =VLOOKUP(E45,'Comprendre la codification'!$G$13:$H$69,2,FALSE) -> Métal à plus de 95% | G45: 088 | H45: =VLOOKUP(G45,'Comprendre la codification'!$J$13:$K$35,2,FALSE) -> Compris entre 50 kg et 100 kg exclus | J45: 31202280880 | K45: Jouets - Jeux de construction & accessoires en Métal à plus de 95%Compris entre 50 kg et 100 kg exclus | L45: 3.81 | M45: =VLOOKUP(Tableau13[[#This Row],[Tarif HT]],'Codes éco-part'!C:E,3,FALSE) -> 396 | N45: =Tableau13[[#This Row],[Tarif HT]]*1.2 -> 4.572
A46: 31 | B46: =VLOOKUP(A46,'Comprendre la codification'!$A$13:$B$16,2,FALSE) -> Jouets | C46: 203 | D46: =VLOOKUP(C46,'Comprendre la codification'!$D$13:$E$50,2,FALSE) -> Poupées, Poupons & accessoires | E46: 28 | F46: =VLOOKUP(E46,'Comprendre la codification'!$G$13:$H$69,2,FALSE) -> Métal à plus de 95% | G46: 021 | H46: =VLOOKUP(G46,'Comprendre la codification'!$J$13:$K$35,2,FALSE) -> Compris entre 0,5 kg et 1 kg exclus | J46: 31203280210 | K46: Jouets - Poupées, Poupons & accessoires en Métal à plus de 95%Compris entre 0,5 kg et 1 kg exclus | L46: 0.08 | M46: =VLOOKUP(Tableau13[[#This Row],[Tarif HT]],'Codes éco-part'!C:E,3,FALSE) -> 003 | N46: =Tableau13[[#This Row],[Tarif HT]]*1.2 -> 0.096
A47: 31 | B47: =VLOOKUP(A47,'Comprendre la codification'!$A$13:$B$16,2,FALSE) -> Jouets | C47: 203 | D47: =VLOOKUP(C47,'Comprendre la codification'!$D$13:$E$50,2,FALSE) -> Poupées, Poupons & accessoires | E47: 28 | F47: =VLOOKUP(E47,'Comprendre la codification'!$G$13:$H$69,2,FALSE) -> Métal à plus de 95% | G47: 022 | H47: =VLOOKUP(G47,'Comprendre la codification'!$J$13:$K$35,2,FALSE) -> Compris entre 1 kg et 2 kg exclus | J47: 31203280220 | K47: Jouets - Poupées, Poupons & accessoires en Métal à plus de 95%Compris entre 1 kg et 2 kg exclus | L47: 0.15 | M47: =VLOOKUP(Tableau13[[#This Row],[Tarif HT]],'Codes éco-part'!C:E,3,FALSE) -> 050 | N47: =Tableau13[[#This Row],[Tarif HT]]*1.2 -> 0.18
A48: 31 | B48: =VLOOKUP(A48,'Comprendre la codification'!$A$13:$B$16,2,FALSE) -> Jouets | C48: 203 | D48: =VLOOKUP(C48,'Comprendre la codification'!$D$13:$E$50,2,FALSE) -> Poupées, Poupons & accessoires | E48: 28 | F48: =VLOOKUP(E48,'Comprendre la codification'!$G$13:$H$69,2,FALSE) -> Métal à plus de 95% | G48: 027 | H48: =VLOOKUP(G48,'Comprendre la codification'!$J$13:$K$35,2,FALSE) -> Compris entre 30 kg et 40 kg exclus | J48: 31203280270 | K48: Jouets - Poupées, Poupons & accessoires en Métal à plus de 95%Compris entre 30 kg et 40 kg exclus | L48: 2.2 | M48: =VLOOKUP(Tableau13[[#This Row],[Tarif HT]],'Codes éco-part'!C:E,3,FALSE) -> 390 | N48: =Tableau13[[#This Row],[Tarif HT]]*1.2 -> 2.64
A49: 31 | B49: =VLOOKUP(A49,'Comprendre la codification'!$A$13:$B$16,2,FALSE) -> Jouets | C49: 203 | D49: =VLOOKUP(C49,'Comprendre la codification'!$D$13:$E$50,2,FALSE) -> Poupées, Poupons & accessoires | E49: 28 | F49: =VLOOKUP(E49,'Comprendre la codification'!$G$13:$H$69,2,FALSE) -> Métal à plus de 95% | G49: 030 | H49: =VLOOKUP(G49,'Comprendre la codification'!$J$13:$K$35,2,FALSE) -> Compris entre 100 kg et 150 kg exclus | J49: 31203280300 | K49: Jouets - Poupées, Poupons & accessoires en Métal à plus de 95%Compris entre 100 kg et 150 kg exclus | L49: 4.84 | M49: =VLOOKUP(Tableau13[[#This Row],[Tarif HT]],'Codes éco-part'!C:E,3,FALSE) -> 391 | N49: =Tableau13[[#This Row],[Tarif HT]]*1.2 -> 5.808
A50: 31 | B50: =VLOOKUP(A50,'Comprendre la codification'!$A$13:$B$16,2,FALSE) -> Jouets | C50: 203 | D50: =VLOOKUP(C50,'Comprendre la codification'!$D$13:$E$50,2,FALSE) -> Poupées, Poupons & accessoires | E50: 28 | F50: =VLOOKUP(E50,'Comprendre la codification'!$G$13:$H$69,2,FALSE) -> Métal à plus de 95% | G50: 031 | H50: =VLOOKUP(G50,'Comprendre la codification'!$J$13:$K$35,2,FALSE) -> Compris entre 150 kg et 200 kg exclus | J50: 31203280310 | K50: Jouets - Poupées, Poupons & accessoires en Métal à plus de 95%Compris entre 150 kg et 200 kg exclus | L50: 6.78 | M50: =VLOOKUP(Tableau13[[#This Row],[Tarif HT]],'Codes éco-part'!C:E,3,FALSE) -> 392 | N50: =Tableau13[[#This Row],[Tarif HT]]*1.2 -> 8.136
A51: 31 | B51: =VLOOKUP(A51,'Comprendre la codification'!$A$13:$B$16,2,FALSE) -> Jouets | C51: 203 | D51: =VLOOKUP(C51,'Comprendre la codification'!$D$13:$E$50,2,FALSE) -> Poupées, Poupons & accessoires | E51: 28 | F51: =VLOOKUP(E51,'Comprendre la codification'!$G$13:$H$69,2,FALSE) -> Métal à plus de 95% | G51: 032 | H51: =VLOOKUP(G51,'Comprendre la codification'!$J$13:$K$35,2,FALSE) -> Compris entre 200 kg et 250 kg exclus | J51: 31203280320 | K51: Jouets - Poupées, Poupons & accessoires en Métal à plus de 95%Compris entre 200 kg et 250 kg exclus | L51: 8.71 | M51: =VLOOKUP(Tableau13[[#This Row],[Tarif HT]],'Codes éco-part'!C:E,3,FALSE) -> 393 | N51: =Tableau13[[#This Row],[Tarif HT]]*1.2 -> 10.452
A52: 31 | B52: =VLOOKUP(A52,'Comprendre la codification'!$A$13:$B$16,2,FALSE) -> Jouets | C52: 203 | D52: =VLOOKUP(C52,'Comprendre la codification'!$D$13:$E$50,2,FALSE) -> Poupées, Poupons & accessoires | E52: 28 | F52: =VLOOKUP(E52,'Comprendre la codification'!$G$13:$H$69,2,FALSE) -> Métal à plus de 95% | G52: 052 | H52: =VLOOKUP(G52,'Comprendre la codification'!$J$13:$K$35,2,FALSE) -> Compris entre 2 kg et 3 kg exclus | J52: 31203280520 | K52: Jouets - Poupées, Poupons & accessoires en Métal à plus de 95%Compris entre 2 kg et 3 kg exclus | L52: 0.25 | M52: =VLOOKUP(Tableau13[[#This Row],[Tarif HT]],'Codes éco-part'!C:E,3,FALSE) -> 095 | N52: =Tableau13[[#This Row],[Tarif HT]]*1.2 -> 0.3
A53: 31 | B53: =VLOOKUP(A53,'Comprendre la codification'!$A$13:$B$16,2,FALSE) -> Jouets | C53: 203 | D53: =VLOOKUP(C53,'Comprendre la codification'!$D$13:$E$50,2,FALSE) -> Poupées, Poupons & accessoires | E53: 28 | F53: =VLOOKUP(E53,'Comprendre la codification'!$G$13:$H$69,2,FALSE) -> Métal à plus de 95% | G53: 053 | H53: =VLOOKUP(G53,'Comprendre la codification'!$J$13:$K$35,2,FALSE) -> Compris entre 3 kg et 5 kg exclus | J53: 31203280530 | K53: Jouets - Poupées, Poupons & accessoires en Métal à plus de 95%Compris entre 3 kg et 5 kg exclus | L53: 0.39 | M53: =VLOOKUP(Tableau13[[#This Row],[Tarif HT]],'Codes éco-part'!C:E,3,FALSE) -> 253 | N53: =Tableau13[[#This Row],[Tarif HT]]*1.2 -> 0.468
A54: 31 | B54: =VLOOKUP(A54,'Comprendre la codification'!$A$13:$B$16,2,FALSE) -> Jouets | C54: 203 | D54: =VLOOKUP(C54,'Comprendre la codification'!$D$13:$E$50,2,FALSE) -> Poupées, Poupons & accessoires | E54: 28 | F54: =VLOOKUP(E54,'Comprendre la codification'!$G$13:$H$69,2,FALSE) -> Métal à plus de 95% | G54: 054 | H54: =VLOOKUP(G54,'Comprendre la codification'!$J$13:$K$35,2,FALSE) -> Compris entre 5 kg et 7 kg exclus | J54: 31203280540 | K54: Jouets - Poupées, Poupons & accessoires en Métal à plus de 95%Compris entre 5 kg et 7 kg exclus | L54: 0.59 | M54: =VLOOKUP(Tableau13[[#This Row],[Tarif HT]],'Codes éco-part'!C:E,3,FALSE) -> 254 | N54: =Tableau13[[#This Row],[Tarif HT]]*1.2 -> 0.708
A55: 31 | B55: =VLOOKUP(A55,'Comprendre la codification'!$A$13:$B$16,2,FALSE) -> Jouets | C55: 203 | D55: =VLOOKUP(C55,'Comprendre la codification'!$D$13:$E$50,2,FALSE) -> Poupées, Poupons & accessoires | E55: 28 | F55: =VLOOKUP(E55,'Comprendre la codification'!$G$13:$H$69,2,FALSE) -> Métal à plus de 95% | G55: 055 | H55: =VLOOKUP(G55,'Comprendre la codification'!$J$13:$K$35,2,FALSE) -> Compris entre 7 kg et 10 kg exclus | J55: 31203280550 | K55: Jouets - Poupées, Poupons & accessoires en Métal à plus de 95%Compris entre 7 kg et 10 kg exclus | L55: 0.73 | M55: =VLOOKUP(Tableau13[[#This Row],[Tarif HT]],'Codes éco-part'!C:E,3,FALSE) -> 255 | N55: =Tableau13[[#This Row],[Tarif HT]]*1.2 -> 0.876
A56: 31 | B56: =VLOOKUP(A56,'Comprendre la codification'!$A$13:$B$16,2,FALSE) -> Jouets | C56: 203 | D56: =VLOOKUP(C56,'Comprendre la codification'!$D$13:$E$50,2,FALSE) -> Poupées, Poupons & accessoires | E56: 28 | F56: =VLOOKUP(E56,'Comprendre la codification'!$G$13:$H$69,2,FALSE) -> Métal à plus de 95% | G56: 056 | H56: =VLOOKUP(G56,'Comprendre la codification'!$J$13:$K$35,2,FALSE) -> Compris entre 10 kg et 15 kg exclus | J56: 31203280560 | K56: Jouets - Poupées, Poupons & accessoires en Métal à plus de 95%Compris entre 10 kg et 15 kg exclus | L56: 1.21 | M56: =VLOOKUP(Tableau13[[#This Row],[Tarif HT]],'Codes éco-part'!C:E,3,FALSE) -> 114 | N56: =Tableau13[[#This Row],[Tarif HT]]*1.2 -> 1.452
A57: 31 | B57: =VLOOKUP(A57,'Comprendre la codification'!$A$13:$B$16,2,FALSE) -> Jouets | C57: 203 | D57: =VLOOKUP(C57,'Comprendre la codification'!$D$13:$E$50,2,FALSE) -> Poupées, Poupons & accessoires | E57: 28 | F57: =VLOOKUP(E57,'Comprendre la codification'!$G$13:$H$69,2,FALSE) -> Métal à plus de 95% | G57: 057 | H57: =VLOOKUP(G57,'Comprendre la codification'!$J$13:$K$35,2,FALSE) -> Compris entre 15 kg et 20 kg exclus | J57: 31203280570 | K57: Jouets - Poupées, Poupons & accessoires en Métal à plus de 95%Compris entre 15 kg et 20 kg exclus | L57: 1.7 | M57: =VLOOKUP(Tableau13[[#This Row],[Tarif HT]],'Codes éco-part'!C:E,3,FALSE) -> 256 | N57: =Tableau13[[#This Row],[Tarif HT]]*1.2 -> 2.04
A58: 31 | B58: =VLOOKUP(A58,'Comprendre la codification'!$A$13:$B$16,2,FALSE) -> Jouets | C58: 203 | D58: =VLOOKUP(C58,'Comprendre la codification'!$D$13:$E$50,2,FALSE) -> Poupées, Poupons & accessoires | E58: 28 | F58: =VLOOKUP(E58,'Comprendre la codification'!$G$13:$H$69,2,FALSE) -> Métal à plus de 95% | G58: 058 | H58: =VLOOKUP(G58,'Comprendre la codification'!$J$13:$K$35,2,FALSE) -> Compris entre 20 kg et 25 kg exclus | J58: 31203280580 | K58: Jouets - Poupées, Poupons & accessoires en Métal à plus de 95%Compris entre 20 kg et 25 kg exclus | L58: 1.74 | M58: =VLOOKUP(Tableau13[[#This Row],[Tarif HT]],'Codes éco-part'!C:E,3,FALSE) -> 394 | N58: =Tableau13[[#This Row],[Tarif HT]]*1.2 -> 2.088
A59: 31 | B59: =VLOOKUP(A59,'Comprendre la codification'!$A$13:$B$16,2,FALSE) -> Jouets | C59: 203 | D59: =VLOOKUP(C59,'Comprendre la codification'!$D$13:$E$50,2,FALSE) -> Poupées, Poupons & accessoires | E59: 28 | F59: =VLOOKUP(E59,'Comprendre la codification'!$G$13:$H$69,2,FALSE) -> Métal à plus de 95% | G59: 059 | H59: =VLOOKUP(G59,'Comprendre la codification'!$J$13:$K$35,2,FALSE) -> Compris entre 25 kg et 30 kg exclus | J59: 31203280590 | K59: Jouets - Poupées, Poupons & accessoires en Métal à plus de 95%Compris entre 25 kg et 30 kg exclus | L59: 1.92 | M59: =VLOOKUP(Tableau13[[#This Row],[Tarif HT]],'Codes éco-part'!C:E,3,FALSE) -> 060 | N59: =Tableau13[[#This Row],[Tarif HT]]*1.2 -> 2.304
A60: 31 | B60: =VLOOKUP(A60,'Comprendre la codification'!$A$13:$B$16,2,FALSE) -> Jouets | C60: 203 | D60: =VLOOKUP(C60,'Comprendre la codification'!$D$13:$E$50,2,FALSE) -> Poupées, Poupons & accessoires | E60: 28 | F60: =VLOOKUP(E60,'Comprendre la codification'!$G$13:$H$69,2,FALSE) -> Métal à plus de 95% | G60: 060 | H60: =VLOOKUP(G60,'Comprendre la codification'!$J$13:$K$35,2,FALSE) -> Compris entre 40 kg et 50 kg exclus | J60: 31203280600 | K60: Jouets - Poupées, Poupons & accessoires en Métal à plus de 95%Compris entre 40 kg et 50 kg exclus | L60: 2.54 | M60: =VLOOKUP(Tableau13[[#This Row],[Tarif HT]],'Codes éco-part'!C:E,3,FALSE) -> 338 | N60: =Tableau13[[#This Row],[Tarif HT]]*1.2 -> 3.048
A61: 31 | B61: =VLOOKUP(A61,'Comprendre la codification'!$A$13:$B$16,2,FALSE) -> Jouets | C61: 203 | D61: =VLOOKUP(C61,'Comprendre la codification'!$D$13:$E$50,2,FALSE) -> Poupées, Poupons & accessoires | E61: 28 | F61: =VLOOKUP(E61,'Comprendre la codification'!$G$13:$H$69,2,FALSE) -> Métal à plus de 95% | G61: 082 | H61: =VLOOKUP(G61,'Comprendre la codification'!$J$13:$K$35,2,FALSE) -> supérieur à 250 kg | J61: 31203280820 | K61: Jouets - Poupées, Poupons & accessoires en Métal à plus de 95%supérieur à 250 kg | L61: 9.68 | M61: =VLOOKUP(Tableau13[[#This Row],[Tarif HT]],'Codes éco-part'!C:E,3,FALSE) -> 395 | N61: =Tableau13[[#This Row],[Tarif HT]]*1.2 -> 11.616
A62: 31 | B62: =VLOOKUP(A62,'Comprendre la codification'!$A$13:$B$16,2,FALSE) -> Jouets | C62: 203 | D62: =VLOOKUP(C62,'Comprendre la codification'!$D$13:$E$50,2,FALSE) -> Poupées, Poupons & accessoires | E62: 28 | F62: =VLOOKUP(E62,'Comprendre la codification'!$G$13:$H$69,2,FALSE) -> Métal à plus de 95% | G62: 083 | H62: =VLOOKUP(G62,'Comprendre la codification'!$J$13:$K$35,2,FALSE) -> inférieur strictement à 0,1 kg | J62: 31203280830 | K62: Jouets - Poupées, Poupons & accessoires en Métal à plus de 95%inférieur strictement à 0,1 kg | L62: 0.01 | M62: =VLOOKUP(Tableau13[[#This Row],[Tarif HT]],'Codes éco-part'!C:E,3,FALSE) -> 260 | N62: =Tableau13[[#This Row],[Tarif HT]]*1.2 -> 0.012
A63: 31 | B63: =VLOOKUP(A63,'Comprendre la codification'!$A$13:$B$16,2,FALSE) -> Jouets | C63: 203 | D63: =VLOOKUP(C63,'Comprendre la codification'!$D$13:$E$50,2,FALSE) -> Poupées, Poupons & accessoires | E63: 28 | F63: =VLOOKUP(E63,'Comprendre la codification'!$G$13:$H$69,2,FALSE) -> Métal à plus de 95% | G63: 084 | H63: =VLOOKUP(G63,'Comprendre la codification'!$J$13:$K$35,2,FALSE) -> Compris entre 0,1 kg et 0,2 kg exclus | J63: 31203280840 | K63: Jouets - Poupées, Poupons & accessoires en Métal à plus de 95%Compris entre 0,1 kg et 0,2 kg exclus | L63: 0.02 | M63: =VLOOKUP(Tableau13[[#This Row],[Tarif HT]],'Codes éco-part'!C:E,3,FALSE) -> 047 | N63: =Tableau13[[#This Row],[Tarif HT]]*1.2 -> 0.024
A64: 31 | B64: =VLOOKUP(A64,'Comprendre la codification'!$A$13:$B$16,2,FALSE) -> Jouets | C64: 203 | D64: =VLOOKUP(C64,'Comprendre la codification'!$D$13:$E$50,2,FALSE) -> Poupées, Poupons & accessoires | E64: 28 | F64: =VLOOKUP(E64,'Comprendre la codification'!$G$13:$H$69,2,FALSE) -> Métal à plus de 95% | G64: 085 | H64: =VLOOKUP(G64,'Comprendre la codification'!$J$13:$K$35,2,FALSE) -> Compris entre 0,2 kg et 0,3 kg exclus | J64: 31203280850 | K64: Jouets - Poupées, Poupons & accessoires en Métal à plus de 95%Compris entre 0,2 kg et 0,3 kg exclus | L64: 0.03 | M64: =VLOOKUP(Tableau13[[#This Row],[Tarif HT]],'Codes éco-part'!C:E,3,FALSE) -> 092 | N64: =Tableau13[[#This Row],[Tarif HT]]*1.2 -> 0.036
A65: 31 | B65: =VLOOKUP(A65,'Comprendre la codification'!$A$13:$B$16,2,FALSE) -> Jouets | C65: 203 | D65: =VLOOKUP(C65,'Comprendre la codification'!$D$13:$E$50,2,FALSE) -> Poupées, Poupons & accessoires | E65: 28 | F65: =VLOOKUP(E65,'Comprendre la codification'!$G$13:$H$69,2,FALSE) -> Métal à plus de 95% | G65: 086 | H65: =VLOOKUP(G65,'Comprendre la codification'!$J$13:$K$35,2,FALSE) -> Compris entre 0,3 kg et 0,4 kg exclus | J65: 31203280860 | K65: Jouets - Poupées, Poupons & accessoires en Métal à plus de 95%Compris entre 0,3 kg et 0,4 kg exclus | L65: 0.04 | M65: =VLOOKUP(Tableau13[[#This Row],[Tarif HT]],'Codes éco-part'!C:E,3,FALSE) -> 002 | N65: =Tableau13[[#This Row],[Tarif HT]]*1.2 -> 0.048
A66: =MID(J66,1,2) -> 31 | B66: =VLOOKUP(A66,'Comprendre la codification'!$A$13:$B$16,2,FALSE) -> Jouets | C66: =MID(J66,3,3) -> 203 | D66: =VLOOKUP(C66,'Comprendre la codification'!$D$13:$E$50,2,FALSE) -> Poupées, Poupons & accessoires | E66: =MID(J66,6,2) -> 28 | F66: =VLOOKUP(E66,'Comprendre la codification'!$G$13:$H$69,2,FALSE) -> Métal à plus de 95% | G66: =MID(J66,8,3) -> 087 | H66: =VLOOKUP(G66,'Comprendre la codification'!$J$13:$K$35,2,FALSE) -> Compris entre 0,4 kg et 0,5 kg exclus | J66: 31203280870 | K66: =B66&" - "&D66&" en "&F66&H66 -> Jouets - Poupées, Poupons & accessoires en Métal à plus de 95%Compris entre 0,4 kg et 0,5 kg exclus | L66: 0.05 | M66: =VLOOKUP(Tableau13[[#This Row],[Tarif HT]],'Codes éco-part'!C:E,3,FALSE) -> 048 | N66: =Tableau13[[#This Row],[Tarif HT]]*1.2 -> 0.06
A67: 31 | B67: =VLOOKUP(A67,'Comprendre la codification'!$A$13:$B$16,2,FALSE) -> Jouets | C67: 203 | D67: =VLOOKUP(C67,'Comprendre la codification'!$D$13:$E$50,2,FALSE) -> Poupées, Poupons & accessoires | E67: 28 | F67: =VLOOKUP(E67,'Comprendre la codification'!$G$13:$H$69,2,FALSE) -> Métal à plus de 95% | G67: 088 | H67: =VLOOKUP(G67,'Comprendre la codification'!$J$13:$K$35,2,FALSE) -> Compris entre 50 kg et 100 kg exclus | J67: 31203280880 | K67: Jouets - Poupées, Poupons & accessoires en Métal à plus de 95%Compris entre 50 kg et 100 kg exclus | L67: 3.81 | M67: =VLOOKUP(Tableau13[[#This Row],[Tarif HT]],'Codes éco-part'!C:E,3,FALSE) -> 396 | N67: =Tableau13[[#This Row],[Tarif HT]]*1.2 -> 4.572
A68: 31 | B68: =VLOOKUP(A68,'Comprendre la codification'!$A$13:$B$16,2,FALSE) -> Jouets | C68: 204 | D68: =VLOOKUP(C68,'Comprendre la codification'!$D$13:$E$50,2,FALSE) -> Peluches & accessoires | E68: 28 | F68: =VLOOKUP(E68,'Comprendre la codification'!$G$13:$H$69,2,FALSE) -> Métal à plus de 95% | G68: 021 | H68: =VLOOKUP(G68,'Comprendre la codification'!$J$13:$K$35,2,FALSE) -> Compris entre 0,5 kg et 1 kg exclus | J68: 31204280210 | K68: Jouets - Peluches & accessoires en Métal à plus de 95%Compris entre 0,5 kg et 1 kg exclus | L68: 0.08 | M68: =VLOOKUP(Tableau13[[#This Row],[Tarif HT]],'Codes éco-part'!C:E,3,FALSE) -> 003 | N68: =Tableau13[[#This Row],[Tarif HT]]*1.2 -> 0.096
A69: 31 | B69: =VLOOKUP(A69,'Comprendre la codification'!$A$13:$B$16,2,FALSE) -> Jouets | C69: 204 | D69: =VLOOKUP(C69,'Comprendre la codification'!$D$13:$E$50,2,FALSE) -> Peluches & accessoires | E69: 28 | F69: =VLOOKUP(E69,'Comprendre la codification'!$G$13:$H$69,2,FALSE) -> Métal à plus de 95% | G69: 022 | H69: =VLOOKUP(G69,'Comprendre la codification'!$J$13:$K$35,2,FALSE) -> Compris entre 1 kg et 2 kg exclus | J69: 31204280220 | K69: Jouets - Peluches & accessoires en Métal à plus de 95%Compris entre 1 kg et 2 kg exclus | L69: 0.15 | M69: =VLOOKUP(Tableau13[[#This Row],[Tarif HT]],'Codes éco-part'!C:E,3,FALSE) -> 050 | N69: =Tableau13[[#This Row],[Tarif HT]]*1.2 -> 0.18
A70: 31 | B70: =VLOOKUP(A70,'Comprendre la codification'!$A$13:$B$16,2,FALSE) -> Jouets | C70: 204 | D70: =VLOOKUP(C70,'Comprendre la codification'!$D$13:$E$50,2,FALSE) -> Peluches & accessoires | E70: 28 | F70: =VLOOKUP(E70,'Comprendre la codification'!$G$13:$H$69,2,FALSE) -> Métal à plus de 95% | G70: 027 | H70: =VLOOKUP(G70,'Comprendre la codification'!$J$13:$K$35,2,FALSE) -> Compris entre 30 kg et 40 kg exclus | J70: 31204280270 | K70: Jouets - Peluches & accessoires en Métal à plus de 95%Compris entre 30 kg et 40 kg exclus | L70: 2.2 | M70: =VLOOKUP(Tableau13[[#This Row],[Tarif HT]],'Codes éco-part'!C:E,3,FALSE) -> 390 | N70: =Tableau13[[#This Row],[Tarif HT]]*1.2 -> 2.64
A71: 31 | B71: =VLOOKUP(A71,'Comprendre la codification'!$A$13:$B$16,2,FALSE) -> Jouets | C71: 204 | D71: =VLOOKUP(C71,'Comprendre la codification'!$D$13:$E$50,2,FALSE) -> Peluches & accessoires | E71: 28 | F71: =VLOOKUP(E71,'Comprendre la codification'!$G$13:$H$69,2,FALSE) -> Métal à plus de 95% | G71: 030 | H71: =VLOOKUP(G71,'Comprendre la codification'!$J$13:$K$35,2,FALSE) -> Compris entre 100 kg et 150 kg exclus | J71: 31204280300 | K71: Jouets - Peluches & accessoires en Métal à plus de 95%Compris entre 100 kg et 150 kg exclus | L71: 4.84 | M71: =VLOOKUP(Tableau13[[#This Row],[Tarif HT]],'Codes éco-part'!C:E,3,FALSE) -> 391 | N71: =Tableau13[[#This Row],[Tarif HT]]*1.2 -> 5.808
A72: 31 | B72: =VLOOKUP(A72,'Comprendre la codification'!$A$13:$B$16,2,FALSE) -> Jouets | C72: 204 | D72: =VLOOKUP(C72,'Comprendre la codification'!$D$13:$E$50,2,FALSE) -> Peluches & accessoires | E72: 28 | F72: =VLOOKUP(E72,'Comprendre la codification'!$G$13:$H$69,2,FALSE) -> Métal à plus de 95% | G72: 031 | H72: =VLOOKUP(G72,'Comprendre la codification'!$J$13:$K$35,2,FALSE) -> Compris entre 150 kg et 200 kg exclus | J72: 31204280310 | K72: Jouets - Peluches & accessoires en Métal à plus de 95%Compris entre 150 kg et 200 kg exclus | L72: 6.78 | M72: =VLOOKUP(Tableau13[[#This Row],[Tarif HT]],'Codes éco-part'!C:E,3,FALSE) -> 392 | N72: =Tableau13[[#This Row],[Tarif HT]]*1.2 -> 8.136
A73: 31 | B73: =VLOOKUP(A73,'Comprendre la codification'!$A$13:$B$16,2,FALSE) -> Jouets | C73: 204 | D73: =VLOOKUP(C73,'Comprendre la codification'!$D$13:$E$50,2,FALSE) -> Peluches & accessoires | E73: 28 | F73: =VLOOKUP(E73,'Comprendre la codification'!$G$13:$H$69,2,FALSE) -> Métal à plus de 95% | G73: 032 | H73: =VLOOKUP(G73,'Comprendre la codification'!$J$13:$K$35,2,FALSE) -> Compris entre 200 kg et 250 kg exclus | J73: 31204280320 | K73: Jouets - Peluches & accessoires en Métal à plus de 95%Compris entre 200 kg et 250 kg exclus | L73: 8.71 | M73: =VLOOKUP(Tableau13[[#This Row],[Tarif HT]],'Codes éco-part'!C:E,3,FALSE) -> 393 | N73: =Tableau13[[#This Row],[Tarif HT]]*1.2 -> 10.452
A74: 31 | B74: =VLOOKUP(A74,'Comprendre la codification'!$A$13:$B$16,2,FALSE) -> Jouets | C74: 204 | D74: =VLOOKUP(C74,'Comprendre la codification'!$D$13:$E$50,2,FALSE) -> Peluches & accessoires | E74: 28 | F74: =VLOOKUP(E74,'Comprendre la codification'!$G$13:$H$69,2,FALSE) -> Métal à plus de 95% | G74: 052 | H74: =VLOOKUP(G74,'Comprendre la codification'!$J$13:$K$35,2,FALSE) -> Compris entre 2 kg et 3 kg exclus | J74: 31204280520 | K74: Jouets - Peluches & accessoires en Métal à plus de 95%Compris entre 2 kg et 3 kg exclus | L74: 0.25 | M74: =VLOOKUP(Tableau13[[#This Row],[Tarif HT]],'Codes éco-part'!C:E,3,FALSE) -> 095 | N74: =Tableau13[[#This Row],[Tarif HT]]*1.2 -> 0.3
A75: 31 | B75: =VLOOKUP(A75,'Comprendre la codification'!$A$13:$B$16,2,FALSE) -> Jouets | C75: 204 | D75: =VLOOKUP(C75,'Comprendre la codification'!$D$13:$E$50,2,FALSE) -> Peluches & accessoires | E75: 28 | F75: =VLOOKUP(E75,'Comprendre la codification'!$G$13:$H$69,2,FALSE) -> Métal à plus de 95% | G75: 053 | H75: =VLOOKUP(G75,'Comprendre la codification'!$J$13:$K$35,2,FALSE) -> Compris entre 3 kg et 5 kg exclus | J75: 31204280530 | K75: Jouets - Peluches & accessoires en Métal à plus de 95%Compris entre 3 kg et 5 kg exclus | L75: 0.39 | M75: =VLOOKUP(Tableau13[[#This Row],[Tarif HT]],'Codes éco-part'!C:E,3,FALSE) -> 253 | N75: =Tableau13[[#This Row],[Tarif HT]]*1.2 -> 0.468
A76: 31 | B76: =VLOOKUP(A76,'Comprendre la codification'!$A$13:$B$16,2,FALSE) -> Jouets | C76: 204 | D76: =VLOOKUP(C76,'Comprendre la codification'!$D$13:$E$50,2,FALSE) -> Peluches & accessoires | E76: 28 | F76: =VLOOKUP(E76,'Comprendre la codification'!$G$13:$H$69,2,FALSE) -> Métal à plus de 95% | G76: 054 | H76: =VLOOKUP(G76,'Comprendre la codification'!$J$13:$K$35,2,FALSE) -> Compris entre 5 kg et 7 kg exclus | J76: 31204280540 | K76: Jouets - Peluches & accessoires en Métal à plus de 95%Compris entre 5 kg et 7 kg exclus | L76: 0.59 | M76: =VLOOKUP(Tableau13[[#This Row],[Tarif HT]],'Codes éco-part'!C:E,3,FALSE) -> 254 | N76: =Tableau13[[#This Row],[Tarif HT]]*1.2 -> 0.708
A77: 31 | B77: =VLOOKUP(A77,'Comprendre la codification'!$A$13:$B$16,2,FALSE) -> Jouets | C77: 204 | D77: =VLOOKUP(C77,'Comprendre la codification'!$D$13:$E$50,2,FALSE) -> Peluches & accessoires | E77: 28 | F77: =VLOOKUP(E77,'Comprendre la codification'!$G$13:$H$69,2,FALSE) -> Métal à plus de 95% | G77: 055 | H77: =VLOOKUP(G77,'Comprendre la codification'!$J$13:$K$35,2,FALSE) -> Compris entre 7 kg et 10 kg exclus | J77: 31204280550 | K77: Jouets - Peluches & accessoires en Métal à plus de 95%Compris entre 7 kg et 10 kg exclus | L77: 0.73 | M77: =VLOOKUP(Tableau13[[#This Row],[Tarif HT]],'Codes éco-part'!C:E,3,FALSE) -> 255 | N77: =Tableau13[[#This Row],[Tarif HT]]*1.2 -> 0.876
A78: 31 | B78: =VLOOKUP(A78,'Comprendre la codification'!$A$13:$B$16,2,FALSE) -> Jouets | C78: 204 | D78: =VLOOKUP(C78,'Comprendre la codification'!$D$13:$E$50,2,FALSE) -> Peluches & accessoires | E78: 28 | F78: =VLOOKUP(E78,'Comprendre la codification'!$G$13:$H$69,2,FALSE) -> Métal à plus de 95% | G78: 056 | H78: =VLOOKUP(G78,'Comprendre la codification'!$J$13:$K$35,2,FALSE) -> Compris entre 10 kg et 15 kg exclus | J78: 31204280560 | K78: Jouets - Peluches & accessoires en Métal à plus de 95%Compris entre 10 kg et 15 kg exclus | L78: 1.21 | M78: =VLOOKUP(Tableau13[[#This Row],[Tarif HT]],'Codes éco-part'!C:E,3,FALSE) -> 114 | N78: =Tableau13[[#This Row],[Tarif HT]]*1.2 -> 1.452
A79: 31 | B79: =VLOOKUP(A79,'Comprendre la codification'!$A$13:$B$16,2,FALSE) -> Jouets | C79: 204 | D79: =VLOOKUP(C79,'Comprendre la codification'!$D$13:$E$50,2,FALSE) -> Peluches & accessoires | E79: 28 | F79: =VLOOKUP(E79,'Comprendre la codification'!$G$13:$H$69,2,FALSE) -> Métal à plus de 95% | G79: 057 | H79: =VLOOKUP(G79,'Comprendre la codification'!$J$13:$K$35,2,FALSE) -> Compris entre 15 kg et 20 kg exclus | J79: 31204280570 | K79: Jouets - Peluches & accessoires en Métal à plus de 95%Compris entre 15 kg et 20 kg exclus | L79: 1.7 | M79: =VLOOKUP(Tableau13[[#This Row],[Tarif HT]],'Codes éco-part'!C:E,3,FALSE) -> 256 | N79: =Tableau13[[#This Row],[Tarif HT]]*1.2 -> 2.04
A80: 31 | B80: =VLOOKUP(A80,'Comprendre la codification'!$A$13:$B$16,2,FALSE) -> Jouets | C80: 204 | D80: =VLOOKUP(C80,'Comprendre la codification'!$D$13:$E$50,2,FALSE) -> Peluches & accessoires | E80: 28 | F80: =VLOOKUP(E80,'Comprendre la codification'!$G$13:$H$69,2,FALSE) -> Métal à plus de 95% | G80: 058 | H80: =VLOOKUP(G80,'Comprendre la codification'!$J$13:$K$35,2,FALSE) -> Compris entre 20 kg et 25 kg exclus | J80: 31204280580 | K80: Jouets - Peluches & accessoires en Métal à plus de 95%Compris entre 20 kg et 25 kg exclus | L80: 1.74 | M80: =VLOOKUP(Tableau13[[#This Row],[Tarif HT]],'Codes éco-part'!C:E,3,FALSE) -> 394 | N80: =Tableau13[[#This Row],[Tarif HT]]*1.2 -> 2.088
A81: 31 | B81: =VLOOKUP(A81,'Comprendre la codification'!$A$13:$B$16,2,FALSE) -> Jouets | C81: 204 | D81: =VLOOKUP(C81,'Comprendre la codification'!$D$13:$E$50,2,FALSE) -> Peluches & accessoires | E81: 28 | F81: =VLOOKUP(E81,'Comprendre la codification'!$G$13:$H$69,2,FALSE) -> Métal à plus de 95% | G81: 059 | H81: =VLOOKUP(G81,'Comprendre la codification'!$J$13:$K$35,2,FALSE) -> Compris entre 25 kg et 30 kg exclus | J81: 31204280590 | K81: Jouets - Peluches & accessoires en Métal à plus de 95%Compris entre 25 kg et 30 kg exclus | L81: 1.92 | M81: =VLOOKUP(Tableau13[[#This Row],[Tarif HT]],'Codes éco-part'!C:E,3,FALSE) -> 060 | N81: =Tableau13[[#This Row],[Tarif HT]]*1.2 -> 2.304
A82: 31 | B82: =VLOOKUP(A82,'Comprendre la codification'!$A$13:$B$16,2,FALSE) -> Jouets | C82: 204 | D82: =VLOOKUP(C82,'Comprendre la codification'!$D$13:$E$50,2,FALSE) -> Peluches & accessoires | E82: 28 | F82: =VLOOKUP(E82,'Comprendre la codification'!$G$13:$H$69,2,FALSE) -> Métal à plus de 95% | G82: 060 | H82: =VLOOKUP(G82,'Comprendre la codification'!$J$13:$K$35,2,FALSE) -> Compris entre 40 kg et 50 kg exclus | J82: 31204280600 | K82: Jouets - Peluches & accessoires en Métal à plus de 95%Compris entre 40 kg et 50 kg exclus | L82: 2.54 | M82: =VLOOKUP(Tableau13[[#This Row],[Tarif HT]],'Codes éco-part'!C:E,3,FALSE) -> 338 | N82: =Tableau13[[#This Row],[Tarif HT]]*1.2 -> 3.048
A83: 31 | B83: =VLOOKUP(A83,'Comprendre la codification'!$A$13:$B$16,2,FALSE) -> Jouets | C83: 204 | D83: =VLOOKUP(C83,'Comprendre la codification'!$D$13:$E$50,2,FALSE) -> Peluches & accessoires | E83: 28 | F83: =VLOOKUP(E83,'Comprendre la codification'!$G$13:$H$69,2,FALSE) -> Métal à plus de 95% | G83: 082 | H83: =VLOOKUP(G83,'Comprendre la codification'!$J$13:$K$35,2,FALSE) -> supérieur à 250 kg | J83: 31204280820 | K83: Jouets - Peluches & accessoires en Métal à plus de 95%supérieur à 250 kg | L83: 9.68 | M83: =VLOOKUP(Tableau13[[#This Row],[Tarif HT]],'Codes éco-part'!C:E,3,FALSE) -> 395 | N83: =Tableau13[[#This Row],[Tarif HT]]*1.2 -> 11.616
A84: 31 | B84: =VLOOKUP(A84,'Comprendre la codification'!$A$13:$B$16,2,FALSE) -> Jouets | C84: 204 | D84: =VLOOKUP(C84,'Comprendre la codification'!$D$13:$E$50,2,FALSE) -> Peluches & accessoires | E84: 28 | F84: =VLOOKUP(E84,'Comprendre la codification'!$G$13:$H$69,2,FALSE) -> Métal à plus de 95% | G84: 083 | H84: =VLOOKUP(G84,'Comprendre la codification'!$J$13:$K$35,2,FALSE) -> inférieur strictement à 0,1 kg | J84: 31204280830 | K84: Jouets - Peluches & accessoires en Métal à plus de 95%inférieur strictement à 0,1 kg | L84: 0.01 | M84: =VLOOKUP(Tableau13[[#This Row],[Tarif HT]],'Codes éco-part'!C:E,3,FALSE) -> 260 | N84: =Tableau13[[#This Row],[Tarif HT]]*1.2 -> 0.012
A85: 31 | B85: =VLOOKUP(A85,'Comprendre la codification'!$A$13:$B$16,2,FALSE) -> Jouets | C85: 204 | D85: =VLOOKUP(C85,'Comprendre la codification'!$D$13:$E$50,2,FALSE) -> Peluches & accessoires | E85: 28 | F85: =VLOOKUP(E85,'Comprendre la codification'!$G$13:$H$69,2,FALSE) -> Métal à plus de 95% | G85: 084 | H85: =VLOOKUP(G85,'Comprendre la codification'!$J$13:$K$35,2,FALSE) -> Compris entre 0,1 kg et 0,2 kg exclus | J85: 31204280840 | K85: Jouets - Peluches & accessoires en Métal à plus de 95%Compris entre 0,1 kg et 0,2 kg exclus | L85: 0.02 | M85: =VLOOKUP(Tableau13[[#This Row],[Tarif HT]],'Codes éco-part'!C:E,3,FALSE) -> 047 | N85: =Tableau13[[#This Row],[Tarif HT]]*1.2 -> 0.024
A86: 31 | B86: =VLOOKUP(A86,'Comprendre la codification'!$A$13:$B$16,2,FALSE) -> Jouets | C86: 204 | D86: =VLOOKUP(C86,'Comprendre la codification'!$D$13:$E$50,2,FALSE) -> Peluches & accessoires | E86: 28 | F86: =VLOOKUP(E86,'Comprendre la codification'!$G$13:$H$69,2,FALSE) -> Métal à plus de 95% | G86: 085 | H86: =VLOOKUP(G86,'Comprendre la codification'!$J$13:$K$35,2,FALSE) -> Compris entre 0,2 kg et 0,3 kg exclus | J86: 31204280850 | K86: Jouets - Peluches & accessoires en Métal à plus de 95%Compris entre 0,2 kg et 0,3 kg exclus | L86: 0.03 | M86: =VLOOKUP(Tableau13[[#This Row],[Tarif HT]],'Codes éco-part'!C:E,3,FALSE) -> 092 | N86: =Tableau13[[#This Row],[Tarif HT]]*1.2 -> 0.036
A87: 31 | B87: =VLOOKUP(A87,'Comprendre la codification'!$A$13:$B$16,2,FALSE) -> Jouets | C87: 204 | D87: =VLOOKUP(C87,'Comprendre la codification'!$D$13:$E$50,2,FALSE) -> Peluches & accessoires | E87: 28 | F87: =VLOOKUP(E87,'Comprendre la codification'!$G$13:$H$69,2,FALSE) -> Métal à plus de 95% | G87: 086 | H87: =VLOOKUP(G87,'Comprendre la codification'!$J$13:$K$35,2,FALSE) -> Compris entre 0,3 kg et 0,4 kg exclus | J87: 31204280860 | K87: Jouets - Peluches & accessoires en Métal à plus de 95%Compris entre 0,3 kg et 0,4 kg exclus | L87: 0.04 | M87: =VLOOKUP(Tableau13[[#This Row],[Tarif HT]],'Codes éco-part'!C:E,3,FALSE) -> 002 | N87: =Tableau13[[#This Row],[Tarif HT]]*1.2 -> 0.048
A88: 31 | B88: =VLOOKUP(A88,'Comprendre la codification'!$A$13:$B$16,2,FALSE) -> Jouets | C88: 204 | D88: =VLOOKUP(C88,'Comprendre la codification'!$D$13:$E$50,2,FALSE) -> Peluches & accessoires | E88: 28 | F88: =VLOOKUP(E88,'Comprendre la codification'!$G$13:$H$69,2,FALSE) -> Métal à plus de 95% | G88: 087 | H88: =VLOOKUP(G88,'Comprendre la codification'!$J$13:$K$35,2,FALSE) -> Compris entre 0,4 kg et 0,5 kg exclus | J88: 31204280870 | K88: Jouets - Peluches & accessoires en Métal à plus de 95%Compris entre 0,4 kg et 0,5 kg exclus | L88: 0.05 | M88: =VLOOKUP(Tableau13[[#This Row],[Tarif HT]],'Codes éco-part'!C:E,3,FALSE) -> 048 | N88: =Tableau13[[#This Row],[Tarif HT]]*1.2 -> 0.06
A89: 31 | B89: =VLOOKUP(A89,'Comprendre la codification'!$A$13:$B$16,2,FALSE) -> Jouets | C89: 204 | D89: =VLOOKUP(C89,'Comprendre la codification'!$D$13:$E$50,2,FALSE) -> Peluches & accessoires | E89: 28 | F89: =VLOOKUP(E89,'Comprendre la codification'!$G$13:$H$69,2,FALSE) -> Métal à plus de 95% | G89: 088 | H89: =VLOOKUP(G89,'Comprendre la codification'!$J$13:$K$35,2,FALSE) -> Compris entre 50 kg et 100 kg exclus | J89: 31204280880 | K89: Jouets - Peluches & accessoires en Métal à plus de 95%Compris entre 50 kg et 100 kg exclus | L89: 3.81 | M89: =VLOOKUP(Tableau13[[#This Row],[Tarif HT]],'Codes éco-part'!C:E,3,FALSE) -> 396 | N89: =Tableau13[[#This Row],[Tarif HT]]*1.2 -> 4.572
A90: 31 | B90: =VLOOKUP(A90,'Comprendre la codification'!$A$13:$B$16,2,FALSE) -> Jouets | C90: 205 | D90: =VLOOKUP(C90,'Comprendre la codification'!$D$13:$E$50,2,FALSE) -> Jouets Premier âge et Pré-scolaires & accessoires (3 ans et moins) | E90: 28 | F90: =VLOOKUP(E90,'Comprendre la codification'!$G$13:$H$69,2,FALSE) -> Métal à plus de 95% | G90: 021 | H90: =VLOOKUP(G90,'Comprendre la codification'!$J$13:$K$35,2,FALSE) -> Compris entre 0,5 kg et 1 kg exclus | J90: 31205280210 | K90: Jouets - Jouets Premier âge et Pré-scolaires & accessoires (3 ans et moins) en Métal à plus de 95%Compris entre 0,5 kg et 1 kg exclus | L90: 0.08 | M90: =VLOOKUP(Tableau13[[#This Row],[Tarif HT]],'Codes éco-part'!C:E,3,FALSE) -> 003 | N90: =Tableau13[[#This Row],[Tarif HT]]*1.2 -> 0.096
A91: 31 | B91: =VLOOKUP(A91,'Comprendre la codification'!$A$13:$B$16,2,FALSE) -> Jouets | C91: 205 | D91: =VLOOKUP(C91,'Comprendre la codification'!$D$13:$E$50,2,FALSE) -> Jouets Premier âge et Pré-scolaires & accessoires (3 ans et moins) | E91: 28 | F91: =VLOOKUP(E91,'Comprendre la codification'!$G$13:$H$69,2,FALSE) -> Métal à plus de 95% | G91: 022 | H91: =VLOOKUP(G91,'Comprendre la codification'!$J$13:$K$35,2,FALSE) -> Compris entre 1 kg et 2 kg exclus | J91: 31205280220 | K91: Jouets - Jouets Premier âge et Pré-scolaires & accessoires (3 ans et moins) en Métal à plus de 95%Compris entre 1 kg et 2 kg exclus | L91: 0.15 | M91: =VLOOKUP(Tableau13[[#This Row],[Tarif HT]],'Codes éco-part'!C:E,3,FALSE) -> 050 | N91: =Tableau13[[#This Row],[Tarif HT]]*1.2 -> 0.18
A92: 31 | B92: =VLOOKUP(A92,'Comprendre la codification'!$A$13:$B$16,2,FALSE) -> Jouets | C92: 205 | D92: =VLOOKUP(C92,'Comprendre la codification'!$D$13:$E$50,2,FALSE) -> Jouets Premier âge et Pré-scolaires & accessoires (3 ans et moins) | E92: 28 | F92: =VLOOKUP(E92,'Comprendre la codification'!$G$13:$H$69,2,FALSE) -> Métal à plus de 95% | G92: 027 | H92: =VLOOKUP(G92,'Comprendre la codification'!$J$13:$K$35,2,FALSE) -> Compris entre 30 kg et 40 kg exclus | J92: 31205280270 | K92: Jouets - Jouets Premier âge et Pré-scolaires & accessoires (3 ans et moins) en Métal à plus de 95%Compris entre 30 kg et 40 kg exclus | L92: 2.2 | M92: =VLOOKUP(Tableau13[[#This Row],[Tarif HT]],'Codes éco-part'!C:E,3,FALSE) -> 390 | N92: =Tableau13[[#This Row],[Tarif HT]]*1.2 -> 2.64
A93: 31 | B93: =VLOOKUP(A93,'Comprendre la codification'!$A$13:$B$16,2,FALSE) -> Jouets | C93: 205 | D93: =VLOOKUP(C93,'Comprendre la codification'!$D$13:$E$50,2,FALSE) -> Jouets Premier âge et Pré-scolaires & accessoires (3 ans et moins) | E93: 28 | F93: =VLOOKUP(E93,'Comprendre la codification'!$G$13:$H$69,2,FALSE) -> Métal à plus de 95% | G93: 030 | H93: =VLOOKUP(G93,'Comprendre la codification'!$J$13:$K$35,2,FALSE) -> Compris entre 100 kg et 150 kg exclus | J93: 31205280300 | K93: Jouets - Jouets Premier âge et Pré-scolaires & accessoires (3 ans et moins) en Métal à plus de 95%Compris entre 100 kg et 150 kg exclus | L93: 4.84 | M93: =VLOOKUP(Tableau13[[#This Row],[Tarif HT]],'Codes éco-part'!C:E,3,FALSE) -> 391 | N93: =Tableau13[[#This Row],[Tarif HT]]*1.2 -> 5.808
A94: 31 | B94: =VLOOKUP(A94,'Comprendre la codification'!$A$13:$B$16,2,FALSE) -> Jouets | C94: 205 | D94: =VLOOKUP(C94,'Comprendre la codification'!$D$13:$E$50,2,FALSE) -> Jouets Premier âge et Pré-scolaires & accessoires (3 ans et moins) | E94: 28 | F94: =VLOOKUP(E94,'Comprendre la codification'!$G$13:$H$69,2,FALSE) -> Métal à plus de 95% | G94: 031 | H94: =VLOOKUP(G94,'Comprendre la codification'!$J$13:$K$35,2,FALSE) -> Compris entre 150 kg et 200 kg exclus | J94: 31205280310 | K94: Jouets - Jouets Premier âge et Pré-scolaires & accessoires (3 ans et moins) en Métal à plus de 95%Compris entre 150 kg et 200 kg exclus | L94: 6.78 | M94: =VLOOKUP(Tableau13[[#This Row],[Tarif HT]],'Codes éco-part'!C:E,3,FALSE) -> 392 | N94: =Tableau13[[#This Row],[Tarif HT]]*1.2 -> 8.136
A95: 31 | B95: =VLOOKUP(A95,'Comprendre la codification'!$A$13:$B$16,2,FALSE) -> Jouets | C95: 205 | D95: =VLOOKUP(C95,'Comprendre la codification'!$D$13:$E$50,2,FALSE) -> Jouets Premier âge et Pré-scolaires & accessoires (3 ans et moins) | E95: 28 | F95: =VLOOKUP(E95,'Comprendre la codification'!$G$13:$H$69,2,FALSE) -> Métal à plus de 95% | G95: 032 | H95: =VLOOKUP(G95,'Comprendre la codification'!$J$13:$K$35,2,FALSE) -> Compris entre 200 kg et 250 kg exclus | J95: 31205280320 | K95: Jouets - Jouets Premier âge et Pré-scolaires & accessoires (3 ans et moins) en Métal à plus de 95%Compris entre 200 kg et 250 kg exclus | L95: 8.71 | M95: =VLOOKUP(Tableau13[[#This Row],[Tarif HT]],'Codes éco-part'!C:E,3,FALSE) -> 393 | N95: =Tableau13[[#This Row],[Tarif HT]]*1.2 -> 10.452
A96: 31 | B96: =VLOOKUP(A96,'Comprendre la codification'!$A$13:$B$16,2,FALSE) -> Jouets | C96: 205 | D96: =VLOOKUP(C96,'Comprendre la codification'!$D$13:$E$50,2,FALSE) -> Jouets Premier âge et Pré-scolaires & accessoires (3 ans et moins) | E96: 28 | F96: =VLOOKUP(E96,'Comprendre la codification'!$G$13:$H$69,2,FALSE) -> Métal à plus de 95% | G96: 052 | H96: =VLOOKUP(G96,'Comprendre la codification'!$J$13:$K$35,2,FALSE) -> Compris entre 2 kg et 3 kg exclus | J96: 31205280520 | K96: Jouets - Jouets Premier âge et Pré-scolaires & accessoires (3 ans et moins) en Métal à plus de 95%Compris entre 2 kg et 3 kg exclus | L96: 0.25 | M96: =VLOOKUP(Tableau13[[#This Row],[Tarif HT]],'Codes éco-part'!C:E,3,FALSE) -> 095 | N96: =Tableau13[[#This Row],[Tarif HT]]*1.2 -> 0.3
A97: 31 | B97: =VLOOKUP(A97,'Comprendre la codification'!$A$13:$B$16,2,FALSE) -> Jouets | C97: 205 | D97: =VLOOKUP(C97,'Comprendre la codification'!$D$13:$E$50,2,FALSE) -> Jouets Premier âge et Pré-scolaires & accessoires (3 ans et moins) | E97: 28 | F97: =VLOOKUP(E97,'Comprendre la codification'!$G$13:$H$69,2,FALSE) -> Métal à plus de 95% | G97: 053 | H97: =VLOOKUP(G97,'Comprendre la codification'!$J$13:$K$35,2,FALSE) -> Compris entre 3 kg et 5 kg exclus | J97: 31205280530 | K97: Jouets - Jouets Premier âge et Pré-scolaires & accessoires (3 ans et moins) en Métal à plus de 95%Compris entre 3 kg et 5 kg exclus | L97: 0.39 | M97: =VLOOKUP(Tableau13[[#This Row],[Tarif HT]],'Codes éco-part'!C:E,3,FALSE) -> 253 | N97: =Tableau13[[#This Row],[Tarif HT]]*1.2 -> 0.468
A98: 31 | B98: =VLOOKUP(A98,'Comprendre la codification'!$A$13:$B$16,2,FALSE) -> Jouets | C98: 205 | D98: =VLOOKUP(C98,'Comprendre la codification'!$D$13:$E$50,2,FALSE) -> Jouets Premier âge et Pré-scolaires & accessoires (3 ans et moins) | E98: 28 | F98: =VLOOKUP(E98,'Comprendre la codification'!$G$13:$H$69,2,FALSE) -> Métal à plus de 95% | G98: 054 | H98: =VLOOKUP(G98,'Comprendre la codification'!$J$13:$K$35,2,FALSE) -> Compris entre 5 kg et 7 kg exclus | J98: 31205280540 | K98: Jouets - Jouets Premier âge et Pré-scolaires & accessoires (3 ans et moins) en Métal à plus de 95%Compris entre 5 kg et 7 kg exclus | L98: 0.59 | M98: =VLOOKUP(Tableau13[[#This Row],[Tarif HT]],'Codes éco-part'!C:E,3,FALSE) -> 254 | N98: =Tableau13[[#This Row],[Tarif HT]]*1.2 -> 0.708
A99: 31 | B99: =VLOOKUP(A99,'Comprendre la codification'!$A$13:$B$16,2,FALSE) -> Jouets | C99: 205 | D99: =VLOOKUP(C99,'Comprendre la codification'!$D$13:$E$50,2,FALSE) -> Jouets Premier âge et Pré-scolaires & accessoires (3 ans et moins) | E99: 28 | F99: =VLOOKUP(E99,'Comprendre la codification'!$G$13:$H$69,2,FALSE) -> Métal à plus de 95% | G99: 055 | H99: =VLOOKUP(G99,'Comprendre la codification'!$J$13:$K$35,2,FALSE) -> Compris entre 7 kg et 10 kg exclus | J99: 31205280550 | K99: Jouets - Jouets Premier âge et Pré-scolaires & accessoires (3 ans et moins) en Métal à plus de 95%Compris entre 7 kg et 10 kg exclus | L99: 0.73 | M99: =VLOOKUP(Tableau13[[#This Row],[Tarif HT]],'Codes éco-part'!C:E,3,FALSE) -> 255 | N99: =Tableau13[[#This Row],[Tarif HT]]*1.2 -> 0.876
A100: 31 | B100: =VLOOKUP(A100,'Comprendre la codification'!$A$13:$B$16,2,FALSE) -> Jouets | C100: 205 | D100: =VLOOKUP(C100,'Comprendre la codification'!$D$13:$E$50,2,FALSE) -> Jouets Premier âge et Pré-scolaires & accessoires (3 ans et moins) | E100: 28 | F100: =VLOOKUP(E100,'Comprendre la codification'!$G$13:$H$69,2,FALSE) -> Métal à plus de 95% | G100: 056 | H100: =VLOOKUP(G100,'Comprendre la codification'!$J$13:$K$35,2,FALSE) -> Compris entre 10 kg et 15 kg exclus | J100: 31205280560 | K100: Jouets - Jouets Premier âge et Pré-scolaires & accessoires (3 ans et moins) en Métal à plus de 95%Compris entre 10 kg et 15 kg exclus | L100: 1.21 | M100: =VLOOKUP(Tableau13[[#This Row],[Tarif HT]],'Codes éco-part'!C:E,3,FALSE) -> 114 | N100: =Tableau13[[#This Row],[Tarif HT]]*1.2 -> 1.452
A101: 31 | B101: =VLOOKUP(A101,'Comprendre la codification'!$A$13:$B$16,2,FALSE) -> Jouets | C101: 205 | D101: =VLOOKUP(C101,'Comprendre la codification'!$D$13:$E$50,2,FALSE) -> Jouets Premier âge et Pré-scolaires & accessoires (3 ans et moins) | E101: 28 | F101: =VLOOKUP(E101,'Comprendre la codification'!$G$13:$H$69,2,FALSE) -> Métal à plus de 95% | G101: 057 | H101: =VLOOKUP(G101,'Comprendre la codification'!$J$13:$K$35,2,FALSE) -> Compris entre 15 kg et 20 kg exclus | J101: 31205280570 | K101: Jouets - Jouets Premier âge et Pré-scolaires & accessoires (3 ans et moins) en Métal à plus de 95%Compris entre 15 kg et 20 kg exclus | L101: 1.7 | M101: =VLOOKUP(Tableau13[[#This Row],[Tarif HT]],'Codes éco-part'!C:E,3,FALSE) -> 256 | N101: =Tableau13[[#This Row],[Tarif HT]]*1.2 -> 2.04
A102: 31 | B102: =VLOOKUP(A102,'Comprendre la codification'!$A$13:$B$16,2,FALSE) -> Jouets | C102: 205 | D102: =VLOOKUP(C102,'Comprendre la codification'!$D$13:$E$50,2,FALSE) -> Jouets Premier âge et Pré-scolaires & accessoires (3 ans et moins) | E102: 28 | F102: =VLOOKUP(E102,'Comprendre la codification'!$G$13:$H$69,2,FALSE) -> Métal à plus de 95% | G102: 058 | H102: =VLOOKUP(G102,'Comprendre la codification'!$J$13:$K$35,2,FALSE) -> Compris entre 20 kg et 25 kg exclus | J102: 31205280580 | K102: Jouets - Jouets Premier âge et Pré-scolaires & accessoires (3 ans et moins) en Métal à plus de 95%Compris entre 20 kg et 25 kg exclus | L102: 1.74 | M102: =VLOOKUP(Tableau13[[#This Row],[Tarif HT]],'Codes éco-part'!C:E,3,FALSE) -> 394 | N102: =Tableau13[[#This Row],[Tarif HT]]*1.2 -> 2.088
A103: 31 | B103: =VLOOKUP(A103,'Comprendre la codification'!$A$13:$B$16,2,FALSE) -> Jouets | C103: 205 | D103: =VLOOKUP(C103,'Comprendre la codification'!$D$13:$E$50,2,FALSE) -> Jouets Premier âge et Pré-scolaires & accessoires (3 ans et moins) | E103: 28 | F103: =VLOOKUP(E103,'Comprendre la codification'!$G$13:$H$69,2,FALSE) -> Métal à plus de 95% | G103: 059 | H103: =VLOOKUP(G103,'Comprendre la codification'!$J$13:$K$35,2,FALSE) -> Compris entre 25 kg et 30 kg exclus | J103: 31205280590 | K103: Jouets - Jouets Premier âge et Pré-scolaires & accessoires (3 ans et moins) en Métal à plus de 95%Compris entre 25 kg et 30 kg exclus | L103: 1.92 | M103: =VLOOKUP(Tableau13[[#This Row],[Tarif HT]],'Codes éco-part'!C:E,3,FALSE) -> 060 | N103: =Tableau13[[#This Row],[Tarif HT]]*1.2 -> 2.304
A104: 31 | B104: =VLOOKUP(A104,'Comprendre la codification'!$A$13:$B$16,2,FALSE) -> Jouets | C104: 205 | D104: =VLOOKUP(C104,'Comprendre la codification'!$D$13:$E$50,2,FALSE) -> Jouets Premier âge et Pré-scolaires & accessoires (3 ans et moins) | E104: 28 | F104: =VLOOKUP(E104,'Comprendre la codification'!$G$13:$H$69,2,FALSE) -> Métal à plus de 95% | G104: 060 | H104: =VLOOKUP(G104,'Comprendre la codification'!$J$13:$K$35,2,FALSE) -> Compris entre 40 kg et 50 kg exclus | J104: 31205280600 | K104: Jouets - Jouets Premier âge et Pré-scolaires & accessoires (3 ans et moins) en Métal à plus de 95%Compris entre 40 kg et 50 kg exclus | L104: 2.54 | M104: =VLOOKUP(Tableau13[[#This Row],[Tarif HT]],'Codes éco-part'!C:E,3,FALSE) -> 338 | N104: =Tableau13[[#This Row],[Tarif HT]]*1.2 -> 3.048
A105: 31 | B105: =VLOOKUP(A105,'Comprendre la codification'!$A$13:$B$16,2,FALSE) -> Jouets | C105: 205 | D105: =VLOOKUP(C105,'Comprendre la codification'!$D$13:$E$50,2,FALSE) -> Jouets Premier âge et Pré-scolaires & accessoires (3 ans et moins) | E105: 28 | F105: =VLOOKUP(E105,'Comprendre la codification'!$G$13:$H$69,2,FALSE) -> Métal à plus de 95% | G105: 082 | H105: =VLOOKUP(G105,'Comprendre la codification'!$J$13:$K$35,2,FALSE) -> supérieur à 250 kg | J105: 31205280820 | K105: Jouets - Jouets Premier âge et Pré-scolaires & accessoires (3 ans et moins) en Métal à plus de 95%supérieur à 250 kg | L105: 9.68 | M105: =VLOOKUP(Tableau13[[#This Row],[Tarif HT]],'Codes éco-part'!C:E,3,FALSE) -> 395 | N105: =Tableau13[[#This Row],[Tarif HT]]*1.2 -> 11.616
A106: 31 | B106: =VLOOKUP(A106,'Comprendre la codification'!$A$13:$B$16,2,FALSE) -> Jouets | C106: 205 | D106: =VLOOKUP(C106,'Comprendre la codification'!$D$13:$E$50,2,FALSE) -> Jouets Premier âge et Pré-scolaires & accessoires (3 ans et moins) | E106: 28 | F106: =VLOOKUP(E106,'Comprendre la codification'!$G$13:$H$69,2,FALSE) -> Métal à plus de 95% | G106: 083 | H106: =VLOOKUP(G106,'Comprendre la codification'!$J$13:$K$35,2,FALSE) -> inférieur strictement à 0,1 kg | J106: 31205280830 | K106: Jouets - Jouets Premier âge et Pré-scolaires & accessoires (3 ans et moins) en Métal à plus de 95%inférieur strictement à 0,1 kg | L106: 0.01 | M106: =VLOOKUP(Tableau13[[#This Row],[Tarif HT]],'Codes éco-part'!C:E,3,FALSE) -> 260 | N106: =Tableau13[[#This Row],[Tarif HT]]*1.2 -> 0.012
A107: 31 | B107: =VLOOKUP(A107,'Comprendre la codification'!$A$13:$B$16,2,FALSE) -> Jouets | C107: 205 | D107: =VLOOKUP(C107,'Comprendre la codification'!$D$13:$E$50,2,FALSE) -> Jouets Premier âge et Pré-scolaires & accessoires (3 ans et moins) | E107: 28 | F107: =VLOOKUP(E107,'Comprendre la codification'!$G$13:$H$69,2,FALSE) -> Métal à plus de 95% | G107: 084 | H107: =VLOOKUP(G107,'Comprendre la codification'!$J$13:$K$35,2,FALSE) -> Compris entre 0,1 kg et 0,2 kg exclus | J107: 31205280840 | K107: Jouets - Jouets Premier âge et Pré-scolaires & accessoires (3 ans et moins) en Métal à plus de 95%Compris entre 0,1 kg et 0,2 kg exclus | L107: 0.02 | M107: =VLOOKUP(Tableau13[[#This Row],[Tarif HT]],'Codes éco-part'!C:E,3,FALSE) -> 047 | N107: =Tableau13[[#This Row],[Tarif HT]]*1.2 -> 0.024
A108: 31 | B108: =VLOOKUP(A108,'Comprendre la codification'!$A$13:$B$16,2,FALSE) -> Jouets | C108: 205 | D108: =VLOOKUP(C108,'Comprendre la codification'!$D$13:$E$50,2,FALSE) -> Jouets Premier âge et Pré-scolaires & accessoires (3 ans et moins) | E108: 28 | F108: =VLOOKUP(E108,'Comprendre la codification'!$G$13:$H$69,2,FALSE) -> Métal à plus de 95% | G108: 085 | H108: =VLOOKUP(G108,'Comprendre la codification'!$J$13:$K$35,2,FALSE) -> Compris entre 0,2 kg et 0,3 kg exclus | J108: 31205280850 | K108: Jouets - Jouets Premier âge et Pré-scolaires & accessoires (3 ans et moins) en Métal à plus de 95%Compris entre 0,2 kg et 0,3 kg exclus | L108: 0.03 | M108: =VLOOKUP(Tableau13[[#This Row],[Tarif HT]],'Codes éco-part'!C:E,3,FALSE) -> 092 | N108: =Tableau13[[#This Row],[Tarif HT]]*1.2 -> 0.036
A109: 31 | B109: =VLOOKUP(A109,'Comprendre la codification'!$A$13:$B$16,2,FALSE) -> Jouets | C109: 205 | D109: =VLOOKUP(C109,'Comprendre la codification'!$D$13:$E$50,2,FALSE) -> Jouets Premier âge et Pré-scolaires & accessoires (3 ans et moins) | E109: 28 | F109: =VLOOKUP(E109,'Comprendre la codification'!$G$13:$H$69,2,FALSE) -> Métal à plus de 95% | G109: 086 | H109: =VLOOKUP(G109,'Comprendre la codification'!$J$13:$K$35,2,FALSE) -> Compris entre 0,3 kg et 0,4 kg exclus | J109: 31205280860 | K109: Jouets - Jouets Premier âge et Pré-scolaires & accessoires (3 ans et moins) en Métal à plus de 95%Compris entre 0,3 kg et 0,4 kg exclus | L109: 0.04 | M109: =VLOOKUP(Tableau13[[#This Row],[Tarif HT]],'Codes éco-part'!C:E,3,FALSE) -> 002 | N109: =Tableau13[[#This Row],[Tarif HT]]*1.2 -> 0.048
A110: 31 | B110: =VLOOKUP(A110,'Comprendre la codification'!$A$13:$B$16,2,FALSE) -> Jouets | C110: 205 | D110: =VLOOKUP(C110,'Comprendre la codification'!$D$13:$E$50,2,FALSE) -> Jouets Premier âge et Pré-scolaires & accessoires (3 ans et moins) | E110: 28 | F110: =VLOOKUP(E110,'Comprendre la codification'!$G$13:$H$69,2,FALSE) -> Métal à plus de 95% | G110: 087 | H110: =VLOOKUP(G110,'Comprendre la codification'!$J$13:$K$35,2,FALSE) -> Compris entre 0,4 kg et 0,5 kg exclus | J110: 31205280870 | K110: Jouets - Jouets Premier âge et Pré-scolaires & accessoires (3 ans et moins) en Métal à plus de 95%Compris entre 0,4 kg et 0,5 kg exclus | L110: 0.05 | M110: =VLOOKUP(Tableau13[[#This Row],[Tarif HT]],'Codes éco-part'!C:E,3,FALSE) -> 048 | N110: =Tableau13[[#This Row],[Tarif HT]]*1.2 -> 0.06
A111: 31 | B111: =VLOOKUP(A111,'Comprendre la codification'!$A$13:$B$16,2,FALSE) -> Jouets | C111: 205 | D111: =VLOOKUP(C111,'Comprendre la codification'!$D$13:$E$50,2,FALSE) -> Jouets Premier âge et Pré-scolaires & accessoires (3 ans et moins) | E111: 28 | F111: =VLOOKUP(E111,'Comprendre la codification'!$G$13:$H$69,2,FALSE) -> Métal à plus de 95% | G111: 088 | H111: =VLOOKUP(G111,'Comprendre la codification'!$J$13:$K$35,2,FALSE) -> Compris entre 50 kg et 100 kg exclus | J111: 31205280880 | K111: Jouets - Jouets Premier âge et Pré-scolaires & accessoires (3 ans et moins) en Métal à plus de 95%Compris entre 50 kg et 100 kg exclus | L111: 3.81 | M111: =VLOOKUP(Tableau13[[#This Row],[Tarif HT]],'Codes éco-part'!C:E,3,FALSE) -> 396 | N111: =Tableau13[[#This Row],[Tarif HT]]*1.2 -> 4.572
A112: 31 | B112: =VLOOKUP(A112,'Comprendre la codification'!$A$13:$B$16,2,FALSE) -> Jouets | C112: 206 | D112: =VLOOKUP(C112,'Comprendre la codification'!$D$13:$E$50,2,FALSE) -> Véhicules miniatures & accessoires | E112: 28 | F112: =VLOOKUP(E112,'Comprendre la codification'!$G$13:$H$69,2,FALSE) -> Métal à plus de 95% | G112: 021 | H112: =VLOOKUP(G112,'Comprendre la codification'!$J$13:$K$35,2,FALSE) -> Compris entre 0,5 kg et 1 kg exclus | J112: 31206280210 | K112: Jouets - Véhicules miniatures & accessoires en Métal à plus de 95%Compris entre 0,5 kg et 1 kg exclus | L112: 0.08 | M112: =VLOOKUP(Tableau13[[#This Row],[Tarif HT]],'Codes éco-part'!C:E,3,FALSE) -> 003 | N112: =Tableau13[[#This Row],[Tarif HT]]*1.2 -> 0.096
A113: 31 | B113: =VLOOKUP(A113,'Comprendre la codification'!$A$13:$B$16,2,FALSE) -> Jouets | C113: 206 | D113: =VLOOKUP(C113,'Comprendre la codification'!$D$13:$E$50,2,FALSE) -> Véhicules miniatures & accessoires | E113: 28 | F113: =VLOOKUP(E113,'Comprendre la codification'!$G$13:$H$69,2,FALSE) -> Métal à plus de 95% | G113: 022 | H113: =VLOOKUP(G113,'Comprendre la codification'!$J$13:$K$35,2,FALSE) -> Compris entre 1 kg et 2 kg exclus | J113: 31206280220 | K113: Jouets - Véhicules miniatures & accessoires en Métal à plus de 95%Compris entre 1 kg et 2 kg exclus | L113: 0.15 | M113: =VLOOKUP(Tableau13[[#This Row],[Tarif HT]],'Codes éco-part'!C:E,3,FALSE) -> 050 | N113: =Tableau13[[#This Row],[Tarif HT]]*1.2 -> 0.18
A114: 31 | B114: =VLOOKUP(A114,'Comprendre la codification'!$A$13:$B$16,2,FALSE) -> Jouets | C114: 206 | D114: =VLOOKUP(C114,'Comprendre la codification'!$D$13:$E$50,2,FALSE) -> Véhicules miniatures & accessoires | E114: 28 | F114: =VLOOKUP(E114,'Comprendre la codification'!$G$13:$H$69,2,FALSE) -> Métal à plus de 95% | G114: 027 | H114: =VLOOKUP(G114,'Comprendre la codification'!$J$13:$K$35,2,FALSE) -> Compris entre 30 kg et 40 kg exclus | J114: 31206280270 | K114: Jouets - Véhicules miniatures & accessoires en Métal à plus de 95%Compris entre 30 kg et 40 kg exclus | L114: 2.2 | M114: =VLOOKUP(Tableau13[[#This Row],[Tarif HT]],'Codes éco-part'!C:E,3,FALSE) -> 390 | N114: =Tableau13[[#This Row],[Tarif HT]]*1.2 -> 2.64
A115: 31 | B115: =VLOOKUP(A115,'Comprendre la codification'!$A$13:$B$16,2,FALSE) -> Jouets | C115: 206 | D115: =VLOOKUP(C115,'Comprendre la codification'!$D$13:$E$50,2,FALSE) -> Véhicules miniatures & accessoires | E115: 28 | F115: =VLOOKUP(E115,'Comprendre la codification'!$G$13:$H$69,2,FALSE) -> Métal à plus de 95% | G115: 030 | H115: =VLOOKUP(G115,'Comprendre la codification'!$J$13:$K$35,2,FALSE) -> Compris entre 100 kg et 150 kg exclus | J115: 31206280300 | K115: Jouets - Véhicules miniatures & accessoires en Métal à plus de 95%Compris entre 100 kg et 150 kg exclus | L115: 4.84 | M115: =VLOOKUP(Tableau13[[#This Row],[Tarif HT]],'Codes éco-part'!C:E,3,FALSE) -> 391 | N115: =Tableau13[[#This Row],[Tarif HT]]*1.2 -> 5.808
A116: 31 | B116: =VLOOKUP(A116,'Comprendre la codification'!$A$13:$B$16,2,FALSE) -> Jouets | C116: 206 | D116: =VLOOKUP(C116,'Comprendre la codification'!$D$13:$E$50,2,FALSE) -> Véhicules miniatures & accessoires | E116: 28 | F116: =VLOOKUP(E116,'Comprendre la codification'!$G$13:$H$69,2,FALSE) -> Métal à plus de 95% | G116: 031 | H116: =VLOOKUP(G116,'Comprendre la codification'!$J$13:$K$35,2,FALSE) -> Compris entre 150 kg et 200 kg exclus | J116: 31206280310 | K116: Jouets - Véhicules miniatures & accessoires en Métal à plus de 95%Compris entre 150 kg et 200 kg exclus | L116: 6.78 | M116: =VLOOKUP(Tableau13[[#This Row],[Tarif HT]],'Codes éco-part'!C:E,3,FALSE) -> 392 | N116: =Tableau13[[#This Row],[Tarif HT]]*1.2 -> 8.136
A117: 31 | B117: =VLOOKUP(A117,'Comprendre la codification'!$A$13:$B$16,2,FALSE) -> Jouets | C117: 206 | D117: =VLOOKUP(C117,'Comprendre la codification'!$D$13:$E$50,2,FALSE) -> Véhicules miniatures & accessoires | E117: 28 | F117: =VLOOKUP(E117,'Comprendre la codification'!$G$13:$H$69,2,FALSE) -> Métal à plus de 95% | G117: 032 | H117: =VLOOKUP(G117,'Comprendre la codification'!$J$13:$K$35,2,FALSE) -> Compris entre 200 kg et 250 kg exclus | J117: 31206280320 | K117: Jouets - Véhicules miniatures & accessoires en Métal à plus de 95%Compris entre 200 kg et 250 kg exclus | L117: 8.71 | M117: =VLOOKUP(Tableau13[[#This Row],[Tarif HT]],'Codes éco-part'!C:E,3,FALSE) -> 393 | N117: =Tableau13[[#This Row],[Tarif HT]]*1.2 -> 10.452
A118: 31 | B118: =VLOOKUP(A118,'Comprendre la codification'!$A$13:$B$16,2,FALSE) -> Jouets | C118: 206 | D118: =VLOOKUP(C118,'Comprendre la codification'!$D$13:$E$50,2,FALSE) -> Véhicules miniatures & accessoires | E118: 28 | F118: =VLOOKUP(E118,'Comprendre la codification'!$G$13:$H$69,2,FALSE) -> Métal à plus de 95% | G118: 052 | H118: =VLOOKUP(G118,'Comprendre la codification'!$J$13:$K$35,2,FALSE) -> Compris entre 2 kg et 3 kg exclus | J118: 31206280520 | K118: Jouets - Véhicules miniatures & accessoires en Métal à plus de 95%Compris entre 2 kg et 3 kg exclus | L118: 0.25 | M118: =VLOOKUP(Tableau13[[#This Row],[Tarif HT]],'Codes éco-part'!C:E,3,FALSE) -> 095 | N118: =Tableau13[[#This Row],[Tarif HT]]*1.2 -> 0.3
A119: 31 | B119: =VLOOKUP(A119,'Comprendre la codification'!$A$13:$B$16,2,FALSE) -> Jouets | C119: 206 | D119: =VLOOKUP(C119,'Comprendre la codification'!$D$13:$E$50,2,FALSE) -> Véhicules miniatures & accessoires | E119: 28 | F119: =VLOOKUP(E119,'Comprendre la codification'!$G$13:$H$69,2,FALSE) -> Métal à plus de 95% | G119: 053 | H119: =VLOOKUP(G119,'Comprendre la codification'!$J$13:$K$35,2,FALSE) -> Compris entre 3 kg et 5 kg exclus | J119: 31206280530 | K119: Jouets - Véhicules miniatures & accessoires en Métal à plus de 95%Compris entre 3 kg et 5 kg exclus | L119: 0.39 | M119: =VLOOKUP(Tableau13[[#This Row],[Tarif HT]],'Codes éco-part'!C:E,3,FALSE) -> 253 | N119: =Tableau13[[#This Row],[Tarif HT]]*1.2 -> 0.468
A120: 31 | B120: =VLOOKUP(A120,'Comprendre la codification'!$A$13:$B$16,2,FALSE) -> Jouets | C120: 206 | D120: =VLOOKUP(C120,'Comprendre la codification'!$D$13:$E$50,2,FALSE) -> Véhicules miniatures & accessoires | E120: 28 | F120: =VLOOKUP(E120,'Comprendre la codification'!$G$13:$H$69,2,FALSE) -> Métal à plus de 95% | G120: 054 | H120: =VLOOKUP(G120,'Comprendre la codification'!$J$13:$K$35,2,FALSE) -> Compris entre 5 kg et 7 kg exclus | J120: 31206280540 | K120: Jouets - Véhicules miniatures & accessoires en Métal à plus de 95%Compris entre 5 kg et 7 kg exclus | L120: 0.59 | M120: =VLOOKUP(Tableau13[[#This Row],[Tarif HT]],'Codes éco-part'!C:E,3,FALSE) -> 254 | N120: =Tableau13[[#This Row],[Tarif HT]]*1.2 -> 0.708
A121: 31 | B121: =VLOOKUP(A121,'Comprendre la codification'!$A$13:$B$16,2,FALSE) -> Jouets | C121: 206 | D121: =VLOOKUP(C121,'Comprendre la codification'!$D$13:$E$50,2,FALSE) -> Véhicules miniatures & accessoires | E121: 28 | F121: =VLOOKUP(E121,'Comprendre la codification'!$G$13:$H$69,2,FALSE) -> Métal à plus de 95% | G121: 055 | H121: =VLOOKUP(G121,'Comprendre la codification'!$J$13:$K$35,2,FALSE) -> Compris entre 7 kg et 10 kg exclus | J121: 31206280550 | K121: Jouets - Véhicules miniatures & accessoires en Métal à plus de 95%Compris entre 7 kg et 10 kg exclus | L121: 0.73 | M121: =VLOOKUP(Tableau13[[#This Row],[Tarif HT]],'Codes éco-part'!C:E,3,FALSE) -> 255 | N121: =Tableau13[[#This Row],[Tarif HT]]*1.2 -> 0.876
A122: 31 | B122: =VLOOKUP(A122,'Comprendre la codification'!$A$13:$B$16,2,FALSE) -> Jouets | C122: 206 | D122: =VLOOKUP(C122,'Comprendre la codification'!$D$13:$E$50,2,FALSE) -> Véhicules miniatures & accessoires | E122: 28 | F122: =VLOOKUP(E122,'Comprendre la codification'!$G$13:$H$69,2,FALSE) -> Métal à plus de 95% | G122: 056 | H122: =VLOOKUP(G122,'Comprendre la codification'!$J$13:$K$35,2,FALSE) -> Compris entre 10 kg et 15 kg exclus | J122: 31206280560 | K122: Jouets - Véhicules miniatures & accessoires en Métal à plus de 95%Compris entre 10 kg et 15 kg exclus | L122: 1.21 | M122: =VLOOKUP(Tableau13[[#This Row],[Tarif HT]],'Codes éco-part'!C:E,3,FALSE) -> 114 | N122: =Tableau13[[#This Row],[Tarif HT]]*1.2 -> 1.452
A123: 31 | B123: =VLOOKUP(A123,'Comprendre la codification'!$A$13:$B$16,2,FALSE) -> Jouets | C123: 206 | D123: =VLOOKUP(C123,'Comprendre la codification'!$D$13:$E$50,2,FALSE) -> Véhicules miniatures & accessoires | E123: 28 | F123: =VLOOKUP(E123,'Comprendre la codification'!$G$13:$H$69,2,FALSE) -> Métal à plus de 95% | G123: 057 | H123: =VLOOKUP(G123,'Comprendre la codification'!$J$13:$K$35,2,FALSE) -> Compris entre 15 kg et 20 kg exclus | J123: 31206280570 | K123: Jouets - Véhicules miniatures & accessoires en Métal à plus de 95%Compris entre 15 kg et 20 kg exclus | L123: 1.7 | M123: =VLOOKUP(Tableau13[[#This Row],[Tarif HT]],'Codes éco-part'!C:E,3,FALSE) -> 256 | N123: =Tableau13[[#This Row],[Tarif HT]]*1.2 -> 2.04
A124: 31 | B124: =VLOOKUP(A124,'Comprendre la codification'!$A$13:$B$16,2,FALSE) -> Jouets | C124: 206 | D124: =VLOOKUP(C124,'Comprendre la codification'!$D$13:$E$50,2,FALSE) -> Véhicules miniatures & accessoires | E124: 28 | F124: =VLOOKUP(E124,'Comprendre la codification'!$G$13:$H$69,2,FALSE) -> Métal à plus de 95% | G124: 058 | H124: =VLOOKUP(G124,'Comprendre la codification'!$J$13:$K$35,2,FALSE) -> Compris entre 20 kg et 25 kg exclus | J124: 31206280580 | K124: Jouets - Véhicules miniatures & accessoires en Métal à plus de 95%Compris entre 20 kg et 25 kg exclus | L124: 1.74 | M124: =VLOOKUP(Tableau13[[#This Row],[Tarif HT]],'Codes éco-part'!C:E,3,FALSE) -> 394 | N124: =Tableau13[[#This Row],[Tarif HT]]*1.2 -> 2.088
A125: 31 | B125: =VLOOKUP(A125,'Comprendre la codification'!$A$13:$B$16,2,FALSE) -> Jouets | C125: 206 | D125: =VLOOKUP(C125,'Comprendre la codification'!$D$13:$E$50,2,FALSE) -> Véhicules miniatures & accessoires | E125: 28 | F125: =VLOOKUP(E125,'Comprendre la codification'!$G$13:$H$69,2,FALSE) -> Métal à plus de 95% | G125: 059 | H125: =VLOOKUP(G125,'Comprendre la codification'!$J$13:$K$35,2,FALSE) -> Compris entre 25 kg et 30 kg exclus | J125: 31206280590 | K125: Jouets - Véhicules miniatures & accessoires en Métal à plus de 95%Compris entre 25 kg et 30 kg exclus | L125: 1.92 | M125: =VLOOKUP(Tableau13[[#This Row],[Tarif HT]],'Codes éco-part'!C:E,3,FALSE) -> 060 | N125: =Tableau13[[#This Row],[Tarif HT]]*1.2 -> 2.304
A126: 31 | B126: =VLOOKUP(A126,'Comprendre la codification'!$A$13:$B$16,2,FALSE) -> Jouets | C126: 206 | D126: =VLOOKUP(C126,'Comprendre la codification'!$D$13:$E$50,2,FALSE) -> Véhicules miniatures & accessoires | E126: 28 | F126: =VLOOKUP(E126,'Comprendre la codification'!$G$13:$H$69,2,FALSE) -> Métal à plus de 95% | G126: 060 | H126: =VLOOKUP(G126,'Comprendre la codification'!$J$13:$K$35,2,FALSE) -> Compris entre 40 kg et 50 kg exclus | J126: 31206280600 | K126: Jouets - Véhicules miniatures & accessoires en Métal à plus de 95%Compris entre 40 kg et 50 kg exclus | L126: 2.54 | M126: =VLOOKUP(Tableau13[[#This Row],[Tarif HT]],'Codes éco-part'!C:E,3,FALSE) -> 338 | N126: =Tableau13[[#This Row],[Tarif HT]]*1.2 -> 3.048
A127: 31 | B127: =VLOOKUP(A127,'Comprendre la codification'!$A$13:$B$16,2,FALSE) -> Jouets | C127: 206 | D127: =VLOOKUP(C127,'Comprendre la codification'!$D$13:$E$50,2,FALSE) -> Véhicules miniatures & accessoires | E127: 28 | F127: =VLOOKUP(E127,'Comprendre la codification'!$G$13:$H$69,2,FALSE) -> Métal à plus de 95% | G127: 082 | H127: =VLOOKUP(G127,'Comprendre la codification'!$J$13:$K$35,2,FALSE) -> supérieur à 250 kg | J127: 31206280820 | K127: Jouets - Véhicules miniatures & accessoires en Métal à plus de 95%supérieur à 250 kg | L127: 9.68 | M127: =VLOOKUP(Tableau13[[#This Row],[Tarif HT]],'Codes éco-part'!C:E,3,FALSE) -> 395 | N127: =Tableau13[[#This Row],[Tarif HT]]*1.2 -> 11.616
A128: 31 | B128: =VLOOKUP(A128,'Comprendre la codification'!$A$13:$B$16,2,FALSE) -> Jouets | C128: 206 | D128: =VLOOKUP(C128,'Comprendre la codification'!$D$13:$E$50,2,FALSE) -> Véhicules miniatures & accessoires | E128: 28 | F128: =VLOOKUP(E128,'Comprendre la codification'!$G$13:$H$69,2,FALSE) -> Métal à plus de 95% | G128: 083 | H128: =VLOOKUP(G128,'Comprendre la codification'!$J$13:$K$35,2,FALSE) -> inférieur strictement à 0,1 kg | J128: 31206280830 | K128: Jouets - Véhicules miniatures & accessoires en Métal à plus de 95%inférieur strictement à 0,1 kg | L128: 0.01 | M128: =VLOOKUP(Tableau13[[#This Row],[Tarif HT]],'Codes éco-part'!C:E,3,FALSE) -> 260 | N128: =Tableau13[[#This Row],[Tarif HT]]*1.2 -> 0.012
A129: 31 | B129: =VLOOKUP(A129,'Comprendre la codification'!$A$13:$B$16,2,FALSE) -> Jouets | C129: 206 | D129: =VLOOKUP(C129,'Comprendre la codification'!$D$13:$E$50,2,FALSE) -> Véhicules miniatures & accessoires | E129: 28 | F129: =VLOOKUP(E129,'Comprendre la codification'!$G$13:$H$69,2,FALSE) -> Métal à plus de 95% | G129: 084 | H129: =VLOOKUP(G129,'Comprendre la codification'!$J$13:$K$35,2,FALSE) -> Compris entre 0,1 kg et 0,2 kg exclus | J129: 31206280840 | K129: Jouets - Véhicules miniatures & accessoires en Métal à plus de 95%Compris entre 0,1 kg et 0,2 kg exclus | L129: 0.02 | M129: =VLOOKUP(Tableau13[[#This Row],[Tarif HT]],'Codes éco-part'!C:E,3,FALSE) -> 047 | N129: =Tableau13[[#This Row],[Tarif HT]]*1.2 -> 0.024
A130: =MID(J130,1,2) -> 31 | B130: =VLOOKUP(A130,'Comprendre la codification'!$A$13:$B$16,2,FALSE) -> Jouets | C130: =MID(J130,3,3) -> 206 | D130: =VLOOKUP(C130,'Comprendre la codification'!$D$13:$E$50,2,FALSE) -> Véhicules miniatures & accessoires | E130: =MID(J130,6,2) -> 28 | F130: =VLOOKUP(E130,'Comprendre la codification'!$G$13:$H$69,2,FALSE) -> Métal à plus de 95% | G130: =MID(J130,8,3) -> 085 | H130: =VLOOKUP(G130,'Comprendre la codification'!$J$13:$K$35,2,FALSE) -> Compris entre 0,2 kg et 0,3 kg exclus | J130: 31206280850 | K130: =B130&" - "&D130&" en "&F130&H130 -> Jouets - Véhicules miniatures & accessoires en Métal à plus de 95%Compris entre 0,2 kg et 0,3 kg exclus | L130: 0.03 | M130: =VLOOKUP(Tableau13[[#This Row],[Tarif HT]],'Codes éco-part'!C:E,3,FALSE) -> 092 | N130: =Tableau13[[#This Row],[Tarif HT]]*1.2 -> 0.036
A131: 31 | B131: =VLOOKUP(A131,'Comprendre la codification'!$A$13:$B$16,2,FALSE) -> Jouets | C131: 206 | D131: =VLOOKUP(C131,'Comprendre la codification'!$D$13:$E$50,2,FALSE) -> Véhicules miniatures & accessoires | E131: 28 | F131: =VLOOKUP(E131,'Comprendre la codification'!$G$13:$H$69,2,FALSE) -> Métal à plus de 95% | G131: 086 | H131: =VLOOKUP(G131,'Comprendre la codification'!$J$13:$K$35,2,FALSE) -> Compris entre 0,3 kg et 0,4 kg exclus | J131: 31206280860 | K131: Jouets - Véhicules miniatures & accessoires en Métal à plus de 95%Compris entre 0,3 kg et 0,4 kg exclus | L131: 0.04 | M131: =VLOOKUP(Tableau13[[#This Row],[Tarif HT]],'Codes éco-part'!C:E,3,FALSE) -> 002 | N131: =Tableau13[[#This Row],[Tarif HT]]*1.2 -> 0.048
A132: 31 | B132: =VLOOKUP(A132,'Comprendre la codification'!$A$13:$B$16,2,FALSE) -> Jouets | C132: 206 | D132: =VLOOKUP(C132,'Comprendre la codification'!$D$13:$E$50,2,FALSE) -> Véhicules miniatures & accessoires | E132: 28 | F132: =VLOOKUP(E132,'Comprendre la codification'!$G$13:$H$69,2,FALSE) -> Métal à plus de 95% | G132: 087 | H132: =VLOOKUP(G132,'Comprendre la codification'!$J$13:$K$35,2,FALSE) -> Compris entre 0,4 kg et 0,5 kg exclus | J132: 31206280870 | K132: Jouets - Véhicules miniatures & accessoires en Métal à plus de 95%Compris entre 0,4 kg et 0,5 kg exclus | L132: 0.05 | M132: =VLOOKUP(Tableau13[[#This Row],[Tarif HT]],'Codes éco-part'!C:E,3,FALSE) -> 048 | N132: =Tableau13[[#This Row],[Tarif HT]]*1.2 -> 0.06
A133: 31 | B133: =VLOOKUP(A133,'Comprendre la codification'!$A$13:$B$16,2,FALSE) -> Jouets | C133: 206 | D133: =VLOOKUP(C133,'Comprendre la codification'!$D$13:$E$50,2,FALSE) -> Véhicules miniatures & accessoires | E133: 28 | F133: =VLOOKUP(E133,'Comprendre la codification'!$G$13:$H$69,2,FALSE) -> Métal à plus de 95% | G133: 088 | H133: =VLOOKUP(G133,'Comprendre la codification'!$J$13:$K$35,2,FALSE) -> Compris entre 50 kg et 100 kg exclus | J133: 31206280880 | K133: Jouets - Véhicules miniatures & accessoires en Métal à plus de 95%Compris entre 50 kg et 100 kg exclus | L133: 3.81 | M133: =VLOOKUP(Tableau13[[#This Row],[Tarif HT]],'Codes éco-part'!C:E,3,FALSE) -> 396 | N133: =Tableau13[[#This Row],[Tarif HT]]*1.2 -> 4.572
A134: 31 | B134: =VLOOKUP(A134,'Comprendre la codification'!$A$13:$B$16,2,FALSE) -> Jouets | C134: 207 | D134: =VLOOKUP(C134,'Comprendre la codification'!$D$13:$E$50,2,FALSE) -> Loisirs créatifs jouets & accessoires | E134: 28 | F134: =VLOOKUP(E134,'Comprendre la codification'!$G$13:$H$69,2,FALSE) -> Métal à plus de 95% | G134: 021 | H134: =VLOOKUP(G134,'Comprendre la codification'!$J$13:$K$35,2,FALSE) -> Compris entre 0,5 kg et 1 kg exclus | J134: 31207280210 | K134: Jouets - Loisirs créatifs jouets & accessoires en Métal à plus de 95%Compris entre 0,5 kg et 1 kg exclus | L134: 0.08 | M134: =VLOOKUP(Tableau13[[#This Row],[Tarif HT]],'Codes éco-part'!C:E,3,FALSE) -> 003 | N134: =Tableau13[[#This Row],[Tarif HT]]*1.2 -> 0.096
A135: 31 | B135: =VLOOKUP(A135,'Comprendre la codification'!$A$13:$B$16,2,FALSE) -> Jouets | C135: 207 | D135: =VLOOKUP(C135,'Comprendre la codification'!$D$13:$E$50,2,FALSE) -> Loisirs créatifs jouets & accessoires | E135: 28 | F135: =VLOOKUP(E135,'Comprendre la codification'!$G$13:$H$69,2,FALSE) -> Métal à plus de 95% | G135: 022 | H135: =VLOOKUP(G135,'Comprendre la codification'!$J$13:$K$35,2,FALSE) -> Compris entre 1 kg et 2 kg exclus | J135: 31207280220 | K135: Jouets - Loisirs créatifs jouets & accessoires en Métal à plus de 95%Compris entre 1 kg et 2 kg exclus | L135: 0.15 | M135: =VLOOKUP(Tableau13[[#This Row],[Tarif HT]],'Codes éco-part'!C:E,3,FALSE) -> 050 | N135: =Tableau13[[#This Row],[Tarif HT]]*1.2 -> 0.18
A136: 31 | B136: =VLOOKUP(A136,'Comprendre la codification'!$A$13:$B$16,2,FALSE) -> Jouets | C136: 207 | D136: =VLOOKUP(C136,'Comprendre la codification'!$D$13:$E$50,2,FALSE) -> Loisirs créatifs jouets & accessoires | E136: 28 | F136: =VLOOKUP(E136,'Comprendre la codification'!$G$13:$H$69,2,FALSE) -> Métal à plus de 95% | G136: 027 | H136: =VLOOKUP(G136,'Comprendre la codification'!$J$13:$K$35,2,FALSE) -> Compris entre 30 kg et 40 kg exclus | J136: 31207280270 | K136: Jouets - Loisirs créatifs jouets & accessoires en Métal à plus de 95%Compris entre 30 kg et 40 kg exclus | L136: 2.2 | M136: =VLOOKUP(Tableau13[[#This Row],[Tarif HT]],'Codes éco-part'!C:E,3,FALSE) -> 390 | N136: =Tableau13[[#This Row],[Tarif HT]]*1.2 -> 2.64
A137: 31 | B137: =VLOOKUP(A137,'Comprendre la codification'!$A$13:$B$16,2,FALSE) -> Jouets | C137: 207 | D137: =VLOOKUP(C137,'Comprendre la codification'!$D$13:$E$50,2,FALSE) -> Loisirs créatifs jouets & accessoires | E137: 28 | F137: =VLOOKUP(E137,'Comprendre la codification'!$G$13:$H$69,2,FALSE) -> Métal à plus de 95% | G137: 030 | H137: =VLOOKUP(G137,'Comprendre la codification'!$J$13:$K$35,2,FALSE) -> Compris entre 100 kg et 150 kg exclus | J137: 31207280300 | K137: Jouets - Loisirs créatifs jouets & accessoires en Métal à plus de 95%Compris entre 100 kg et 150 kg exclus | L137: 4.84 | M137: =VLOOKUP(Tableau13[[#This Row],[Tarif HT]],'Codes éco-part'!C:E,3,FALSE) -> 391 | N137: =Tableau13[[#This Row],[Tarif HT]]*1.2 -> 5.808
A138: 31 | B138: =VLOOKUP(A138,'Comprendre la codification'!$A$13:$B$16,2,FALSE) -> Jouets | C138: 207 | D138: =VLOOKUP(C138,'Comprendre la codification'!$D$13:$E$50,2,FALSE) -> Loisirs créatifs jouets & accessoires | E138: 28 | F138: =VLOOKUP(E138,'Comprendre la codification'!$G$13:$H$69,2,FALSE) -> Métal à plus de 95% | G138: 031 | H138: =VLOOKUP(G138,'Comprendre la codification'!$J$13:$K$35,2,FALSE) -> Compris entre 150 kg et 200 kg exclus | J138: 31207280310 | K138: Jouets - Loisirs créatifs jouets & accessoires en Métal à plus de 95%Compris entre 150 kg et 200 kg exclus | L138: 6.78 | M138: =VLOOKUP(Tableau13[[#This Row],[Tarif HT]],'Codes éco-part'!C:E,3,FALSE) -> 392 | N138: =Tableau13[[#This Row],[Tarif HT]]*1.2 -> 8.136
A139: 31 | B139: =VLOOKUP(A139,'Comprendre la codification'!$A$13:$B$16,2,FALSE) -> Jouets | C139: 207 | D139: =VLOOKUP(C139,'Comprendre la codification'!$D$13:$E$50,2,FALSE) -> Loisirs créatifs jouets & accessoires | E139: 28 | F139: =VLOOKUP(E139,'Comprendre la codification'!$G$13:$H$69,2,FALSE) -> Métal à plus de 95% | G139: 032 | H139: =VLOOKUP(G139,'Comprendre la codification'!$J$13:$K$35,2,FALSE) -> Compris entre 200 kg et 250 kg exclus | J139: 31207280320 | K139: Jouets - Loisirs créatifs jouets & accessoires en Métal à plus de 95%Compris entre 200 kg et 250 kg exclus | L139: 8.71 | M139: =VLOOKUP(Tableau13[[#This Row],[Tarif HT]],'Codes éco-part'!C:E,3,FALSE) -> 393 | N139: =Tableau13[[#This Row],[Tarif HT]]*1.2 -> 10.452
A140: 31 | B140: =VLOOKUP(A140,'Comprendre la codification'!$A$13:$B$16,2,FALSE) -> Jouets | C140: 207 | D140: =VLOOKUP(C140,'Comprendre la codification'!$D$13:$E$50,2,FALSE) -> Loisirs créatifs jouets & accessoires | E140: 28 | F140: =VLOOKUP(E140,'Comprendre la codification'!$G$13:$H$69,2,FALSE) -> Métal à plus de 95% | G140: 052 | H140: =VLOOKUP(G140,'Comprendre la codification'!$J$13:$K$35,2,FALSE) -> Compris entre 2 kg et 3 kg exclus | J140: 31207280520 | K140: Jouets - Loisirs créatifs jouets & accessoires en Métal à plus de 95%Compris entre 2 kg et 3 kg exclus | L140: 0.25 | M140: =VLOOKUP(Tableau13[[#This Row],[Tarif HT]],'Codes éco-part'!C:E,3,FALSE) -> 095 | N140: =Tableau13[[#This Row],[Tarif HT]]*1.2 -> 0.3
A141: 31 | B141: =VLOOKUP(A141,'Comprendre la codification'!$A$13:$B$16,2,FALSE) -> Jouets | C141: 207 | D141: =VLOOKUP(C141,'Comprendre la codification'!$D$13:$E$50,2,FALSE) -> Loisirs créatifs jouets & accessoires | E141: 28 | F141: =VLOOKUP(E141,'Comprendre la codification'!$G$13:$H$69,2,FALSE) -> Métal à plus de 95% | G141: 053 | H141: =VLOOKUP(G141,'Comprendre la codification'!$J$13:$K$35,2,FALSE) -> Compris entre 3 kg et 5 kg exclus | J141: 31207280530 | K141: Jouets - Loisirs créatifs jouets & accessoires en Métal à plus de 95%Compris entre 3 kg et 5 kg exclus | L141: 0.39 | M141: =VLOOKUP(Tableau13[[#This Row],[Tarif HT]],'Codes éco-part'!C:E,3,FALSE) -> 253 | N141: =Tableau13[[#This Row],[Tarif HT]]*1.2 -> 0.468
A142: 31 | B142: =VLOOKUP(A142,'Comprendre la codification'!$A$13:$B$16,2,FALSE) -> Jouets | C142: 207 | D142: =VLOOKUP(C142,'Comprendre la codification'!$D$13:$E$50,2,FALSE) -> Loisirs créatifs jouets & accessoires | E142: 28 | F142: =VLOOKUP(E142,'Comprendre la codification'!$G$13:$H$69,2,FALSE) -> Métal à plus de 95% | G142: 054 | H142: =VLOOKUP(G142,'Comprendre la codification'!$J$13:$K$35,2,FALSE) -> Compris entre 5 kg et 7 kg exclus | J142: 31207280540 | K142: Jouets - Loisirs créatifs jouets & accessoires en Métal à plus de 95%Compris entre 5 kg et 7 kg exclus | L142: 0.59 | M142: =VLOOKUP(Tableau13[[#This Row],[Tarif HT]],'Codes éco-part'!C:E,3,FALSE) -> 254 | N142: =Tableau13[[#This Row],[Tarif HT]]*1.2 -> 0.708
A143: 31 | B143: =VLOOKUP(A143,'Comprendre la codification'!$A$13:$B$16,2,FALSE) -> Jouets | C143: 207 | D143: =VLOOKUP(C143,'Comprendre la codification'!$D$13:$E$50,2,FALSE) -> Loisirs créatifs jouets & accessoires | E143: 28 | F143: =VLOOKUP(E143,'Comprendre la codification'!$G$13:$H$69,2,FALSE) -> Métal à plus de 95% | G143: 055 | H143: =VLOOKUP(G143,'Comprendre la codification'!$J$13:$K$35,2,FALSE) -> Compris entre 7 kg et 10 kg exclus | J143: 31207280550 | K143: Jouets - Loisirs créatifs jouets & accessoires en Métal à plus de 95%Compris entre 7 kg et 10 kg exclus | L143: 0.73 | M143: =VLOOKUP(Tableau13[[#This Row],[Tarif HT]],'Codes éco-part'!C:E,3,FALSE) -> 255 | N143: =Tableau13[[#This Row],[Tarif HT]]*1.2 -> 0.876
A144: 31 | B144: =VLOOKUP(A144,'Comprendre la codification'!$A$13:$B$16,2,FALSE) -> Jouets | C144: 207 | D144: =VLOOKUP(C144,'Comprendre la codification'!$D$13:$E$50,2,FALSE) -> Loisirs créatifs jouets & accessoires | E144: 28 | F144: =VLOOKUP(E144,'Comprendre la codification'!$G$13:$H$69,2,FALSE) -> Métal à plus de 95% | G144: 056 | H144: =VLOOKUP(G144,'Comprendre la codification'!$J$13:$K$35,2,FALSE) -> Compris entre 10 kg et 15 kg exclus | J144: 31207280560 | K144: Jouets - Loisirs créatifs jouets & accessoires en Métal à plus de 95%Compris entre 10 kg et 15 kg exclus | L144: 1.21 | M144: =VLOOKUP(Tableau13[[#This Row],[Tarif HT]],'Codes éco-part'!C:E,3,FALSE) -> 114 | N144: =Tableau13[[#This Row],[Tarif HT]]*1.2 -> 1.452
A145: 31 | B145: =VLOOKUP(A145,'Comprendre la codification'!$A$13:$B$16,2,FALSE) -> Jouets | C145: 207 | D145: =VLOOKUP(C145,'Comprendre la codification'!$D$13:$E$50,2,FALSE) -> Loisirs créatifs jouets & accessoires | E145: 28 | F145: =VLOOKUP(E145,'Comprendre la codification'!$G$13:$H$69,2,FALSE) -> Métal à plus de 95% | G145: 057 | H145: =VLOOKUP(G145,'Comprendre la codification'!$J$13:$K$35,2,FALSE) -> Compris entre 15 kg et 20 kg exclus | J145: 31207280570 | K145: Jouets - Loisirs créatifs jouets & accessoires en Métal à plus de 95%Compris entre 15 kg et 20 kg exclus | L145: 1.7 | M145: =VLOOKUP(Tableau13[[#This Row],[Tarif HT]],'Codes éco-part'!C:E,3,FALSE) -> 256 | N145: =Tableau13[[#This Row],[Tarif HT]]*1.2 -> 2.04
A146: 31 | B146: =VLOOKUP(A146,'Comprendre la codification'!$A$13:$B$16,2,FALSE) -> Jouets | C146: 207 | D146: =VLOOKUP(C146,'Comprendre la codification'!$D$13:$E$50,2,FALSE) -> Loisirs créatifs jouets & accessoires | E146: 28 | F146: =VLOOKUP(E146,'Comprendre la codification'!$G$13:$H$69,2,FALSE) -> Métal à plus de 95% | G146: 058 | H146: =VLOOKUP(G146,'Comprendre la codification'!$J$13:$K$35,2,FALSE) -> Compris entre 20 kg et 25 kg exclus | J146: 31207280580 | K146: Jouets - Loisirs créatifs jouets & accessoires en Métal à plus de 95%Compris entre 20 kg et 25 kg exclus | L146: 1.74 | M146: =VLOOKUP(Tableau13[[#This Row],[Tarif HT]],'Codes éco-part'!C:E,3,FALSE) -> 394 | N146: =Tableau13[[#This Row],[Tarif HT]]*1.2 -> 2.088
A147: 31 | B147: =VLOOKUP(A147,'Comprendre la codification'!$A$13:$B$16,2,FALSE) -> Jouets | C147: 207 | D147: =VLOOKUP(C147,'Comprendre la codification'!$D$13:$E$50,2,FALSE) -> Loisirs créatifs jouets & accessoires | E147: 28 | F147: =VLOOKUP(E147,'Comprendre la codification'!$G$13:$H$69,2,FALSE) -> Métal à plus de 95% | G147: 059 | H147: =VLOOKUP(G147,'Comprendre la codification'!$J$13:$K$35,2,FALSE) -> Compris entre 25 kg et 30 kg exclus | J147: 31207280590 | K147: Jouets - Loisirs créatifs jouets & accessoires en Métal à plus de 95%Compris entre 25 kg et 30 kg exclus | L147: 1.92 | M147: =VLOOKUP(Tableau13[[#This Row],[Tarif HT]],'Codes éco-part'!C:E,3,FALSE) -> 060 | N147: =Tableau13[[#This Row],[Tarif HT]]*1.2 -> 2.304
A148: 31 | B148: =VLOOKUP(A148,'Comprendre la codification'!$A$13:$B$16,2,FALSE) -> Jouets | C148: 207 | D148: =VLOOKUP(C148,'Comprendre la codification'!$D$13:$E$50,2,FALSE) -> Loisirs créatifs jouets & accessoires | E148: 28 | F148: =VLOOKUP(E148,'Comprendre la codification'!$G$13:$H$69,2,FALSE) -> Métal à plus de 95% | G148: 060 | H148: =VLOOKUP(G148,'Comprendre la codification'!$J$13:$K$35,2,FALSE) -> Compris entre 40 kg et 50 kg exclus | J148: 31207280600 | K148: Jouets - Loisirs créatifs jouets & accessoires en Métal à plus de 95%Compris entre 40 kg et 50 kg exclus | L148: 2.54 | M148: =VLOOKUP(Tableau13[[#This Row],[Tarif HT]],'Codes éco-part'!C:E,3,FALSE) -> 338 | N148: =Tableau13[[#This Row],[Tarif HT]]*1.2 -> 3.048
A149: 31 | B149: =VLOOKUP(A149,'Comprendre la codification'!$A$13:$B$16,2,FALSE) -> Jouets | C149: 207 | D149: =VLOOKUP(C149,'Comprendre la codification'!$D$13:$E$50,2,FALSE) -> Loisirs créatifs jouets & accessoires | E149: 28 | F149: =VLOOKUP(E149,'Comprendre la codification'!$G$13:$H$69,2,FALSE) -> Métal à plus de 95% | G149: 082 | H149: =VLOOKUP(G149,'Comprendre la codification'!$J$13:$K$35,2,FALSE) -> supérieur à 250 kg | J149: 31207280820 | K149: Jouets - Loisirs créatifs jouets & accessoires en Métal à plus de 95%supérieur à 250 kg | L149: 9.68 | M149: =VLOOKUP(Tableau13[[#This Row],[Tarif HT]],'Codes éco-part'!C:E,3,FALSE) -> 395 | N149: =Tableau13[[#This Row],[Tarif HT]]*1.2 -> 11.616
A150: 31 | B150: =VLOOKUP(A150,'Comprendre la codification'!$A$13:$B$16,2,FALSE) -> Jouets | C150: 207 | D150: =VLOOKUP(C150,'Comprendre la codification'!$D$13:$E$50,2,FALSE) -> Loisirs créatifs jouets & accessoires | E150: 28 | F150: =VLOOKUP(E150,'Comprendre la codification'!$G$13:$H$69,2,FALSE) -> Métal à plus de 95% | G150: 083 | H150: =VLOOKUP(G150,'Comprendre la codification'!$J$13:$K$35,2,FALSE) -> inférieur strictement à 0,1 kg | J150: 31207280830 | K150: Jouets - Loisirs créatifs jouets & accessoires en Métal à plus de 95%inférieur strictement à 0,1 kg | L150: 0.01 | M150: =VLOOKUP(Tableau13[[#This Row],[Tarif HT]],'Codes éco-part'!C:E,3,FALSE) -> 260 | N150: =Tableau13[[#This Row],[Tarif HT]]*1.2 -> 0.012
A151: 31 | B151: =VLOOKUP(A151,'Comprendre la codification'!$A$13:$B$16,2,FALSE) -> Jouets | C151: 207 | D151: =VLOOKUP(C151,'Comprendre la codification'!$D$13:$E$50,2,FALSE) -> Loisirs créatifs jouets & accessoires | E151: 28 | F151: =VLOOKUP(E151,'Comprendre la codification'!$G$13:$H$69,2,FALSE) -> Métal à plus de 95% | G151: 084 | H151: =VLOOKUP(G151,'Comprendre la codification'!$J$13:$K$35,2,FALSE) -> Compris entre 0,1 kg et 0,2 kg exclus | J151: 31207280840 | K151: Jouets - Loisirs créatifs jouets & accessoires en Métal à plus de 95%Compris entre 0,1 kg et 0,2 kg exclus | L151: 0.02 | M151: =VLOOKUP(Tableau13[[#This Row],[Tarif HT]],'Codes éco-part'!C:E,3,FALSE) -> 047 | N151: =Tableau13[[#This Row],[Tarif HT]]*1.2 -> 0.024
A152: 31 | B152: =VLOOKUP(A152,'Comprendre la codification'!$A$13:$B$16,2,FALSE) -> Jouets | C152: 207 | D152: =VLOOKUP(C152,'Comprendre la codification'!$D$13:$E$50,2,FALSE) -> Loisirs créatifs jouets & accessoires | E152: 28 | F152: =VLOOKUP(E152,'Comprendre la codification'!$G$13:$H$69,2,FALSE) -> Métal à plus de 95% | G152: 085 | H152: =VLOOKUP(G152,'Comprendre la codification'!$J$13:$K$35,2,FALSE) -> Compris entre 0,2 kg et 0,3 kg exclus | J152: 31207280850 | K152: Jouets - Loisirs créatifs jouets & accessoires en Métal à plus de 95%Compris entre 0,2 kg et 0,3 kg exclus | L152: 0.03 | M152: =VLOOKUP(Tableau13[[#This Row],[Tarif HT]],'Codes éco-part'!C:E,3,FALSE) -> 092 | N152: =Tableau13[[#This Row],[Tarif HT]]*1.2 -> 0.036
A153: 31 | B153: =VLOOKUP(A153,'Comprendre la codification'!$A$13:$B$16,2,FALSE) -> Jouets | C153: 207 | D153: =VLOOKUP(C153,'Comprendre la codification'!$D$13:$E$50,2,FALSE) -> Loisirs créatifs jouets & accessoires | E153: 28 | F153: =VLOOKUP(E153,'Comprendre la codification'!$G$13:$H$69,2,FALSE) -> Métal à plus de 95% | G153: 086 | H153: =VLOOKUP(G153,'Comprendre la codification'!$J$13:$K$35,2,FALSE) -> Compris entre 0,3 kg et 0,4 kg exclus | J153: 31207280860 | K153: Jouets - Loisirs créatifs jouets & accessoires en Métal à plus de 95%Compris entre 0,3 kg et 0,4 kg exclus | L153: 0.04 | M153: =VLOOKUP(Tableau13[[#This Row],[Tarif HT]],'Codes éco-part'!C:E,3,FALSE) -> 002 | N153: =Tableau13[[#This Row],[Tarif HT]]*1.2 -> 0.048
A154: 31 | B154: =VLOOKUP(A154,'Comprendre la codification'!$A$13:$B$16,2,FALSE) -> Jouets | C154: 207 | D154: =VLOOKUP(C154,'Comprendre la codification'!$D$13:$E$50,2,FALSE) -> Loisirs créatifs jouets & accessoires | E154: 28 | F154: =VLOOKUP(E154,'Comprendre la codification'!$G$13:$H$69,2,FALSE) -> Métal à plus de 95% | G154: 087 | H154: =VLOOKUP(G154,'Comprendre la codification'!$J$13:$K$35,2,FALSE) -> Compris entre 0,4 kg et 0,5 kg exclus | J154: 31207280870 | K154: Jouets - Loisirs créatifs jouets & accessoires en Métal à plus de 95%Compris entre 0,4 kg et 0,5 kg exclus | L154: 0.05 | M154: =VLOOKUP(Tableau13[[#This Row],[Tarif HT]],'Codes éco-part'!C:E,3,FALSE) -> 048 | N154: =Tableau13[[#This Row],[Tarif HT]]*1.2 -> 0.06
A155: 31 | B155: =VLOOKUP(A155,'Comprendre la codification'!$A$13:$B$16,2,FALSE) -> Jouets | C155: 207 | D155: =VLOOKUP(C155,'Comprendre la codification'!$D$13:$E$50,2,FALSE) -> Loisirs créatifs jouets & accessoires | E155: 28 | F155: =VLOOKUP(E155,'Comprendre la codification'!$G$13:$H$69,2,FALSE) -> Métal à plus de 95% | G155: 088 | H155: =VLOOKUP(G155,'Comprendre la codification'!$J$13:$K$35,2,FALSE) -> Compris entre 50 kg et 100 kg exclus | J155: 31207280880 | K155: Jouets - Loisirs créatifs jouets & accessoires en Métal à plus de 95%Compris entre 50 kg et 100 kg exclus | L155: 3.81 | M155: =VLOOKUP(Tableau13[[#This Row],[Tarif HT]],'Codes éco-part'!C:E,3,FALSE) -> 396 | N155: =Tableau13[[#This Row],[Tarif HT]]*1.2 -> 4.572
A156: 31 | B156: =VLOOKUP(A156,'Comprendre la codification'!$A$13:$B$16,2,FALSE) -> Jouets | C156: 208 | D156: =VLOOKUP(C156,'Comprendre la codification'!$D$13:$E$50,2,FALSE) -> Jouets d'exploration et autres jouets & accessoires | E156: 28 | F156: =VLOOKUP(E156,'Comprendre la codification'!$G$13:$H$69,2,FALSE) -> Métal à plus de 95% | G156: 021 | H156: =VLOOKUP(G156,'Comprendre la codification'!$J$13:$K$35,2,FALSE) -> Compris entre 0,5 kg et 1 kg exclus | J156: 31208280210 | K156: Jouets - Jouets d'exploration et autres jouets & accessoires en Métal à plus de 95%Compris entre 0,5 kg et 1 kg exclus | L156: 0.08 | M156: =VLOOKUP(Tableau13[[#This Row],[Tarif HT]],'Codes éco-part'!C:E,3,FALSE) -> 003 | N156: =Tableau13[[#This Row],[Tarif HT]]*1.2 -> 0.096
A157: 31 | B157: =VLOOKUP(A157,'Comprendre la codification'!$A$13:$B$16,2,FALSE) -> Jouets | C157: 208 | D157: =VLOOKUP(C157,'Comprendre la codification'!$D$13:$E$50,2,FALSE) -> Jouets d'exploration et autres jouets & accessoires | E157: 28 | F157: =VLOOKUP(E157,'Comprendre la codification'!$G$13:$H$69,2,FALSE) -> Métal à plus de 95% | G157: 022 | H157: =VLOOKUP(G157,'Comprendre la codification'!$J$13:$K$35,2,FALSE) -> Compris entre 1 kg et 2 kg exclus | J157: 31208280220 | K157: Jouets - Jouets d'exploration et autres jouets & accessoires en Métal à plus de 95%Compris entre 1 kg et 2 kg exclus | L157: 0.15 | M157: =VLOOKUP(Tableau13[[#This Row],[Tarif HT]],'Codes éco-part'!C:E,3,FALSE) -> 050 | N157: =Tableau13[[#This Row],[Tarif HT]]*1.2 -> 0.18
A158: 31 | B158: =VLOOKUP(A158,'Comprendre la codification'!$A$13:$B$16,2,FALSE) -> Jouets | C158: 208 | D158: =VLOOKUP(C158,'Comprendre la codification'!$D$13:$E$50,2,FALSE) -> Jouets d'exploration et autres jouets & accessoires | E158: 28 | F158: =VLOOKUP(E158,'Comprendre la codification'!$G$13:$H$69,2,FALSE) -> Métal à plus de 95% | G158: 027 | H158: =VLOOKUP(G158,'Comprendre la codification'!$J$13:$K$35,2,FALSE) -> Compris entre 30 kg et 40 kg exclus | J158: 31208280270 | K158: Jouets - Jouets d'exploration et autres jouets & accessoires en Métal à plus de 95%Compris entre 30 kg et 40 kg exclus | L158: 2.2 | M158: =VLOOKUP(Tableau13[[#This Row],[Tarif HT]],'Codes éco-part'!C:E,3,FALSE) -> 390 | N158: =Tableau13[[#This Row],[Tarif HT]]*1.2 -> 2.64
A159: 31 | B159: =VLOOKUP(A159,'Comprendre la codification'!$A$13:$B$16,2,FALSE) -> Jouets | C159: 208 | D159: =VLOOKUP(C159,'Comprendre la codification'!$D$13:$E$50,2,FALSE) -> Jouets d'exploration et autres jouets & accessoires | E159: 28 | F159: =VLOOKUP(E159,'Comprendre la codification'!$G$13:$H$69,2,FALSE) -> Métal à plus de 95% | G159: 030 | H159: =VLOOKUP(G159,'Comprendre la codification'!$J$13:$K$35,2,FALSE) -> Compris entre 100 kg et 150 kg exclus | J159: 31208280300 | K159: Jouets - Jouets d'exploration et autres jouets & accessoires en Métal à plus de 95%Compris entre 100 kg et 150 kg exclus | L159: 4.84 | M159: =VLOOKUP(Tableau13[[#This Row],[Tarif HT]],'Codes éco-part'!C:E,3,FALSE) -> 391 | N159: =Tableau13[[#This Row],[Tarif HT]]*1.2 -> 5.808
A160: 31 | B160: =VLOOKUP(A160,'Comprendre la codification'!$A$13:$B$16,2,FALSE) -> Jouets | C160: 208 | D160: =VLOOKUP(C160,'Comprendre la codification'!$D$13:$E$50,2,FALSE) -> Jouets d'exploration et autres jouets & accessoires | E160: 28 | F160: =VLOOKUP(E160,'Comprendre la codification'!$G$13:$H$69,2,FALSE) -> Métal à plus de 95% | G160: 031 | H160: =VLOOKUP(G160,'Comprendre la codification'!$J$13:$K$35,2,FALSE) -> Compris entre 150 kg et 200 kg exclus | J160: 31208280310 | K160: Jouets - Jouets d'exploration et autres jouets & accessoires en Métal à plus de 95%Compris entre 150 kg et 200 kg exclus | L160: 6.78 | M160: =VLOOKUP(Tableau13[[#This Row],[Tarif HT]],'Codes éco-part'!C:E,3,FALSE) -> 392 | N160: =Tableau13[[#This Row],[Tarif HT]]*1.2 -> 8.136
A161: 31 | B161: =VLOOKUP(A161,'Comprendre la codification'!$A$13:$B$16,2,FALSE) -> Jouets | C161: 208 | D161: =VLOOKUP(C161,'Comprendre la codification'!$D$13:$E$50,2,FALSE) -> Jouets d'exploration et autres jouets & accessoires | E161: 28 | F161: =VLOOKUP(E161,'Comprendre la codification'!$G$13:$H$69,2,FALSE) -> Métal à plus de 95% | G161: 032 | H161: =VLOOKUP(G161,'Comprendre la codification'!$J$13:$K$35,2,FALSE) -> Compris entre 200 kg et 250 kg exclus | J161: 31208280320 | K161: Jouets - Jouets d'exploration et autres jouets & accessoires en Métal à plus de 95%Compris entre 200 kg et 250 kg exclus | L161: 8.71 | M161: =VLOOKUP(Tableau13[[#This Row],[Tarif HT]],'Codes éco-part'!C:E,3,FALSE) -> 393 | N161: =Tableau13[[#This Row],[Tarif HT]]*1.2 -> 10.452
A162: 31 | B162: =VLOOKUP(A162,'Comprendre la codification'!$A$13:$B$16,2,FALSE) -> Jouets | C162: 208 | D162: =VLOOKUP(C162,'Comprendre la codification'!$D$13:$E$50,2,FALSE) -> Jouets d'exploration et autres jouets & accessoires | E162: 28 | F162: =VLOOKUP(E162,'Comprendre la codification'!$G$13:$H$69,2,FALSE) -> Métal à plus de 95% | G162: 052 | H162: =VLOOKUP(G162,'Comprendre la codification'!$J$13:$K$35,2,FALSE) -> Compris entre 2 kg et 3 kg exclus | J162: 31208280520 | K162: Jouets - Jouets d'exploration et autres jouets & accessoires en Métal à plus de 95%Compris entre 2 kg et 3 kg exclus | L162: 0.25 | M162: =VLOOKUP(Tableau13[[#This Row],[Tarif HT]],'Codes éco-part'!C:E,3,FALSE) -> 095 | N162: =Tableau13[[#This Row],[Tarif HT]]*1.2 -> 0.3
A163: 31 | B163: =VLOOKUP(A163,'Comprendre la codification'!$A$13:$B$16,2,FALSE) -> Jouets | C163: 208 | D163: =VLOOKUP(C163,'Comprendre la codification'!$D$13:$E$50,2,FALSE) -> Jouets d'exploration et autres jouets & accessoires | E163: 28 | F163: =VLOOKUP(E163,'Comprendre la codification'!$G$13:$H$69,2,FALSE) -> Métal à plus de 95% | G163: 053 | H163: =VLOOKUP(G163,'Comprendre la codification'!$J$13:$K$35,2,FALSE) -> Compris entre 3 kg et 5 kg exclus | J163: 31208280530 | K163: Jouets - Jouets d'exploration et autres jouets & accessoires en Métal à plus de 95%Compris entre 3 kg et 5 kg exclus | L163: 0.39 | M163: =VLOOKUP(Tableau13[[#This Row],[Tarif HT]],'Codes éco-part'!C:E,3,FALSE) -> 253 | N163: =Tableau13[[#This Row],[Tarif HT]]*1.2 -> 0.468
A164: 31 | B164: =VLOOKUP(A164,'Comprendre la codification'!$A$13:$B$16,2,FALSE) -> Jouets | C164: 208 | D164: =VLOOKUP(C164,'Comprendre la codification'!$D$13:$E$50,2,FALSE) -> Jouets d'exploration et autres jouets & accessoires | E164: 28 | F164: =VLOOKUP(E164,'Comprendre la codification'!$G$13:$H$69,2,FALSE) -> Métal à plus de 95% | G164: 054 | H164: =VLOOKUP(G164,'Comprendre la codification'!$J$13:$K$35,2,FALSE) -> Compris entre 5 kg et 7 kg exclus | J164: 31208280540 | K164: Jouets - Jouets d'exploration et autres jouets & accessoires en Métal à plus de 95%Compris entre 5 kg et 7 kg exclus | L164: 0.59 | M164: =VLOOKUP(Tableau13[[#This Row],[Tarif HT]],'Codes éco-part'!C:E,3,FALSE) -> 254 | N164: =Tableau13[[#This Row],[Tarif HT]]*1.2 -> 0.708
A165: 31 | B165: =VLOOKUP(A165,'Comprendre la codification'!$A$13:$B$16,2,FALSE) -> Jouets | C165: 208 | D165: =VLOOKUP(C165,'Comprendre la codification'!$D$13:$E$50,2,FALSE) -> Jouets d'exploration et autres jouets & accessoires | E165: 28 | F165: =VLOOKUP(E165,'Comprendre la codification'!$G$13:$H$69,2,FALSE) -> Métal à plus de 95% | G165: 055 | H165: =VLOOKUP(G165,'Comprendre la codification'!$J$13:$K$35,2,FALSE) -> Compris entre 7 kg et 10 kg exclus | J165: 31208280550 | K165: Jouets - Jouets d'exploration et autres jouets & accessoires en Métal à plus de 95%Compris entre 7 kg et 10 kg exclus | L165: 0.73 | M165: =VLOOKUP(Tableau13[[#This Row],[Tarif HT]],'Codes éco-part'!C:E,3,FALSE) -> 255 | N165: =Tableau13[[#This Row],[Tarif HT]]*1.2 -> 0.876
A166: 31 | B166: =VLOOKUP(A166,'Comprendre la codification'!$A$13:$B$16,2,FALSE) -> Jouets | C166: 208 | D166: =VLOOKUP(C166,'Comprendre la codification'!$D$13:$E$50,2,FALSE) -> Jouets d'exploration et autres jouets & accessoires | E166: 28 | F166: =VLOOKUP(E166,'Comprendre la codification'!$G$13:$H$69,2,FALSE) -> Métal à plus de 95% | G166: 056 | H166: =VLOOKUP(G166,'Comprendre la codification'!$J$13:$K$35,2,FALSE) -> Compris entre 10 kg et 15 kg exclus | J166: 31208280560 | K166: Jouets - Jouets d'exploration et autres jouets & accessoires en Métal à plus de 95%Compris entre 10 kg et 15 kg exclus | L166: 1.21 | M166: =VLOOKUP(Tableau13[[#This Row],[Tarif HT]],'Codes éco-part'!C:E,3,FALSE) -> 114 | N166: =Tableau13[[#This Row],[Tarif HT]]*1.2 -> 1.452
A167: 31 | B167: =VLOOKUP(A167,'Comprendre la codification'!$A$13:$B$16,2,FALSE) -> Jouets | C167: 208 | D167: =VLOOKUP(C167,'Comprendre la codification'!$D$13:$E$50,2,FALSE) -> Jouets d'exploration et autres jouets & accessoires | E167: 28 | F167: =VLOOKUP(E167,'Comprendre la codification'!$G$13:$H$69,2,FALSE) -> Métal à plus de 95% | G167: 057 | H167: =VLOOKUP(G167,'Comprendre la codification'!$J$13:$K$35,2,FALSE) -> Compris entre 15 kg et 20 kg exclus | J167: 31208280570 | K167: Jouets - Jouets d'exploration et autres jouets & accessoires en Métal à plus de 95%Compris entre 15 kg et 20 kg exclus | L167: 1.7 | M167: =VLOOKUP(Tableau13[[#This Row],[Tarif HT]],'Codes éco-part'!C:E,3,FALSE) -> 256 | N167: =Tableau13[[#This Row],[Tarif HT]]*1.2 -> 2.04
A168: 31 | B168: =VLOOKUP(A168,'Comprendre la codification'!$A$13:$B$16,2,FALSE) -> Jouets | C168: 208 | D168: =VLOOKUP(C168,'Comprendre la codification'!$D$13:$E$50,2,FALSE) -> Jouets d'exploration et autres jouets & accessoires | E168: 28 | F168: =VLOOKUP(E168,'Comprendre la codification'!$G$13:$H$69,2,FALSE) -> Métal à plus de 95% | G168: 058 | H168: =VLOOKUP(G168,'Comprendre la codification'!$J$13:$K$35,2,FALSE) -> Compris entre 20 kg et 25 kg exclus | J168: 31208280580 | K168: Jouets - Jouets d'exploration et autres jouets & accessoires en Métal à plus de 95%Compris entre 20 kg et 25 kg exclus | L168: 1.74 | M168: =VLOOKUP(Tableau13[[#This Row],[Tarif HT]],'Codes éco-part'!C:E,3,FALSE) -> 394 | N168: =Tableau13[[#This Row],[Tarif HT]]*1.2 -> 2.088
A169: 31 | B169: =VLOOKUP(A169,'Comprendre la codification'!$A$13:$B$16,2,FALSE) -> Jouets | C169: 208 | D169: =VLOOKUP(C169,'Comprendre la codification'!$D$13:$E$50,2,FALSE) -> Jouets d'exploration et autres jouets & accessoires | E169: 28 | F169: =VLOOKUP(E169,'Comprendre la codification'!$G$13:$H$69,2,FALSE) -> Métal à plus de 95% | G169: 059 | H169: =VLOOKUP(G169,'Comprendre la codification'!$J$13:$K$35,2,FALSE) -> Compris entre 25 kg et 30 kg exclus | J169: 31208280590 | K169: Jouets - Jouets d'exploration et autres jouets & accessoires en Métal à plus de 95%Compris entre 25 kg et 30 kg exclus | L169: 1.92 | M169: =VLOOKUP(Tableau13[[#This Row],[Tarif HT]],'Codes éco-part'!C:E,3,FALSE) -> 060 | N169: =Tableau13[[#This Row],[Tarif HT]]*1.2 -> 2.304
A170: 31 | B170: =VLOOKUP(A170,'Comprendre la codification'!$A$13:$B$16,2,FALSE) -> Jouets | C170: 208 | D170: =VLOOKUP(C170,'Comprendre la codification'!$D$13:$E$50,2,FALSE) -> Jouets d'exploration et autres jouets & accessoires | E170: 28 | F170: =VLOOKUP(E170,'Comprendre la codification'!$G$13:$H$69,2,FALSE) -> Métal à plus de 95% | G170: 060 | H170: =VLOOKUP(G170,'Comprendre la codification'!$J$13:$K$35,2,FALSE) -> Compris entre 40 kg et 50 kg exclus | J170: 31208280600 | K170: Jouets - Jouets d'exploration et autres jouets & accessoires en Métal à plus de 95%Compris entre 40 kg et 50 kg exclus | L170: 2.54 | M170: =VLOOKUP(Tableau13[[#This Row],[Tarif HT]],'Codes éco-part'!C:E,3,FALSE) -> 338 | N170: =Tableau13[[#This Row],[Tarif HT]]*1.2 -> 3.048
A171: 31 | B171: =VLOOKUP(A171,'Comprendre la codification'!$A$13:$B$16,2,FALSE) -> Jouets | C171: 208 | D171: =VLOOKUP(C171,'Comprendre la codification'!$D$13:$E$50,2,FALSE) -> Jouets d'exploration et autres jouets & accessoires | E171: 28 | F171: =VLOOKUP(E171,'Comprendre la codification'!$G$13:$H$69,2,FALSE) -> Métal à plus de 95% | G171: 082 | H171: =VLOOKUP(G171,'Comprendre la codification'!$J$13:$K$35,2,FALSE) -> supérieur à 250 kg | J171: 31208280820 | K171: Jouets - Jouets d'exploration et autres jouets & accessoires en Métal à plus de 95%supérieur à 250 kg | L171: 9.68 | M171: =VLOOKUP(Tableau13[[#This Row],[Tarif HT]],'Codes éco-part'!C:E,3,FALSE) -> 395 | N171: =Tableau13[[#This Row],[Tarif HT]]*1.2 -> 11.616
A172: 31 | B172: =VLOOKUP(A172,'Comprendre la codification'!$A$13:$B$16,2,FALSE) -> Jouets | C172: 208 | D172: =VLOOKUP(C172,'Comprendre la codification'!$D$13:$E$50,2,FALSE) -> Jouets d'exploration et autres jouets & accessoires | E172: 28 | F172: =VLOOKUP(E172,'Comprendre la codification'!$G$13:$H$69,2,FALSE) -> Métal à plus de 95% | G172: 083 | H172: =VLOOKUP(G172,'Comprendre la codification'!$J$13:$K$35,2,FALSE) -> inférieur strictement à 0,1 kg | J172: 31208280830 | K172: Jouets - Jouets d'exploration et autres jouets & accessoires en Métal à plus de 95%inférieur strictement à 0,1 kg | L172: 0.01 | M172: =VLOOKUP(Tableau13[[#This Row],[Tarif HT]],'Codes éco-part'!C:E,3,FALSE) -> 260 | N172: =Tableau13[[#This Row],[Tarif HT]]*1.2 -> 0.012
A173: 31 | B173: =VLOOKUP(A173,'Comprendre la codification'!$A$13:$B$16,2,FALSE) -> Jouets | C173: 208 | D173: =VLOOKUP(C173,'Comprendre la codification'!$D$13:$E$50,2,FALSE) -> Jouets d'exploration et autres jouets & accessoires | E173: 28 | F173: =VLOOKUP(E173,'Comprendre la codification'!$G$13:$H$69,2,FALSE) -> Métal à plus de 95% | G173: 084 | H173: =VLOOKUP(G173,'Comprendre la codification'!$J$13:$K$35,2,FALSE) -> Compris entre 0,1 kg et 0,2 kg exclus | J173: 31208280840 | K173: Jouets - Jouets d'exploration et autres jouets & accessoires en Métal à plus de 95%Compris entre 0,1 kg et 0,2 kg exclus | L173: 0.02 | M173: =VLOOKUP(Tableau13[[#This Row],[Tarif HT]],'Codes éco-part'!C:E,3,FALSE) -> 047 | N173: =Tableau13[[#This Row],[Tarif HT]]*1.2 -> 0.024
A174: 31 | B174: =VLOOKUP(A174,'Comprendre la codification'!$A$13:$B$16,2,FALSE) -> Jouets | C174: 208 | D174: =VLOOKUP(C174,'Comprendre la codification'!$D$13:$E$50,2,FALSE) -> Jouets d'exploration et autres jouets & accessoires | E174: 28 | F174: =VLOOKUP(E174,'Comprendre la codification'!$G$13:$H$69,2,FALSE) -> Métal à plus de 95% | G174: 085 | H174: =VLOOKUP(G174,'Comprendre la codification'!$J$13:$K$35,2,FALSE) -> Compris entre 0,2 kg et 0,3 kg exclus | J174: 31208280850 | K174: Jouets - Jouets d'exploration et autres jouets & accessoires en Métal à plus de 95%Compris entre 0,2 kg et 0,3 kg exclus | L174: 0.03 | M174: =VLOOKUP(Tableau13[[#This Row],[Tarif HT]],'Codes éco-part'!C:E,3,FALSE) -> 092 | N174: =Tableau13[[#This Row],[Tarif HT]]*1.2 -> 0.036
A175: 31 | B175: =VLOOKUP(A175,'Comprendre la codification'!$A$13:$B$16,2,FALSE) -> Jouets | C175: 208 | D175: =VLOOKUP(C175,'Comprendre la codification'!$D$13:$E$50,2,FALSE) -> Jouets d'exploration et autres jouets & accessoires | E175: 28 | F175: =VLOOKUP(E175,'Comprendre la codification'!$G$13:$H$69,2,FALSE) -> Métal à plus de 95% | G175: 086 | H175: =VLOOKUP(G175,'Comprendre la codification'!$J$13:$K$35,2,FALSE) -> Compris entre 0,3 kg et 0,4 kg exclus | J175: 31208280860 | K175: Jouets - Jouets d'exploration et autres jouets & accessoires en Métal à plus de 95%Compris entre 0,3 kg et 0,4 kg exclus | L175: 0.04 | M175: =VLOOKUP(Tableau13[[#This Row],[Tarif HT]],'Codes éco-part'!C:E,3,FALSE) -> 002 | N175: =Tableau13[[#This Row],[Tarif HT]]*1.2 -> 0.048
A176: 31 | B176: =VLOOKUP(A176,'Comprendre la codification'!$A$13:$B$16,2,FALSE) -> Jouets | C176: 208 | D176: =VLOOKUP(C176,'Comprendre la codification'!$D$13:$E$50,2,FALSE) -> Jouets d'exploration et autres jouets & accessoires | E176: 28 | F176: =VLOOKUP(E176,'Comprendre la codification'!$G$13:$H$69,2,FALSE) -> Métal à plus de 95% | G176: 087 | H176: =VLOOKUP(G176,'Comprendre la codification'!$J$13:$K$35,2,FALSE) -> Compris entre 0,4 kg et 0,5 kg exclus | J176: 31208280870 | K176: Jouets - Jouets d'exploration et autres jouets & accessoires en Métal à plus de 95%Compris entre 0,4 kg et 0,5 kg exclus | L176: 0.05 | M176: =VLOOKUP(Tableau13[[#This Row],[Tarif HT]],'Codes éco-part'!C:E,3,FALSE) -> 048 | N176: =Tableau13[[#This Row],[Tarif HT]]*1.2 -> 0.06
A177: 31 | B177: =VLOOKUP(A177,'Comprendre la codification'!$A$13:$B$16,2,FALSE) -> Jouets | C177: 208 | D177: =VLOOKUP(C177,'Comprendre la codification'!$D$13:$E$50,2,FALSE) -> Jouets d'exploration et autres jouets & accessoires | E177: 28 | F177: =VLOOKUP(E177,'Comprendre la codification'!$G$13:$H$69,2,FALSE) -> Métal à plus de 95% | G177: 088 | H177: =VLOOKUP(G177,'Comprendre la codification'!$J$13:$K$35,2,FALSE) -> Compris entre 50 kg et 100 kg exclus | J177: 31208280880 | K177: Jouets - Jouets d'exploration et autres jouets & accessoires en Métal à plus de 95%Compris entre 50 kg et 100 kg exclus | L177: 3.81 | M177: =VLOOKUP(Tableau13[[#This Row],[Tarif HT]],'Codes éco-part'!C:E,3,FALSE) -> 396 | N177: =Tableau13[[#This Row],[Tarif HT]]*1.2 -> 4.572
A178: 31 | B178: =VLOOKUP(A178,'Comprendre la codification'!$A$13:$B$16,2,FALSE) -> Jouets | C178: 201 | D178: =VLOOKUP(C178,'Comprendre la codification'!$D$13:$E$50,2,FALSE) -> Figurines d'action & accessoires | E178: 30 | F178: =VLOOKUP(E178,'Comprendre la codification'!$G$13:$H$69,2,FALSE) -> Métal ferreux à plus de 95% | G178: 021 | H178: =VLOOKUP(G178,'Comprendre la codification'!$J$13:$K$35,2,FALSE) -> Compris entre 0,5 kg et 1 kg exclus | J178: 31201300210 | K178: Jouets - Figurines d'action & accessoires en Métal ferreux à plus de 95%Compris entre 0,5 kg et 1 kg exclus | L178: 0.08 | M178: =VLOOKUP(Tableau13[[#This Row],[Tarif HT]],'Codes éco-part'!C:E,3,FALSE) -> 003 | N178: =Tableau13[[#This Row],[Tarif HT]]*1.2 -> 0.096
A179: 31 | B179: =VLOOKUP(A179,'Comprendre la codification'!$A$13:$B$16,2,FALSE) -> Jouets | C179: 201 | D179: =VLOOKUP(C179,'Comprendre la codification'!$D$13:$E$50,2,FALSE) -> Figurines d'action & accessoires | E179: 30 | F179: =VLOOKUP(E179,'Comprendre la codification'!$G$13:$H$69,2,FALSE) -> Métal ferreux à plus de 95% | G179: 022 | H179: =VLOOKUP(G179,'Comprendre la codification'!$J$13:$K$35,2,FALSE) -> Compris entre 1 kg et 2 kg exclus | J179: 31201300220 | K179: Jouets - Figurines d'action & accessoires en Métal ferreux à plus de 95%Compris entre 1 kg et 2 kg exclus | L179: 0.15 | M179: =VLOOKUP(Tableau13[[#This Row],[Tarif HT]],'Codes éco-part'!C:E,3,FALSE) -> 050 | N179: =Tableau13[[#This Row],[Tarif HT]]*1.2 -> 0.18
A180: 31 | B180: =VLOOKUP(A180,'Comprendre la codification'!$A$13:$B$16,2,FALSE) -> Jouets | C180: 201 | D180: =VLOOKUP(C180,'Comprendre la codification'!$D$13:$E$50,2,FALSE) -> Figurines d'action & accessoires | E180: 30 | F180: =VLOOKUP(E180,'Comprendre la codification'!$G$13:$H$69,2,FALSE) -> Métal ferreux à plus de 95% | G180: 027 | H180: =VLOOKUP(G180,'Comprendre la codification'!$J$13:$K$35,2,FALSE) -> Compris entre 30 kg et 40 kg exclus | J180: 31201300270 | K180: Jouets - Figurines d'action & accessoires en Métal ferreux à plus de 95%Compris entre 30 kg et 40 kg exclus | L180: 2.2 | M180: =VLOOKUP(Tableau13[[#This Row],[Tarif HT]],'Codes éco-part'!C:E,3,FALSE) -> 390 | N180: =Tableau13[[#This Row],[Tarif HT]]*1.2 -> 2.64
A181: 31 | B181: =VLOOKUP(A181,'Comprendre la codification'!$A$13:$B$16,2,FALSE) -> Jouets | C181: 201 | D181: =VLOOKUP(C181,'Comprendre la codification'!$D$13:$E$50,2,FALSE) -> Figurines d'action & accessoires | E181: 30 | F181: =VLOOKUP(E181,'Comprendre la codification'!$G$13:$H$69,2,FALSE) -> Métal ferreux à plus de 95% | G181: 030 | H181: =VLOOKUP(G181,'Comprendre la codification'!$J$13:$K$35,2,FALSE) -> Compris entre 100 kg et 150 kg exclus | J181: 31201300300 | K181: Jouets - Figurines d'action & accessoires en Métal ferreux à plus de 95%Compris entre 100 kg et 150 kg exclus | L181: 4.84 | M181: =VLOOKUP(Tableau13[[#This Row],[Tarif HT]],'Codes éco-part'!C:E,3,FALSE) -> 391 | N181: =Tableau13[[#This Row],[Tarif HT]]*1.2 -> 5.808
A182: 31 | B182: =VLOOKUP(A182,'Comprendre la codification'!$A$13:$B$16,2,FALSE) -> Jouets | C182: 201 | D182: =VLOOKUP(C182,'Comprendre la codification'!$D$13:$E$50,2,FALSE) -> Figurines d'action & accessoires | E182: 30 | F182: =VLOOKUP(E182,'Comprendre la codification'!$G$13:$H$69,2,FALSE) -> Métal ferreux à plus de 95% | G182: 031 | H182: =VLOOKUP(G182,'Comprendre la codification'!$J$13:$K$35,2,FALSE) -> Compris entre 150 kg et 200 kg exclus | J182: 31201300310 | K182: Jouets - Figurines d'action & accessoires en Métal ferreux à plus de 95%Compris entre 150 kg et 200 kg exclus | L182: 6.78 | M182: =VLOOKUP(Tableau13[[#This Row],[Tarif HT]],'Codes éco-part'!C:E,3,FALSE) -> 392 | N182: =Tableau13[[#This Row],[Tarif HT]]*1.2 -> 8.136
A183: 31 | B183: =VLOOKUP(A183,'Comprendre la codification'!$A$13:$B$16,2,FALSE) -> Jouets | C183: 201 | D183: =VLOOKUP(C183,'Comprendre la codification'!$D$13:$E$50,2,FALSE) -> Figurines d'action & accessoires | E183: 30 | F183: =VLOOKUP(E183,'Comprendre la codification'!$G$13:$H$69,2,FALSE) -> Métal ferreux à plus de 95% | G183: 032 | H183: =VLOOKUP(G183,'Comprendre la codification'!$J$13:$K$35,2,FALSE) -> Compris entre 200 kg et 250 kg exclus | J183: 31201300320 | K183: Jouets - Figurines d'action & accessoires en Métal ferreux à plus de 95%Compris entre 200 kg et 250 kg exclus | L183: 8.71 | M183: =VLOOKUP(Tableau13[[#This Row],[Tarif HT]],'Codes éco-part'!C:E,3,FALSE) -> 393 | N183: =Tableau13[[#This Row],[Tarif HT]]*1.2 -> 10.452
A184: 31 | B184: =VLOOKUP(A184,'Comprendre la codification'!$A$13:$B$16,2,FALSE) -> Jouets | C184: 201 | D184: =VLOOKUP(C184,'Comprendre la codification'!$D$13:$E$50,2,FALSE) -> Figurines d'action & accessoires | E184: 30 | F184: =VLOOKUP(E184,'Comprendre la codification'!$G$13:$H$69,2,FALSE) -> Métal ferreux à plus de 95% | G184: 052 | H184: =VLOOKUP(G184,'Comprendre la codification'!$J$13:$K$35,2,FALSE) -> Compris entre 2 kg et 3 kg exclus | J184: 31201300520 | K184: Jouets - Figurines d'action & accessoires en Métal ferreux à plus de 95%Compris entre 2 kg et 3 kg exclus | L184: 0.25 | M184: =VLOOKUP(Tableau13[[#This Row],[Tarif HT]],'Codes éco-part'!C:E,3,FALSE) -> 095 | N184: =Tableau13[[#This Row],[Tarif HT]]*1.2 -> 0.3
A185: 31 | B185: =VLOOKUP(A185,'Comprendre la codification'!$A$13:$B$16,2,FALSE) -> Jouets | C185: 201 | D185: =VLOOKUP(C185,'Comprendre la codification'!$D$13:$E$50,2,FALSE) -> Figurines d'action & accessoires | E185: 30 | F185: =VLOOKUP(E185,'Comprendre la codification'!$G$13:$H$69,2,FALSE) -> Métal ferreux à plus de 95% | G185: 053 | H185: =VLOOKUP(G185,'Comprendre la codification'!$J$13:$K$35,2,FALSE) -> Compris entre 3 kg et 5 kg exclus | J185: 31201300530 | K185: Jouets - Figurines d'action & accessoires en Métal ferreux à plus de 95%Compris entre 3 kg et 5 kg exclus | L185: 0.39 | M185: =VLOOKUP(Tableau13[[#This Row],[Tarif HT]],'Codes éco-part'!C:E,3,FALSE) -> 253 | N185: =Tableau13[[#This Row],[Tarif HT]]*1.2 -> 0.468
A186: 31 | B186: =VLOOKUP(A186,'Comprendre la codification'!$A$13:$B$16,2,FALSE) -> Jouets | C186: 201 | D186: =VLOOKUP(C186,'Comprendre la codification'!$D$13:$E$50,2,FALSE) -> Figurines d'action & accessoires | E186: 30 | F186: =VLOOKUP(E186,'Comprendre la codification'!$G$13:$H$69,2,FALSE) -> Métal ferreux à plus de 95% | G186: 054 | H186: =VLOOKUP(G186,'Comprendre la codification'!$J$13:$K$35,2,FALSE) -> Compris entre 5 kg et 7 kg exclus | J186: 31201300540 | K186: Jouets - Figurines d'action & accessoires en Métal ferreux à plus de 95%Compris entre 5 kg et 7 kg exclus | L186: 0.59 | M186: =VLOOKUP(Tableau13[[#This Row],[Tarif HT]],'Codes éco-part'!C:E,3,FALSE) -> 254 | N186: =Tableau13[[#This Row],[Tarif HT]]*1.2 -> 0.708
A187: 31 | B187: =VLOOKUP(A187,'Comprendre la codification'!$A$13:$B$16,2,FALSE) -> Jouets | C187: 201 | D187: =VLOOKUP(C187,'Comprendre la codification'!$D$13:$E$50,2,FALSE) -> Figurines d'action & accessoires | E187: 30 | F187: =VLOOKUP(E187,'Comprendre la codification'!$G$13:$H$69,2,FALSE) -> Métal ferreux à plus de 95% | G187: 055 | H187: =VLOOKUP(G187,'Comprendre la codification'!$J$13:$K$35,2,FALSE) -> Compris entre 7 kg et 10 kg exclus | J187: 31201300550 | K187: Jouets - Figurines d'action & accessoires en Métal ferreux à plus de 95%Compris entre 7 kg et 10 kg exclus | L187: 0.73 | M187: =VLOOKUP(Tableau13[[#This Row],[Tarif HT]],'Codes éco-part'!C:E,3,FALSE) -> 255 | N187: =Tableau13[[#This Row],[Tarif HT]]*1.2 -> 0.876
A188: 31 | B188: =VLOOKUP(A188,'Comprendre la codification'!$A$13:$B$16,2,FALSE) -> Jouets | C188: 201 | D188: =VLOOKUP(C188,'Comprendre la codification'!$D$13:$E$50,2,FALSE) -> Figurines d'action & accessoires | E188: 30 | F188: =VLOOKUP(E188,'Comprendre la codification'!$G$13:$H$69,2,FALSE) -> Métal ferreux à plus de 95% | G188: 056 | H188: =VLOOKUP(G188,'Comprendre la codification'!$J$13:$K$35,2,FALSE) -> Compris entre 10 kg et 15 kg exclus | J188: 31201300560 | K188: Jouets - Figurines d'action & accessoires en Métal ferreux à plus de 95%Compris entre 10 kg et 15 kg exclus | L188: 1.21 | M188: =VLOOKUP(Tableau13[[#This Row],[Tarif HT]],'Codes éco-part'!C:E,3,FALSE) -> 114 | N188: =Tableau13[[#This Row],[Tarif HT]]*1.2 -> 1.452
A189: 31 | B189: =VLOOKUP(A189,'Comprendre la codification'!$A$13:$B$16,2,FALSE) -> Jouets | C189: 201 | D189: =VLOOKUP(C189,'Comprendre la codification'!$D$13:$E$50,2,FALSE) -> Figurines d'action & accessoires | E189: 30 | F189: =VLOOKUP(E189,'Comprendre la codification'!$G$13:$H$69,2,FALSE) -> Métal ferreux à plus de 95% | G189: 057 | H189: =VLOOKUP(G189,'Comprendre la codification'!$J$13:$K$35,2,FALSE) -> Compris entre 15 kg et 20 kg exclus | J189: 31201300570 | K189: Jouets - Figurines d'action & accessoires en Métal ferreux à plus de 95%Compris entre 15 kg et 20 kg exclus | L189: 1.7 | M189: =VLOOKUP(Tableau13[[#This Row],[Tarif HT]],'Codes éco-part'!C:E,3,FALSE) -> 256 | N189: =Tableau13[[#This Row],[Tarif HT]]*1.2 -> 2.04
A190: 31 | B190: =VLOOKUP(A190,'Comprendre la codification'!$A$13:$B$16,2,FALSE) -> Jouets | C190: 201 | D190: =VLOOKUP(C190,'Comprendre la codification'!$D$13:$E$50,2,FALSE) -> Figurines d'action & accessoires | E190: 30 | F190: =VLOOKUP(E190,'Comprendre la codification'!$G$13:$H$69,2,FALSE) -> Métal ferreux à plus de 95% | G190: 058 | H190: =VLOOKUP(G190,'Comprendre la codification'!$J$13:$K$35,2,FALSE) -> Compris entre 20 kg et 25 kg exclus | J190: 31201300580 | K190: Jouets - Figurines d'action & accessoires en Métal ferreux à plus de 95%Compris entre 20 kg et 25 kg exclus | L190: 1.74 | M190: =VLOOKUP(Tableau13[[#This Row],[Tarif HT]],'Codes éco-part'!C:E,3,FALSE) -> 394 | N190: =Tableau13[[#This Row],[Tarif HT]]*1.2 -> 2.088
A191: 31 | B191: =VLOOKUP(A191,'Comprendre la codification'!$A$13:$B$16,2,FALSE) -> Jouets | C191: 201 | D191: =VLOOKUP(C191,'Comprendre la codification'!$D$13:$E$50,2,FALSE) -> Figurines d'action & accessoires | E191: 30 | F191: =VLOOKUP(E191,'Comprendre la codification'!$G$13:$H$69,2,FALSE) -> Métal ferreux à plus de 95% | G191: 059 | H191: =VLOOKUP(G191,'Comprendre la codification'!$J$13:$K$35,2,FALSE) -> Compris entre 25 kg et 30 kg exclus | J191: 31201300590 | K191: Jouets - Figurines d'action & accessoires en Métal ferreux à plus de 95%Compris entre 25 kg et 30 kg exclus | L191: 1.92 | M191: =VLOOKUP(Tableau13[[#This Row],[Tarif HT]],'Codes éco-part'!C:E,3,FALSE) -> 060 | N191: =Tableau13[[#This Row],[Tarif HT]]*1.2 -> 2.304
A192: 31 | B192: =VLOOKUP(A192,'Comprendre la codification'!$A$13:$B$16,2,FALSE) -> Jouets | C192: 201 | D192: =VLOOKUP(C192,'Comprendre la codification'!$D$13:$E$50,2,FALSE) -> Figurines d'action & accessoires | E192: 30 | F192: =VLOOKUP(E192,'Comprendre la codification'!$G$13:$H$69,2,FALSE) -> Métal ferreux à plus de 95% | G192: 060 | H192: =VLOOKUP(G192,'Comprendre la codification'!$J$13:$K$35,2,FALSE) -> Compris entre 40 kg et 50 kg exclus | J192: 31201300600 | K192: Jouets - Figurines d'action & accessoires en Métal ferreux à plus de 95%Compris entre 40 kg et 50 kg exclus | L192: 2.54 | M192: =VLOOKUP(Tableau13[[#This Row],[Tarif HT]],'Codes éco-part'!C:E,3,FALSE) -> 338 | N192: =Tableau13[[#This Row],[Tarif HT]]*1.2 -> 3.048
A193: 31 | B193: =VLOOKUP(A193,'Comprendre la codification'!$A$13:$B$16,2,FALSE) -> Jouets | C193: 201 | D193: =VLOOKUP(C193,'Comprendre la codification'!$D$13:$E$50,2,FALSE) -> Figurines d'action & accessoires | E193: 30 | F193: =VLOOKUP(E193,'Comprendre la codification'!$G$13:$H$69,2,FALSE) -> Métal ferreux à plus de 95% | G193: 082 | H193: =VLOOKUP(G193,'Comprendre la codification'!$J$13:$K$35,2,FALSE) -> supérieur à 250 kg | J193: 31201300820 | K193: Jouets - Figurines d'action & accessoires en Métal ferreux à plus de 95%supérieur à 250 kg | L193: 9.68 | M193: =VLOOKUP(Tableau13[[#This Row],[Tarif HT]],'Codes éco-part'!C:E,3,FALSE) -> 395 | N193: =Tableau13[[#This Row],[Tarif HT]]*1.2 -> 11.616
A194: =MID(J194,1,2) -> 31 | B194: =VLOOKUP(A194,'Comprendre la codification'!$A$13:$B$16,2,FALSE) -> Jouets | C194: =MID(J194,3,3) -> 201 | D194: =VLOOKUP(C194,'Comprendre la codification'!$D$13:$E$50,2,FALSE) -> Figurines d'action & accessoires | E194: =MID(J194,6,2) -> 30 | F194: =VLOOKUP(E194,'Comprendre la codification'!$G$13:$H$69,2,FALSE) -> Métal ferreux à plus de 95% | G194: =MID(J194,8,3) -> 083 | H194: =VLOOKUP(G194,'Comprendre la codification'!$J$13:$K$35,2,FALSE) -> inférieur strictement à 0,1 kg | J194: 31201300830 | K194: =B194&" - "&D194&" en "&F194&H194 -> Jouets - Figurines d'action & accessoires en Métal ferreux à plus de 95%inférieur strictement à 0,1 kg | L194: 0.01 | M194: =VLOOKUP(Tableau13[[#This Row],[Tarif HT]],'Codes éco-part'!C:E,3,FALSE) -> 260 | N194: =Tableau13[[#This Row],[Tarif HT]]*1.2 -> 0.012
A195: 31 | B195: =VLOOKUP(A195,'Comprendre la codification'!$A$13:$B$16,2,FALSE) -> Jouets | C195: 201 | D195: =VLOOKUP(C195,'Comprendre la codification'!$D$13:$E$50,2,FALSE) -> Figurines d'action & accessoires | E195: 30 | F195: =VLOOKUP(E195,'Comprendre la codification'!$G$13:$H$69,2,FALSE) -> Métal ferreux à plus de 95% | G195: 084 | H195: =VLOOKUP(G195,'Comprendre la codification'!$J$13:$K$35,2,FALSE) -> Compris entre 0,1 kg et 0,2 kg exclus | J195: 31201300840 | K195: Jouets - Figurines d'action & accessoires en Métal ferreux à plus de 95%Compris entre 0,1 kg et 0,2 kg exclus | L195: 0.02 | M195: =VLOOKUP(Tableau13[[#This Row],[Tarif HT]],'Codes éco-part'!C:E,3,FALSE) -> 047 | N195: =Tableau13[[#This Row],[Tarif HT]]*1.2 -> 0.024
A196: 31 | B196: =VLOOKUP(A196,'Comprendre la codification'!$A$13:$B$16,2,FALSE) -> Jouets | C196: 201 | D196: =VLOOKUP(C196,'Comprendre la codification'!$D$13:$E$50,2,FALSE) -> Figurines d'action & accessoires | E196: 30 | F196: =VLOOKUP(E196,'Comprendre la codification'!$G$13:$H$69,2,FALSE) -> Métal ferreux à plus de 95% | G196: 085 | H196: =VLOOKUP(G196,'Comprendre la codification'!$J$13:$K$35,2,FALSE) -> Compris entre 0,2 kg et 0,3 kg exclus | J196: 31201300850 | K196: Jouets - Figurines d'action & accessoires en Métal ferreux à plus de 95%Compris entre 0,2 kg et 0,3 kg exclus | L196: 0.03 | M196: =VLOOKUP(Tableau13[[#This Row],[Tarif HT]],'Codes éco-part'!C:E,3,FALSE) -> 092 | N196: =Tableau13[[#This Row],[Tarif HT]]*1.2 -> 0.036
A197: 31 | B197: =VLOOKUP(A197,'Comprendre la codification'!$A$13:$B$16,2,FALSE) -> Jouets | C197: 201 | D197: =VLOOKUP(C197,'Comprendre la codification'!$D$13:$E$50,2,FALSE) -> Figurines d'action & accessoires | E197: 30 | F197: =VLOOKUP(E197,'Comprendre la codification'!$G$13:$H$69,2,FALSE) -> Métal ferreux à plus de 95% | G197: 086 | H197: =VLOOKUP(G197,'Comprendre la codification'!$J$13:$K$35,2,FALSE) -> Compris entre 0,3 kg et 0,4 kg exclus | J197: 31201300860 | K197: Jouets - Figurines d'action & accessoires en Métal ferreux à plus de 95%Compris entre 0,3 kg et 0,4 kg exclus | L197: 0.04 | M197: =VLOOKUP(Tableau13[[#This Row],[Tarif HT]],'Codes éco-part'!C:E,3,FALSE) -> 002 | N197: =Tableau13[[#This Row],[Tarif HT]]*1.2 -> 0.048
A198: 31 | B198: =VLOOKUP(A198,'Comprendre la codification'!$A$13:$B$16,2,FALSE) -> Jouets | C198: 201 | D198: =VLOOKUP(C198,'Comprendre la codification'!$D$13:$E$50,2,FALSE) -> Figurines d'action & accessoires | E198: 30 | F198: =VLOOKUP(E198,'Comprendre la codification'!$G$13:$H$69,2,FALSE) -> Métal ferreux à plus de 95% | G198: 087 | H198: =VLOOKUP(G198,'Comprendre la codification'!$J$13:$K$35,2,FALSE) -> Compris entre 0,4 kg et 0,5 kg exclus | J198: 31201300870 | K198: Jouets - Figurines d'action & accessoires en Métal ferreux à plus de 95%Compris entre 0,4 kg et 0,5 kg exclus | L198: 0.05 | M198: =VLOOKUP(Tableau13[[#This Row],[Tarif HT]],'Codes éco-part'!C:E,3,FALSE) -> 048 | N198: =Tableau13[[#This Row],[Tarif HT]]*1.2 -> 0.06
A199: 31 | B199: =VLOOKUP(A199,'Comprendre la codification'!$A$13:$B$16,2,FALSE) -> Jouets | C199: 201 | D199: =VLOOKUP(C199,'Comprendre la codification'!$D$13:$E$50,2,FALSE) -> Figurines d'action & accessoires | E199: 30 | F199: =VLOOKUP(E199,'Comprendre la codification'!$G$13:$H$69,2,FALSE) -> Métal ferreux à plus de 95% | G199: 088 | H199: =VLOOKUP(G199,'Comprendre la codification'!$J$13:$K$35,2,FALSE) -> Compris entre 50 kg et 100 kg exclus | J199: 31201300880 | K199: Jouets - Figurines d'action & accessoires en Métal ferreux à plus de 95%Compris entre 50 kg et 100 kg exclus | L199: 3.81 | M199: =VLOOKUP(Tableau13[[#This Row],[Tarif HT]],'Codes éco-part'!C:E,3,FALSE) -> 396 | N199: =Tableau13[[#This Row],[Tarif HT]]*1.2 -> 4.572
A200: 31 | B200: =VLOOKUP(A200,'Comprendre la codification'!$A$13:$B$16,2,FALSE) -> Jouets | C200: 202 | D200: =VLOOKUP(C200,'Comprendre la codification'!$D$13:$E$50,2,FALSE) -> Jeux de construction & accessoires | E200: 30 | F200: =VLOOKUP(E200,'Comprendre la codification'!$G$13:$H$69,2,FALSE) -> Métal ferreux à plus de 95% | G200: 021 | H200: =VLOOKUP(G200,'Comprendre la codification'!$J$13:$K$35,2,FALSE) -> Compris entre 0,5 kg et 1 kg exclus | J200: 31202300210 | K200: Jouets - Jeux de construction & accessoires en Métal ferreux à plus de 95%Compris entre 0,5 kg et 1 kg exclus | L200: 0.08 | M200: =VLOOKUP(Tableau13[[#This Row],[Tarif HT]],'Codes éco-part'!C:E,3,FALSE) -> 003 | N200: =Tableau13[[#This Row],[Tarif HT]]*1.2 -> 0.096
... 4300 more rows

Sheet Listes_masqué (hidden)
A1: Code caractéristique | E1: Code matériau | I1: Code catégorie | M1: Code type de produit | U1: Code matériau | W1: Code dimension
A3: 083 | B3: inférieur strictement à 0,1 kg | C3: =A3 -> 083 | E3: 00 | F3: Non connu | G3: =E3 -> 00 | H3: Jouets | I3: 31 | J3: Jouets | K3: =I3 -> 31 | M3: 201 | N3: Figurines d'action & accessoires | O3: =M3 -> 201 | P3: =CONCATENATE(M3," - ",N3) -> 201 - Figurines d'action & accessoires | Q3: Bois et dérivés | R3: Bois_et_dérivés | U3: Bois_et_dérivés | V3: =IFERROR(VLOOKUP(RIGHT(U3,3),$M$3:$N$41,2,FALSE),"") ->  | W3: Tous_jouets | X3: =IFERROR(VLOOKUP(RIGHT(W3,3),$M$3:$N$41,2,FALSE),"") -> 
A4: 084 | B4: Compris entre 0,1 kg et 0,2 kg exclus | C4: =A4 -> 084 | E4: 01 | F4: Bois, panneaux et dérivés de bois >50% | G4: =E4 -> 01 | H4: Jouets de plein air | I4: 32 | J4: Jouets_de_plein_air | K4: =I4 -> 32 | M4: 202 | N4: Jeux de construction & accessoires | O4: =M4 -> 202 | P4: =CONCATENATE(M4," - ",N4) -> 202 - Jeux de construction & accessoires | Q4: Métal | R4: Métal | U4: Bois, panneaux et dérivés de bois >50% | V4: =IFERROR(VLOOKUP(RIGHT(U4,3),$M$3:$N$41,2,FALSE),"") ->  | W4: inférieur strictement à 0,1 kg | X4: =IFERROR(VLOOKUP(W4,$B$3:$C$25,2,FALSE),"") -> 083
A5: 085 | B5: Compris entre 0,2 kg et 0,3 kg exclus | C5: 085 | E5: 02 | F5: Métal >50% | G5: 02 | H5: Jeux de société | I5: 33 | J5: Jeux_de_société | K5: 33 | M5: 203 | N5: Poupées, Poupons & accessoires | O5: 203 | P5: 203 - Poupées, Poupons & accessoires | Q5: Plastiques | R5: Plastiques | U5: Bois massif certifié à plus de 75% | V5: =IFERROR(VLOOKUP(RIGHT(U14,3),$M$3:$N$41,2,FALSE),"") ->  | W5: Compris entre 0,1 kg et 0,2 kg exclus | X5: 084
A6: 086 | B6: Compris entre 0,3 kg et 0,4 kg exclus | C6: 086 | E6: 03 | F6: Bambou/Rotin >50% | G6: 03 | H6: Jouets cadeaux | I6: 34 | J6: Jeux_cadeau | K6: 34 | M6: 204 | N6: Peluches & accessoires | O6: 204 | P6: 204 - Peluches & accessoires | Q6: Textiles et avec rembourrage | R6: Textiles_et_avec_rembourrage | U6: Bois massif certifié à plus de 95% | V6: =IFERROR(VLOOKUP(RIGHT(U16,3),$M$3:$N$41,2,FALSE),"") ->  | W6: Compris entre 0,2 kg et 0,3 kg exclus | X6: 085
A7: 087 | B7: Compris entre 0,4 kg et 0,5 kg exclus | C7: 087 | E7: 04 | F7: Osier et autres tiges végétales >50% | G7: 04 | M7: 205 | N7: Jouets Premier âge et Pré-scolaires & accessoires (3 ans et moins) | O7: 205 | P7: 205 - Jouets Premier âge et Pré-scolaires & accessoires (3 ans et moins) | Q7: Autres | R7: Autres | U7: Bois massif non certifié à plus de 75% | V7: =IFERROR(VLOOKUP(RIGHT(U5,3),$M$3:$N$41,2,FALSE),"") ->  | W7: Compris entre 0,3 kg et 0,4 kg exclus | X7: 086
A8: 021 | B8: Compris entre 0,5 kg et 1 kg exclus | C8: 021 | E8: 05 | F8: Plastiques >50% | G8: 05 | M8: 206 | N8: Véhicules miniatures & accessoires | O8: 206 | P8: 206 - Véhicules miniatures & accessoires | U8: Bois massif non certifié à plus de 95% | V8: =IFERROR(VLOOKUP(RIGHT(U7,3),$M$3:$N$41,2,FALSE),"") ->  | W8: Compris entre 0,4 kg et 0,5 kg exclus | X8: 087
A9: 022 | B9: Compris entre 1 kg et 2 kg exclus | C9: 022 | E9: 06 | F9: Textiles, cuirs, fourrures… >50% | G9: 06 | M9: 207 | N9: Loisirs créatifs jouets & accessoires | O9: 207 | P9: 207 - Loisirs créatifs jouets & accessoires | Q9: Bois et dérivés | R9: Bois_et_dérivés | U9: Mélange bois massif certifié et métal à plus de 75% | V9: =IFERROR(VLOOKUP(RIGHT(U9,3),$M$3:$N$41,2,FALSE),"") ->  | W9: Compris entre 0,5 kg et 1 kg exclus | X9: 021
A10: 052 | B10: Compris entre 2 kg et 3 kg exclus | C10: 052 | E10: 07 | F10: Verre et miroir >50% | G10: 07 | M10: 208 | N10: Jouets d'exploration et autres jouets & accessoires | O10: 208 | P10: 208 - Jouets d'exploration et autres jouets & accessoires | Q10: Métal | R10: Métal | U10: Panneaux de particules à plus de 75% | V10: =IFERROR(VLOOKUP(RIGHT(U11,3),$M$3:$N$41,2,FALSE),"") ->  | W10: Compris entre 1 kg et 2 kg exclus | X10: 022
A11: 053 | B11: Compris entre 3 kg et 5 kg exclus | C11: 053 | E11: 08 | F11: Inerte, minéraux >50% | G11: 08 | M11: 209 | N11: Jouets porteurs à pédales & accessoires | O11: 209 | P11: 209 - Jouets porteurs à pédales & accessoires | Q11: Plastiques | R11: Plastiques | U11: Panneaux de particules et/ou bois et/ou métal à plus de 75% | V11: =IFERROR(VLOOKUP(RIGHT(U10,3),$M$3:$N$41,2,FALSE),"") ->  | W11: Compris entre 2 kg et 3 kg exclus | X11: 052
A12: 054 | B12: Compris entre 5 kg et 7 kg exclus | C12: 054 | E12: 09 | F12: Mousse | G12: 09 | M12: 210 | N12: Jouets porteurs sans pédales & accessoires | O12: 210 | P12: 210 - Jouets porteurs sans pédales & accessoires | Q12: Textiles et avec rembourrage | R12: Textiles_et_avec_rembourrage | U12: Contreplaqué à plus de 75% | V12: =IFERROR(VLOOKUP(RIGHT(U12,3),$M$3:$N$41,2,FALSE),"") ->  | W12: Compris entre 3 kg et 5 kg exclus | X12: 053
A13: 055 | B13: Compris entre 7 kg et 10 kg exclus | C13: 055 | E13: 10 | F13: Latex | G13: 10 | M13: 211 | N13: Jouets sportifs & accessoires | O13: 211 | P13: 211 - Jouets sportifs & accessoires | Q13: Autres | R13: Autres_usage_famille | U13: OSB à plus de 75% | V13: =IFERROR(VLOOKUP(RIGHT(U13,3),$M$3:$N$41,2,FALSE),"") ->  | W13: Compris entre 5 kg et 7 kg exclus | X13: 054
A14: 056 | B14: Compris entre 10 kg et 15 kg exclus | C14: 056 | E14: 11 | F14: Ressorts | G14: 11 | M14: 212 | N14: Jouets d'été & accessoires | O14: 212 | P14: 212 - Jouets d'été & accessoires | U14: Bambou/Rotin >50% | V14: =IFERROR(VLOOKUP(RIGHT(#REF!,3),$M$3:$N$41,2,FALSE),"") ->  | W14: Compris entre 7 kg et 10 kg exclus | X14: 055
A15: 057 | B15: Compris entre 15 kg et 20 kg exclus | C15: 057 | E15: 12 | F15: Autres | G15: 12 | M15: 213 | N15: Jouets d’activités à usage familial | O15: 213 | P15: 213 - Jouets d’activités à usage familial | U15: Bambou/Rotin >95% | V15: =IFERROR(VLOOKUP(RIGHT(U19,3),$M$3:$N$41,2,FALSE),"") ->  | W15: Compris entre 10 kg et 15 kg exclus | X15: 056
A16: 058 | B16: Compris entre 20 kg et 25 kg exclus | C16: 058 | E16: 13 | F16: Rembourrage naturel (plume, laine…) | G16: 13 | M16: 214 | N16: Jeux de Société & accessoires (directive jouet) | O16: 214 | P16: 214 - Jeux de Société & accessoires (directive jouet) | U16: Osier et autres tiges végétales >50% | V16: =IFERROR(VLOOKUP(RIGHT(#REF!,3),$M$3:$N$41,2,FALSE),"") ->  | W16: Compris entre 15 kg et 20 kg exclus | X16: 057
A17: 059 | B17: Compris entre 25 kg et 30 kg exclus | C17: 059 | E17: 14 | F17: Rembourrage Synthétique (mousse, polyester…) | G17: 14 | M17: 215 | N17: Jeux de Société & accessoires (hors directive jouet) | O17: 215 | P17: 215 - Jeux de Société & accessoires (hors directive jouet) | U17: Osier et autres tiges végétales >95% | V17: =IFERROR(VLOOKUP(RIGHT(#REF!,3),$M$3:$N$41,2,FALSE),"") ->  | W17: Compris entre 20 kg et 25 kg exclus | X17: 058
A18: 027 | B18: Compris entre 30 kg et 40 kg exclus | C18: 027 | E18: 15 | F18: Composites et compact >50% | G18: 15 | M18: 216 | N18: Puzzles & accessoires (directive jouet) | O18: 216 | P18: 216 - Puzzles & accessoires (directive jouet) | V18: =IFERROR(VLOOKUP(RIGHT(#REF!,3),$M$3:$N$41,2,FALSE),"") ->  | W18: Compris entre 25 kg et 30 kg exclus | X18: 059
A19: 060 | B19: Compris entre 40 kg et 50 kg exclus | C19: 060 | E19: 16 | F19: Pierre artificielle >50% | G19: 16 | M19: 217 | N19: Puzzles & accessoires (hors directive jouet) | O19: 217 | P19: 217 - Puzzles & accessoires (hors directive jouet) | V19: =IFERROR(VLOOKUP(RIGHT(#REF!,3),$M$3:$N$41,2,FALSE),"") ->  | W19: Compris entre 30 kg et 40 kg exclus | X19: 027
A20: 088 | B20: Compris entre 50 kg et 100 kg exclus | C20: 088 | E20: 17 | F20: Ciment, béton >50% | G20: 17 | M20: 218 | N20: Maquettes & accessoires (directive jouet) | O20: 218 | P20: 218 - Maquettes & accessoires (directive jouet) | W20: Compris entre 40 kg et 50 kg exclus | X20: 060
A21: 030 | B21: Compris entre 100 kg et 150 kg exclus | C21: 030 | E21: 18 | F21: Céramique >50% | G21: 18 | M21: 219 | N21: Maquettes & accessoires (hors directive jouet) | O21: 219 | P21: 219 - Maquettes & accessoires (hors directive jouet) | U21: Métal | V21: =IFERROR(VLOOKUP(RIGHT(#REF!,3),$M$3:$N$41,2,FALSE),"") ->  | W21: Compris entre 50 kg et 100 kg exclus | X21: 088
A22: 031 | B22: Compris entre 150 kg et 200 kg exclus | C22: 031 | E22: 19 | F22: Papier, carton >50% | G22: 19 | M22: 220 | N22: Jouets cadeaux & accessoires | O22: 220 | P22: 220 - Jouets cadeaux & accessoires | U22: Métal >50% | V22: =IFERROR(VLOOKUP(RIGHT(#REF!,3),$M$3:$N$41,2,FALSE),"") ->  | W22: Compris entre 100 kg et 150 kg exclus | X22: 030
A23: 032 | B23: Compris entre 200 kg et 250 kg exclus | C23: 032 | E23: 20 | F23: Bois massif certifié à plus de 75% | G23: 20 | U23: Métal à plus de 75% | V23: =IFERROR(VLOOKUP(RIGHT(#REF!,3),$M$3:$N$41,2,FALSE),"") ->  | W23: Compris entre 150 kg et 200 kg exclus | X23: 031
A24: 082 | B24: supérieur à 250 kg | C24: 082 | E24: 21 | F24: Bois massif non certifié à plus de 75% | G24: 21 | U24: Métal à plus de 95% | V24: =IFERROR(VLOOKUP(RIGHT(#REF!,3),$M$3:$N$41,2,FALSE),"") ->  | W24: Compris entre 200 kg et 250 kg exclus | X24: 032
A25: 089 | B25: Lot de 1000 | C25: 089 | E25: 22 | F25: Métal à plus de 75% | G25: 22 | U25: Métal ferreux >50% | V25: =IFERROR(VLOOKUP(RIGHT(#REF!,3),$M$3:$N$41,2,FALSE),"") ->  | W25: supérieur à 250 kg | X25: 082
E26: 23 | F26: Mélange bois massif certifié et métal à plus de 75% | G26: 23 | U26: Métal ferreux à plus de 95% | V26: =IFERROR(VLOOKUP(RIGHT(U21,3),$M$3:$N$41,2,FALSE),"") ->  | X26: =IFERROR(VLOOKUP(#REF!,$B$3:$C$25,2,FALSE),"") -> 
E27: 24 | F27: Panneaux de particules et/ou bois et/ou métal à plus de 75% | G27: 24 | U27: Métal non ferreux >50% | W27: Jouets_cadeau | X27: =IFERROR(VLOOKUP(#REF!,$B$3:$C$25,2,FALSE),"") -> 
E28: 25 | F28: Panneaux de particules à plus de 75% | G28: 25 | U28: Métal non ferreux à plus de 95% | W28: Lot de 1000 | X28: =IFERROR(VLOOKUP(#REF!,$B$3:$C$25,2,FALSE),"") -> 
E29: 26 | F29: Contreplaqué à plus de 75% | G29: 26 | X29: =IFERROR(VLOOKUP(#REF!,$B$3:$C$25,2,FALSE),"") -> 
E30: 27 | F30: OSB à plus de 75% | G30: 27
E31: 28 | F31: Métal à plus de 95% | G31: 28 | W31: Jouets_usage_famille | X31: =IFERROR(VLOOKUP(RIGHT(W31,3),$M$3:$N$41,2,FALSE),"") -> 
E32: 29 | F32: Métal ferreux >50% | G32: 29 | U32: Plastiques | W32: Compris entre 20 kg et 25 kg exclus | X32: =IFERROR(VLOOKUP(W32,$B$3:$C$25,2,FALSE),"") -> 058
E33: 30 | F33: Métal ferreux à plus de 95% | G33: 30 | U33: Plastiques >50% | W33: Compris entre 25 kg et 30 kg exclus | X33: 059
E34: 31 | F34: Métal non ferreux >50% | G34: 31 | U34: Plastiques​ (sans spécificité) >95% | V34: =IFERROR(VLOOKUP(RIGHT(#REF!,3),$M$3:$N$41,2,FALSE),"") ->  | W34: Compris entre 30 kg et 40 kg exclus | X34: 027
E35: 32 | F35: Métal non ferreux à plus de 95% | G35: 32 | U35: Polyterephtalate d'Ethylène (PET) >50% | V35: =IFERROR(VLOOKUP(RIGHT(#REF!,3),$M$3:$N$41,2,FALSE),"") ->  | W35: Compris entre 40 kg et 50 kg exclus | X35: 060
E36: 33 | F36: Polyterephtalate d'Ethylène (PET) >50% | G36: 33 | U36: Polyterephtalate d'Ethylène (PET) >95% | V36: =IFERROR(VLOOKUP(RIGHT(#REF!,3),$M$3:$N$41,2,FALSE),"") ->  | W36: Compris entre 50 kg et 100 kg exclus | X36: 088
E37: 34 | F37: Polyéthylène (PE) >50% | G37: 34 | U37: Polyéthylène (PE) >50% | V37: =IFERROR(VLOOKUP(RIGHT(#REF!,3),$M$3:$N$41,2,FALSE),"") ->  | W37: Compris entre 100 kg et 150 kg exclus | X37: 030
E38: 35 | F38: Polypropylène (PP) >50% | G38: 35 | U38: Polyéthylène (PE) >95% | V38: =IFERROR(VLOOKUP(RIGHT(#REF!,3),$M$3:$N$41,2,FALSE),"") ->  | W38: Compris entre 150 kg et 200 kg exclus | X38: 031
E39: 36 | F39: Mélange PE et PP >50% | G39: 36 | U39: Polypropylène (PP) >50% | V39: =IFERROR(VLOOKUP(RIGHT(#REF!,3),$M$3:$N$41,2,FALSE),"") ->  | W39: Compris entre 200 kg et 250 kg exclus | X39: 032
E40: 37 | F40: ABS >50% | G40: 37 | U40: Polypropylène (PP) >95% | V40: =IFERROR(VLOOKUP(RIGHT(#REF!,3),$M$3:$N$41,2,FALSE),"") ->  | W40: supérieur à 250 kg | X40: 082
E41: 38 | F41: Polystyrène >50% | G41: 38 | U41: Mélange PE et PP >50% | V41: =IFERROR(VLOOKUP(RIGHT(#REF!,3),$M$3:$N$41,2,FALSE),"") -> 
E42: 39 | F42: PVC >50% | G42: 39 | U42: Mélange PE et PP >95% | V42: =IFERROR(VLOOKUP(RIGHT(#REF!,3),$M$3:$N$41,2,FALSE),"") -> 
E43: 40 | F43: Caoutchouc >50% | G43: 40 | U43: ABS >50% | V43: =IFERROR(VLOOKUP(RIGHT(U32,3),$M$3:$N$41,2,FALSE),"") -> 
E44: 41 | F44: Plastiques​ (sans spécificité) >95% | G44: 41 | U44: ABS >95% | V44: =IFERROR(VLOOKUP(RIGHT(U33,3),$M$3:$N$41,2,FALSE),"") -> 
E45: 42 | F45: Polyterephtalate d'Ethylène (PET) >95% | G45: 42 | U45: Polystyrène >50% | V45: =IFERROR(VLOOKUP(RIGHT(U35,3),$M$3:$N$41,2,FALSE),"") -> 
E46: 43 | F46: Polyéthylène (PE) >95% | G46: 43 | U46: Polystyrène >95% | V46: =IFERROR(VLOOKUP(RIGHT(U37,3),$M$3:$N$41,2,FALSE),"") -> 
E47: 44 | F47: Polypropylène (PP) >95% | G47: 44 | U47: PVC >50% | V47: =IFERROR(VLOOKUP(RIGHT(U39,3),$M$3:$N$41,2,FALSE),"") -> 
E48: 45 | F48: Mélange PE et PP >95% | G48: 45 | U48: PVC >95% | V48: =IFERROR(VLOOKUP(RIGHT(U41,3),$M$3:$N$41,2,FALSE),"") -> 
E49: 46 | F49: ABS >95% | G49: 46 | U49: Caoutchouc >50% | V49: =IFERROR(VLOOKUP(RIGHT(U43,3),$M$3:$N$41,2,FALSE),"") -> 
E50: 47 | F50: Polystyrène >95% | G50: 47 | U50: Caoutchouc >95% | V50: =IFERROR(VLOOKUP(RIGHT(U45,3),$M$3:$N$41,2,FALSE),"") -> 
E51: 48 | F51: PVC >95% | G51: 48 | V51: =IFERROR(VLOOKUP(RIGHT(U47,3),$M$3:$N$41,2,FALSE),"") -> 
E52: 49 | F52: Caoutchouc >95% | G52: 49 | U52: Textiles_et_avec_rembourrage | V52: =IFERROR(VLOOKUP(RIGHT(U49,3),$M$3:$N$41,2,FALSE),"") -> 
E53: 50 | F53: Papier >95% | G53: 50 | U53: Textiles, cuirs, fourrures… >50% | V53: =IFERROR(VLOOKUP(RIGHT(U34,3),$M$3:$N$41,2,FALSE),"") -> 
E54: 51 | F54: Carton >95% | G54: =E54 -> 51 | U54: Textiles, cuirs, fourrures… >95% | V54: =IFERROR(VLOOKUP(RIGHT(U36,3),$M$3:$N$41,2,FALSE),"") -> 
E55: 52 | F55: Bois massif certifié à plus de 95% | G55: 52 | U55: Rembourrage naturel (plume, laine…) | V55: =IFERROR(VLOOKUP(RIGHT(U38,3),$M$3:$N$41,2,FALSE),"") -> 
E56: 53 | F56: Bois massif non certifié à plus de 95% | G56: 53 | U56: Rembourrage Synthétique (mousse, polyester…) | V56: =IFERROR(VLOOKUP(RIGHT(U40,3),$M$3:$N$41,2,FALSE),"") -> 
E57: 54 | F57: Bambou/Rotin >95% | G57: 54 | V57: =IFERROR(VLOOKUP(RIGHT(U42,3),$M$3:$N$41,2,FALSE),"") -> 
E58: 55 | F58: Osier et autres tiges végétales >95% | G58: 55 | V58: =IFERROR(VLOOKUP(RIGHT(U44,3),$M$3:$N$41,2,FALSE),"") -> 
E59: 56 | F59: Textiles, cuirs, fourrures… >95% | G59: 56 | V59: =IFERROR(VLOOKUP(RIGHT(U46,3),$M$3:$N$41,2,FALSE),"") -> 
E60: 57 | F60: Verre et miroir >95% | G60: 57 | V60: =IFERROR(VLOOKUP(RIGHT(U48,3),$M$3:$N$41,2,FALSE),"") -> 
E61: 58 | F61: Inerte, minéraux >95% | G61: 58 | U61: Autres | V61: =IFERROR(VLOOKUP(RIGHT(U50,3),$M$3:$N$41,2,FALSE),"") -> 
E62: 99 | F62: Assemblage de 3 matériaux maximum | G62: 99 | U62: Non connu | V62: =IFERROR(VLOOKUP(RIGHT(U70,3),$M$3:$N$41,2,FALSE),"") -> 
U63: Papier, carton >50% | V63: =IFERROR(VLOOKUP(RIGHT(U71,3),$M$3:$N$41,2,FALSE),"") -> 
U64: Papier >95% | V64: =IFERROR(VLOOKUP(RIGHT(U72,3),$M$3:$N$41,2,FALSE),"") -> 
U65: Carton >95% | V65: =IFERROR(VLOOKUP(RIGHT(U73,3),$M$3:$N$41,2,FALSE),"") -> 
U66: Verre et miroir >50% | V66: =IFERROR(VLOOKUP(RIGHT(U63,3),$M$3:$N$41,2,FALSE),"") -> 
U67: Verre et miroir >95% | V67: =IFERROR(VLOOKUP(RIGHT(U65,3),$M$3:$N$41,2,FALSE),"") -> 
U68: Inerte, minéraux >50% | V68: =IFERROR(VLOOKUP(RIGHT(#REF!,3),$M$3:$N$41,2,FALSE),"") -> 
U69: Inerte, minéraux >95% | V69: =IFERROR(VLOOKUP(RIGHT(U67,3),$M$3:$N$41,2,FALSE),"") -> 
U70: Composites et compact >50% | V70: =IFERROR(VLOOKUP(RIGHT(U69,3),$M$3:$N$41,2,FALSE),"") -> 
U71: Pierre artificielle >50% | V71: =IFERROR(VLOOKUP(RIGHT(#REF!,3),$M$3:$N$41,2,FALSE),"") -> 
U72: Ciment, béton >50% | V72: =IFERROR(VLOOKUP(RIGHT(#REF!,3),$M$3:$N$41,2,FALSE),"") -> 
U73: Céramique >50% | V73: =IFERROR(VLOOKUP(RIGHT(#REF!,3),$M$3:$N$41,2,FALSE),"") -> 
U74: Autres | V74: =IFERROR(VLOOKUP(RIGHT(#REF!,3),$M$3:$N$41,2,FALSE),"") -> 
V75: =IFERROR(VLOOKUP(RIGHT(#REF!,3),$M$3:$N$41,2,FALSE),"") -> 
V76: =IFERROR(VLOOKUP(RIGHT(#REF!,3),$M$3:$N$41,2,FALSE),"") -> 
U77: Autres_usage_famille | V77: =IFERROR(VLOOKUP(RIGHT(#REF!,3),$M$3:$N$41,2,FALSE),"") -> 
U78: Non connu | V78: =IFERROR(VLOOKUP(RIGHT(#REF!,3),$M$3:$N$41,2,FALSE),"") -> 
U79: Papier, carton >50% | V79: =IFERROR(VLOOKUP(RIGHT(#REF!,3),$M$3:$N$41,2,FALSE),"") -> 
U80: Papier >95% | V80: =IFERROR(VLOOKUP(RIGHT(U77,3),$M$3:$N$41,2,FALSE),"") -> 
U81: Carton >95%
U82: Verre et miroir >50%
U83: Verre et miroir >95%
U84: Inerte, minéraux >50%
U85: Inerte, minéraux >95%
U86: Composites et compact >50%
U87: Pierre artificielle >50%
U88: Ciment, béton >50%
U89: Céramique >50% | X89: =IFERROR(VLOOKUP(W69,$B$3:$C$25,2,FALSE),"") -> 
U90: Assemblage de 3 matériaux maximum
U91: Autres
V144: =IFERROR(VLOOKUP(RIGHT(U141,3),$M$3:$N$41,2,FALSE),"") -> 
X153: =IFERROR(VLOOKUP(W133,$B$3:$C$25,2,FALSE),"") -> 
V208: =IFERROR(VLOOKUP(RIGHT(U205,3),$M$3:$N$41,2,FALSE),"") -> 
X217: =IFERROR(VLOOKUP(W197,$B$3:$C$25,2,FALSE),"") -> 
V272: =IFERROR(VLOOKUP(RIGHT(U269,3),$M$3:$N$41,2,FALSE),"") -> 
X281: =IFERROR(VLOOKUP(W261,$B$3:$C$25,2,FALSE),"") -> 
V336: =IFERROR(VLOOKUP(RIGHT(U333,3),$M$3:$N$41,2,FALSE),"") -> 
X345: =IFERROR(VLOOKUP(W325,$B$3:$C$25,2,FALSE),"") -> 
V400: =IFERROR(VLOOKUP(RIGHT(U397,3),$M$3:$N$41,2,FALSE),"") -> 
X409: =IFERROR(VLOOKUP(W389,$B$3:$C$25,2,FALSE),"") -> 
V464: =IFERROR(VLOOKUP(RIGHT(U461,3),$M$3:$N$41,2,FALSE),"") -> 
X473: =IFERROR(VLOOKUP(W453,$B$3:$C$25,2,FALSE),"") -> 
V528: =IFERROR(VLOOKUP(RIGHT(U525,3),$M$3:$N$41,2,FALSE),"") -> 
X537: =IFERROR(VLOOKUP(W517,$B$3:$C$25,2,FALSE),"") -> 
V550: =IFERROR(VLOOKUP(RIGHT(U547,3),$M$3:$N$41,2,FALSE),"") -> 
V567: =IFERROR(VLOOKUP(RIGHT(U564,3),$M$3:$N$43,2,FALSE),"") -> 
V575: =IFERROR(VLOOKUP(RIGHT(U572,3),$M$3:$N$43,2,FALSE),"") -> 
X601: =IFERROR(VLOOKUP(W581,$B$3:$C$25,2,FALSE),"") -> 
X665: =IFERROR(VLOOKUP(W645,$B$3:$C$25,2,FALSE),"") -> 
X729: =IFERROR(VLOOKUP(W709,$B$3:$C$25,2,FALSE),"") -> 
X793: =IFERROR(VLOOKUP(W773,$B$3:$C$25,2,FALSE),"") -> 
X857: =IFERROR(VLOOKUP(W837,$B$3:$C$25,2,FALSE),"") -> 
X921: =IFERROR(VLOOKUP(W901,$B$3:$C$25,2,FALSE),"") -> 
X985: =IFERROR(VLOOKUP(W965,$B$3:$C$25,2,FALSE),"") -> 

Sheet Dimension (hidden)
A1: Code caractéristique | E1: Code matériau | I1: Code catégorie
A3: =Listes_masqué!A3 -> 083 | B3: =Listes_masqué!B3 -> inférieur strictement à 0,1 kg | C3: =Listes_masqué!C3 -> 083 | E3: =Listes_masqué!E3 -> 00 | F3: =Listes_masqué!F3 -> Non connu | G3: =Listes_masqué!G3 -> 00 | H3: A | I3: =Listes_masqué!I3 -> 31 | J3: =Listes_masqué!J3 -> Jouets | K3: =Listes_masqué!K3 -> 31
A4: =Listes_masqué!A4 -> 084 | B4: =Listes_masqué!B4 -> Compris entre 0,1 kg et 0,2 kg exclus | C4: =Listes_masqué!C4 -> 084 | E4: =Listes_masqué!E4 -> 01 | F4: =Listes_masqué!F4 -> Bois, panneaux et dérivés de bois >50% | G4: =Listes_masqué!G4 -> 01 | H4: B | I4: =Listes_masqué!I4 -> 32 | J4: =Listes_masqué!J4 -> Jouets_de_plein_air | K4: =Listes_masqué!K4 -> 32
A5: =Listes_masqué!A5 -> 085 | B5: =Listes_masqué!B5 -> Compris entre 0,2 kg et 0,3 kg exclus | C5: =Listes_masqué!C5 -> 085 | E5: =Listes_masqué!E5 -> 02 | F5: =Listes_masqué!F5 -> Métal >50% | G5: =Listes_masqué!G5 -> 02 | H5: B | I5: =Listes_masqué!I5 -> 33 | J5: =Listes_masqué!J5 -> Jeux_de_société | K5: =Listes_masqué!K5 -> 33
A6: =Listes_masqué!A6 -> 086 | B6: =Listes_masqué!B6 -> Compris entre 0,3 kg et 0,4 kg exclus | C6: =Listes_masqué!C6 -> 086 | E6: =Listes_masqué!E6 -> 03 | F6: =Listes_masqué!F6 -> Bambou/Rotin >50% | G6: =Listes_masqué!G6 -> 03 | H6: B | I6: =Listes_masqué!I6 -> 34 | J6: =Listes_masqué!J6 -> Jeux_cadeau | K6: =Listes_masqué!K6 -> 34
A7: =Listes_masqué!A7 -> 087 | B7: =Listes_masqué!B7 -> Compris entre 0,4 kg et 0,5 kg exclus | C7: =Listes_masqué!C7 -> 087 | E7: =Listes_masqué!E7 -> 04 | F7: =Listes_masqué!F7 -> Osier et autres tiges végétales >50% | G7: =Listes_masqué!G7 -> 04 | H7: B | I7: =Listes_masqué!I7 -> 0 | J7: =Listes_masqué!J7 -> 0 | K7: =Listes_masqué!K7 -> 0
A8: =Listes_masqué!A8 -> 021 | B8: =Listes_masqué!B8 -> Compris entre 0,5 kg et 1 kg exclus | C8: =Listes_masqué!C8 -> 021 | E8: =Listes_masqué!E8 -> 05 | F8: =Listes_masqué!F8 -> Plastiques >50% | G8: =Listes_masqué!G8 -> 05 | H8: A | I8: =Listes_masqué!I8 -> 0 | J8: =Listes_masqué!J8 -> 0 | K8: =Listes_masqué!K8 -> 0
A9: =Listes_masqué!A9 -> 022 | B9: =Listes_masqué!B9 -> Compris entre 1 kg et 2 kg exclus | C9: =Listes_masqué!C9 -> 022 | E9: =Listes_masqué!E9 -> 06 | F9: =Listes_masqué!F9 -> Textiles, cuirs, fourrures… >50% | G9: =Listes_masqué!G9 -> 06 | H9: A | I9: =Listes_masqué!I9 -> 0 | J9: =Listes_masqué!J9 -> 0 | K9: =Listes_masqué!K9 -> 0
A10: =Listes_masqué!A10 -> 052 | B10: =Listes_masqué!B10 -> Compris entre 2 kg et 3 kg exclus | C10: =Listes_masqué!C10 -> 052 | E10: =Listes_masqué!E10 -> 07 | F10: =Listes_masqué!F10 -> Verre et miroir >50% | G10: =Listes_masqué!G10 -> 07 | H10: A | I10: =Listes_masqué!I10 -> 0 | J10: =Listes_masqué!J10 -> 0 | K10: =Listes_masqué!K10 -> 0
A11: =Listes_masqué!A11 -> 053 | B11: =Listes_masqué!B11 -> Compris entre 3 kg et 5 kg exclus | C11: =Listes_masqué!C11 -> 053 | E11: =Listes_masqué!E11 -> 08 | F11: =Listes_masqué!F11 -> Inerte, minéraux >50% | G11: =Listes_masqué!G11 -> 08 | H11: A | I11: =Listes_masqué!I11 -> 0 | J11: =Listes_masqué!J11 -> 0 | K11: =Listes_masqué!K11 -> 0
A12: =Listes_masqué!A12 -> 054 | B12: =Listes_masqué!B12 -> Compris entre 5 kg et 7 kg exclus | C12: =Listes_masqué!C12 -> 054 | E12: =Listes_masqué!E12 -> 09 | F12: =Listes_masqué!F12 -> Mousse | G12: =Listes_masqué!G12 -> 09 | H12: A | I12: =Listes_masqué!I12 -> 0 | J12: =Listes_masqué!J12 -> 0 | K12: =Listes_masqué!K12 -> 0
A13: =Listes_masqué!A13 -> 055 | B13: =Listes_masqué!B13 -> Compris entre 7 kg et 10 kg exclus | C13: =Listes_masqué!C13 -> 055 | E13: =Listes_masqué!E13 -> 10 | F13: =Listes_masqué!F13 -> Latex | G13: =Listes_masqué!G13 -> 10 | H13: A | I13: =Listes_masqué!I13 -> 0 | J13: =Listes_masqué!J13 -> 0 | K13: =Listes_masqué!K13 -> 0
A14: =Listes_masqué!A14 -> 056 | B14: =Listes_masqué!B14 -> Compris entre 10 kg et 15 kg exclus | C14: =Listes_masqué!C14 -> 056 | E14: =Listes_masqué!E14 -> 11 | F14: =Listes_masqué!F14 -> Ressorts | G14: =Listes_masqué!G14 -> 11 | H14: A | I14: =Listes_masqué!I14 -> 0 | J14: =Listes_masqué!J14 -> 0 | K14: =Listes_masqué!K14 -> 0
A15: =Listes_masqué!A15 -> 057 | B15: =Listes_masqué!B15 -> Compris entre 15 kg et 20 kg exclus | C15: =Listes_masqué!C15 -> 057 | E15: =Listes_masqué!E15 -> 12 | F15: =Listes_masqué!F15 -> Autres | G15: =Listes_masqué!G15 -> 12 | H15: A | I15: =Listes_masqué!I15 -> 0 | J15: =Listes_masqué!J15 -> 0 | K15: =Listes_masqué!K15 -> 0
A16: =Listes_masqué!A16 -> 058 | B16: =Listes_masqué!B16 -> Compris entre 20 kg et 25 kg exclus | C16: =Listes_masqué!C16 -> 058 | E16: =Listes_masqué!E16 -> 13 | F16: =Listes_masqué!F16 -> Rembourrage naturel (plume, laine…) | G16: =Listes_masqué!G16 -> 13 | H16: A
A17: =Listes_masqué!A17 -> 059 | B17: =Listes_masqué!B17 -> Compris entre 25 kg et 30 kg exclus | C17: =Listes_masqué!C17 -> 059 | E17: =Listes_masqué!E17 -> 14 | F17: =Listes_masqué!F17 -> Rembourrage Synthétique (mousse, polyester…) | G17: =Listes_masqué!G17 -> 14 | H17: A | I17: =Listes_masqué!I17 -> 0 | J17: =Listes_masqué!J17 -> 0 | K17: =Listes_masqué!K17 -> 0
A18: =Listes_masqué!A18 -> 027 | B18: =Listes_masqué!B18 -> Compris entre 30 kg et 40 kg exclus | C18: =Listes_masqué!C18 -> 027 | E18: =Listes_masqué!E18 -> 15 | F18: =Listes_masqué!F18 -> Composites et compact >50% | G18: =Listes_masqué!G18 -> 15 | H18: A | I18: =Listes_masqué!I18 -> 0 | J18: =Listes_masqué!J18 -> 0 | K18: =Listes_masqué!K18 -> 0
A19: =Listes_masqué!A19 -> 060 | B19: =Listes_masqué!B19 -> Compris entre 40 kg et 50 kg exclus | C19: =Listes_masqué!C19 -> 060 | E19: =Listes_masqué!E19 -> 16 | F19: =Listes_masqué!F19 -> Pierre artificielle >50% | G19: =Listes_masqué!G19 -> 16 | H19: A | I19: =Listes_masqué!I19 -> 0 | J19: =Listes_masqué!J19 -> 0 | K19: =Listes_masqué!K19 -> 0
A20: =Listes_masqué!A20 -> 088 | B20: =Listes_masqué!B20 -> Compris entre 50 kg et 100 kg exclus | C20: =Listes_masqué!C20 -> 088 | E20: =Listes_masqué!E20 -> 17 | F20: =Listes_masqué!F20 -> Ciment, béton >50% | G20: =Listes_masqué!G20 -> 17 | H20: A | I20: =Listes_masqué!I20 -> 0 | J20: =Listes_masqué!J20 -> 0 | K20: =Listes_masqué!K20 -> 0
A21: =Listes_masqué!A21 -> 030 | B21: =Listes_masqué!B21 -> Compris entre 100 kg et 150 kg exclus | C21: =Listes_masqué!C21 -> 030 | E21: =Listes_masqué!E21 -> 18 | F21: =Listes_masqué!F21 -> Céramique >50% | G21: =Listes_masqué!G21 -> 18 | H21: A | I21: =Listes_masqué!I21 -> 0 | J21: =Listes_masqué!J21 -> 0 | K21: =Listes_masqué!K21 -> 0
A22: =Listes_masqué!A22 -> 031 | B22: =Listes_masqué!B22 -> Compris entre 150 kg et 200 kg exclus | C22: =Listes_masqué!C22 -> 031 | E22: =Listes_masqué!E22 -> 19 | F22: =Listes_masqué!F22 -> Papier, carton >50% | G22: =Listes_masqué!G22 -> 19 | H22: A | I22: =Listes_masqué!I22 -> 0 | J22: =Listes_masqué!J22 -> 0 | K22: =Listes_masqué!K22 -> 0
A23: =Listes_masqué!A23 -> 032 | B23: =Listes_masqué!B23 -> Compris entre 200 kg et 250 kg exclus | C23: =Listes_masqué!C23 -> 032 | E23: =Listes_masqué!E23 -> 20 | F23: =Listes_masqué!F23 -> Bois massif certifié à plus de 75% | G23: =Listes_masqué!G23 -> 20 | H23: B | I23: =Listes_masqué!I23 -> 0 | J23: =Listes_masqué!J23 -> 0 | K23: =Listes_masqué!K23 -> 0
A24: =Listes_masqué!A24 -> 082 | B24: =Listes_masqué!B24 -> supérieur à 250 kg | C24: =Listes_masqué!C24 -> 082 | E24: =Listes_masqué!E24 -> 21 | F24: =Listes_masqué!F24 -> Bois massif non certifié à plus de 75% | G24: =Listes_masqué!G24 -> 21 | H24: B
A25: =Listes_masqué!#REF! ->  | B25: =Listes_masqué!#REF! ->  | C25: =Listes_masqué!#REF! ->  | E25: =Listes_masqué!E25 -> 22 | F25: =Listes_masqué!F25 -> Métal à plus de 75% | G25: =Listes_masqué!G25 -> 22 | H25: B
A26: =Listes_masqué!#REF! ->  | B26: =Listes_masqué!#REF! ->  | C26: =Listes_masqué!#REF! ->  | E26: =Listes_masqué!E26 -> 23 | F26: =Listes_masqué!F26 -> Mélange bois massif certifié et métal à plus de 75% | G26: =Listes_masqué!G26 -> 23 | H26: B | I26: =Listes_masqué!I26 -> 0 | J26: =Listes_masqué!J26 -> 0 | K26: =Listes_masqué!K26 -> 0
A27: =Listes_masqué!#REF! ->  | B27: =Listes_masqué!#REF! ->  | C27: =Listes_masqué!#REF! ->  | E27: =Listes_masqué!E27 -> 24 | F27: =Listes_masqué!F27 -> Panneaux de particules et/ou bois et/ou métal à plus de 75% | G27: =Listes_masqué!G27 -> 24 | H27: B
A28: =Listes_masqué!#REF! ->  | B28: =Listes_masqué!#REF! ->  | C28: =Listes_masqué!#REF! ->  | E28: =Listes_masqué!E28 -> 25 | F28: =Listes_masqué!F28 -> Panneaux de particules à plus de 75% | G28: =Listes_masqué!G28 -> 25 | H28: B
A29: =Listes_masqué!#REF! ->  | B29: =Listes_masqué!#REF! ->  | C29: =Listes_masqué!#REF! -> 
A30: =Listes_masqué!#REF! ->  | B30: =Listes_masqué!#REF! ->  | C30: =Listes_masqué!#REF! -> 
A31: =Listes_masqué!#REF! ->  | B31: =Listes_masqué!#REF! ->  | C31: =Listes_masqué!#REF! -> 
A32: =Listes_masqué!#REF! ->  | B32: =Listes_masqué!#REF! ->  | C32: =Listes_masqué!#REF! -> 
A33: =Listes_masqué!#REF! ->  | B33: =Listes_masqué!#REF! ->  | C33: =Listes_masqué!#REF! -> 
A34: =Listes_masqué!#REF! ->  | B34: =Listes_masqué!#REF! ->  | C34: =Listes_masqué!#REF! -> 
A35: =Listes_masqué!#REF! ->  | B35: =Listes_masqué!#REF! ->  | C35: =Listes_masqué!#REF! -> 
A36: =Listes_masqué!#REF! ->  | B36: =Listes_masqué!#REF! ->  | C36: =Listes_masqué!#REF! -> 
A37: =Listes_masqué!#REF! ->  | B37: =Listes_masqué!#REF! ->  | C37: =Listes_masqué!#REF! -> 
A38: =Listes_masqué!#REF! ->  | B38: =Listes_masqué!#REF! ->  | C38: =Listes_masqué!#REF! -> 
A39: =Listes_masqué!#REF! ->  | B39: =Listes_masqué!#REF! ->  | C39: =Listes_masqué!#REF! -> 
A40: =Listes_masqué!#REF! ->  | B40: =Listes_masqué!#REF! ->  | C40: =Listes_masqué!#REF! -> 
A41: =Listes_masqué!#REF! ->  | B41: =Listes_masqué!#REF! ->  | C41: =Listes_masqué!#REF! -> 
A42: =Listes_masqué!#REF! ->  | B42: =Listes_masqué!#REF! ->  | C42: =Listes_masqué!#REF! -> 
A43: =Listes_masqué!#REF! ->  | B43: =Listes_masqué!#REF! ->  | C43: =Listes_masqué!#REF! -> 
A44: =Listes_masqué!#REF! ->  | B44: =Listes_masqué!#REF! ->  | C44: =Listes_masqué!#REF! -> 
A45: =Listes_masqué!A25 -> 089 | B45: =Listes_masqué!B25 -> Lot de 1000 | C45: =Listes_masqué!C25 -> 089
A46: =Listes_masqué!#REF! ->  | B46: =Listes_masqué!#REF! ->  | C46: =Listes_masqué!#REF! -> 
A47: =Listes_masqué!#REF! ->  | B47: =Listes_masqué!#REF! ->  | C47: =Listes_masqué!#REF! -> 
A48: =Listes_masqué!#REF! ->  | B48: =Listes_masqué!#REF! ->  | C48: =Listes_masqué!#REF! -> 
A49: =Listes_masqué!#REF! ->  | B49: =Listes_masqué!#REF! ->  | C49: =Listes_masqué!#REF! -> 
A50: =Listes_masqué!#REF! ->  | B50: =Listes_masqué!#REF! ->  | C50: =Listes_masqué!#REF! -> 
A51: =Listes_masqué!#REF! ->  | B51: =Listes_masqué!#REF! ->  | C51: =Listes_masqué!#REF! -> 
A52: =Listes_masqué!#REF! ->  | B52: =Listes_masqué!#REF! ->  | C52: =Listes_masqué!#REF! -> 
A53: =Listes_masqué!#REF! ->  | B53: =Listes_masqué!#REF! ->  | C53: =Listes_masqué!#REF! -> 
A54: =Listes_masqué!#REF! ->  | B54: =Listes_masqué!#REF! ->  | C54: =Listes_masqué!#REF! -> 
A55: =Listes_masqué!#REF! ->  | B55: =Listes_masqué!#REF! ->  | C55: =Listes_masqué!#REF! -> 
A56: =Listes_masqué!#REF! ->  | B56: =Listes_masqué!#REF! ->  | C56: =Listes_masqué!#REF! -> 
A57: =Listes_masqué!#REF! ->  | B57: =Listes_masqué!#REF! ->  | C57: =Listes_masqué!#REF! -> 
A58: =Listes_masqué!#REF! ->  | B58: =Listes_masqué!#REF! ->  | C58: =Listes_masqué!#REF! -> 
A59: =Listes_masqué!#REF! ->  | B59: =Listes_masqué!#REF! ->  | C59: =Listes_masqué!#REF! -> 
A60: =Listes_masqué!#REF! ->  | B60: =Listes_masqué!#REF! ->  | C60: =Listes_masqué!#REF! -> 
A61: =Listes_masqué!#REF! ->  | B61: =Listes_masqué!#REF! ->  | C61: =Listes_masqué!#REF! -> 
A62: =Listes_masqué!#REF! ->  | B62: =Listes_masqué!#REF! ->  | C62: =Listes_masqué!#REF! -> 
A63: =Listes_masqué!#REF! ->  | B63: =Listes_masqué!#REF! ->  | C63: =Listes_masqué!#REF! -> 
A64: =Listes_masqué!#REF! ->  | B64: =Listes_masqué!#REF! ->  | C64: =Listes_masqué!#REF! -> 
A65: =Listes_masqué!#REF! ->  | B65: =Listes_masqué!#REF! ->  | C65: =Listes_masqué!#REF! -> 
A66: =Listes_masqué!#REF! ->  | B66: =Listes_masqué!#REF! ->  | C66: =Listes_masqué!#REF! -> 
A67: =Listes_masqué!#REF! ->  | B67: =Listes_masqué!#REF! ->  | C67: =Listes_masqué!#REF! -> 
A68: =Listes_masqué!#REF! ->  | B68: =Listes_masqué!#REF! ->  | C68: =Listes_masqué!#REF! -> 
A69: =Listes_masqué!#REF! ->  | B69: =Listes_masqué!#REF! ->  | C69: =Listes_masqué!#REF! -> 
A70: =Listes_masqué!#REF! ->  | B70: =Listes_masqué!#REF! ->  | C70: =Listes_masqué!#REF! -> 
A71: =Listes_masqué!#REF! ->  | B71: =Listes_masqué!#REF! ->  | C71: =Listes_masqué!#REF! -> 
A72: =Listes_masqué!#REF! ->  | B72: =Listes_masqué!#REF! ->  | C72: =Listes_masqué!#REF! -> 
A73: =Listes_masqué!#REF! ->  | B73: =Listes_masqué!#REF! ->  | C73: =Listes_masqué!#REF! -> 
A74: =Listes_masqué!#REF! ->  | B74: =Listes_masqué!#REF! ->  | C74: =Listes_masqué!#REF! -> 
A75: =Listes_masqué!#REF! ->  | B75: =Listes_masqué!#REF! ->  | C75: =Listes_masqué!#REF! -> 
A76: =Listes_masqué!#REF! ->  | B76: =Listes_masqué!#REF! ->  | C76: =Listes_masqué!#REF! -> 

Sheet Codes éco-part
C1: Codes éco-participation
B3: =Infos!$B$10 -> Version 1.5 - 03 mai 2023
B4: Code éco-participation | C4: Montant € HT / article | D4: Montant € TTC / article (TVA à 20%)
B5: 260 | C5: 0.01 | D5: 0.01 | E5: =B5 -> 260
B6: 047 | C6: 0.02 | D6: 0.02 | E6: =B6 -> 047
B7: 092 | C7: 0.03 | D7: 0.04 | E7: 092
B8: 002 | C8: 0.04 | D8: 0.05 | E8: 002
B9: 048 | C9: 0.05 | D9: 0.06 | E9: 048
B10: 096 | C10: 0.06 | D10: 0.07 | E10: 096
B11: 247 | C11: 0.07 | D11: 0.08 | E11: 247
B12: 003 | C12: 0.08 | D12: 0.1 | E12: 003
B13: 049 | C13: 0.09 | D13: 0.11 | E13: 049
B14: 094 | C14: 0.1 | D14: 0.12 | E14: 094
B15: 262 | C15: 0.11 | D15: 0.13 | E15: 262
B16: 097 | C16: 0.12 | D16: 0.14 | E16: 097
B17: 004 | C17: 0.13 | D17: 0.16 | E17: 004
B18: 098 | C18: 0.14 | D18: 0.17 | E18: 098
B19: 050 | C19: 0.15 | D19: 0.18 | E19: 050
B20: 099 | C20: 0.16 | D20: 0.19 | E20: 099
B21: 005 | C21: 0.17 | D21: 0.2 | E21: 005
B22: 100 | C22: 0.18 | D22: 0.22 | E22: 100
B23: 291 | C23: 0.19 | D23: 0.23 | E23: 291
B24: 101 | C24: 0.2 | D24: 0.24 | E24: 101
B25: 051 | C25: 0.21 | D25: 0.25 | E25: 051
B26: 263 | C26: 0.22 | D26: 0.26 | E26: 263
B27: 323 | C27: 0.23 | D27: =C27*1.2 -> 0.276 | E27: 323
B28: 248 | C28: 0.24 | D28: 0.29 | E28: 248
B29: 095 | C29: 0.25 | D29: 0.3 | E29: 095
B30: 103 | C30: 0.27 | D30: 0.32 | E30: 103
B31: 324 | C31: 0.29 | D31: =C31*1.2 -> 0.348 | E31: 324
B32: 104 | C32: 0.31 | D32: 0.37 | E32: 104
B33: 006 | C33: 0.33 | D33: 0.4 | E33: 006
B34: 043 | C34: 0.34 | D34: 0.41 | E34: 043
B35: 268 | C35: 0.37 | D35: 0.44 | E35: 268
B36: 292 | C36: 0.38 | D36: 0.46 | E36: 292
B37: 253 | C37: 0.39 | D37: 0.47 | E37: 253
B38: 105 | C38: 0.4 | D38: 0.48 | E38: 105
B39: 281 | C39: 0.44 | D39: 0.53 | E39: 281
B40: 325 | C40: 0.45 | D40: =C40*1.2 -> 0.54 | E40: 325
B41: 106 | C41: 0.46 | D41: 0.55 | E41: 106
B42: 107 | C42: 0.47 | D42: 0.56 | E42: 107
B43: 108 | C43: 0.49 | D43: 0.59 | E43: 108
B44: 053 | C44: 0.5 | D44: 0.6 | E44: 053
B45: 109 | C45: 0.51 | D45: 0.61 | E45: 109
B46: 326 | C46: 0.57 | D46: =C46*1.2 -> 0.684 | E46: 326
B47: 254 | C47: 0.59 | D47: 0.71 | E47: 254
B48: 327 | C48: 0.6 | D48: =C48*1.2 -> 0.72 | E48: 327
B49: 297 | C49: 0.63 | D49: 0.76 | E49: 297
B50: 110 | C50: 0.67 | D50: 0.8 | E50: 110
B51: 044 | C51: 0.68 | D51: 0.82 | E51: 044
B52: 111 | C52: 0.69 | D52: 0.83 | E52: 111
B53: 282 | C53: 0.7 | D53: 0.84 | E53: 282
B54: 255 | C54: 0.73 | D54: 0.88 | E54: 255
B55: 328 | C55: 0.75 | D55: =C55*1.2 -> 0.9 | E55: 328
B56: 312 | C56: 0.78 | D56: 0.94 | E56: 312
B57: 112 | C57: 0.81 | D57: 0.97 | E57: 112
B58: 008 | C58: 0.83 | D58: 1 | E58: 008
B59: 329 | C59: 0.85 | D59: =C59*1.2 -> 1.02 | E59: 329
B60: 269 | C60: 0.88 | D60: 1.06 | E60: 269
B61: 330 | C61: 0.9 | D61: =C61*1.2 -> 1.08 | E61: 330
B62: 054 | C62: 0.92 | D62: 1.1 | E62: 054
B63: 055 | C63: 0.96 | D63: 1.15 | E63: 055
B64: 056 | C64: 1 | D64: 1.2 | E64: 056
B65: 298 | C65: 1.01 | D65: 1.21 | E65: 298
B66: 283 | C66: 1.05 | D66: 1.26 | E66: 283
B67: 113 | C67: 1.08 | D67: 1.3 | E67: 113
B68: 270 | C68: 1.09 | D68: 1.31 | E68: 270
B69: 331 | C69: 1.13 | D69: =C69*1.2 -> 1.356 | E69: 331
B70: 114 | C70: 1.21 | D70: 1.45 | E70: =B70 -> 114
B71: 313 | C71: 1.24 | D71: 1.49 | E71: 313
B72: 009 | C72: 1.25 | D72: 1.5 | E72: 009
B73: 284 | C73: 1.31 | D73: 1.57 | E73: 284
B74: 115 | C74: 1.33 | D74: 1.6 | E74: 115
B75: 332 | C75: 1.35 | D75: =C75*1.2 -> 1.62 | E75: 332
B76: 333 | C76: 1.41 | D76: =C76*1.2 -> 1.692 | E76: 333
B77: 057 | C77: 1.42 | D77: 1.7 | E77: 057
B78: 058 | C78: 1.46 | D78: 1.75 | E78: 058
B79: 059 | C79: 1.5 | D79: 1.8 | E79: 059
B80: 299 | C80: 1.52 | D80: 1.82 | E80: 299
B81: 010 | C81: 1.67 | D81: 2 | E81: 010
B82: 334 | C82: 1.69 | D82: =C82*1.2 -> 2.028 | E82: 334
B83: 256 | C83: 1.7 | D83: 2.04 | E83: 256
B84: 116 | C84: 1.71 | D84: 2.05 | E84: 116
B85: 394 | C85: 1.74 | D85: =C85*1.2 -> 2.088 | E85: 394
B86: 271 | C86: 1.82 | D86: 2.18 | E86: 271
B87: 117 | C87: 1.83 | D87: 2.2 | E87: 117
B88: 314 | C88: 1.86 | D88: 2.23 | E88: 314
B89: 335 | C89: 1.88 | D89: =C89*1.2 -> 2.256 | E89: 335
B90: 300 | C90: 1.89 | D90: 2.27 | E90: 300
B91: 060 | C91: 1.92 | D91: 2.3 | E91: 060
B92: 336 | C92: 1.97 | D92: =C92*1.2 -> 2.364 | E92: 336
B93: 061 | C93: 2 | D93: 2.4 | E93: 061
B94: 011 | C94: 2.08 | D94: 2.5 | E94: 011
B95: 257 | C95: 2.18 | D95: 2.62 | E95: 257
B96: 390 | C96: 2.2 | D96: =C96*1.2 -> 2.64 | E96: 390
B97: 118 | C97: 2.25 | D97: 2.7 | E97: 118
B98: 062 | C98: 2.33 | D98: 2.8 | E98: 062
B99: 337 | C99: 2.35 | D99: =C99*1.2 -> 2.82 | E99: 337
B100: 012 | C100: 2.5 | D100: 3 | E100: 012
B101: 338 | C101: 2.54 | D101: =C101*1.2 -> 3.048 | E101: 338
B102: 272 | C102: 2.55 | D102: 3.06 | E102: 272
B103: 399 | C103: 2.62 | D103: =C103*1.2 -> 3.144 | E103: 399
B104: 339 | C104: 2.63 | D104: =C104*1.2 -> 3.156 | E104: 339
B105: 119 | C105: 2.67 | D105: 3.2 | E105: 119
B106: 120 | C106: 2.75 | D106: 3.3 | E106: 120
B107: 340 | C107: 2.82 | D107: =C107*1.2 -> 3.384 | E107: 340
B108: 437 | C108: 2.84 | D108: =C108*1.2 -> 3.408 | E108: 437
B109: 400 | C109: 2.88 | D109: =C109*1.2 -> 3.456 | E109: 400
B110: 013 | C110: 2.92 | D110: 3.5 | E110: 013
B111: 285 | C111: 3.05 | D111: 3.66 | E111: 285
B112: 121 | C112: 3.08 | D112: 3.7 | E112: 121
B113: 341 | C113: 3.1 | D113: =C113*1.2 -> 3.72 | E113: 341
B114: 431 | C114: 3.11 | D114: =C114*1.2 -> 3.732 | E114: 431
B115: 301 | C115: 3.15 | D115: 3.78 | E115: 301
B116: 438 | C116: 3.17 | D116: =C116*1.2 -> 3.804 | E116: 438
B117: 122 | C117: 3.25 | D117: 3.9 | E117: 122
B118: 273 | C118: 3.27 | D118: 3.92 | E118: 273
B119: 342 | C119: 3.29 | D119: =C119*1.2 -> 3.948 | E119: 342
B120: 397 | C120: 3.3 | D120: =C120*1.2 -> 3.96 | E120: 397
B121: 014 | C121: 3.33 | D121: 4 | E121: 014
B122: 343 | C122: 3.38 | D122: =C122*1.2 -> 4.056 | E122: 343
B123: 249 | C123: 3.39 | D123: 4.07 | E123: 249
B124: 123 | C124: 3.58 | D124: 4.3 | E124: 123
B125: 432 | C125: 3.61 | D125: =C125*1.2 -> 4.332 | E125: 432
B126: 124 | C126: 3.67 | D126: 4.4 | E126: 124
B127: 434 | C127: 3.68 | D127: =C127*1.2 -> 4.416 | E127: 434
B128: 407 | C128: 3.73 | D128: =C128*1.2 -> 4.476 | E128: 407
B129: 015 | C129: 3.75 | D129: 4.5 | E129: 015
B130: 396 | C130: 3.81 | D130: =C130*1.2 -> 4.572 | E130: 396
B131: 315 | C131: 3.88 | D131: 4.66 | E131: 315
B132: 125 | C132: 3.92 | D132: 4.7 | E132: 125
B133: 286 | C133: 3.93 | D133: 4.72 | E133: 286
B134: 344 | C134: 3.94 | D134: =C134*1.2 -> 4.728 | E134: =B134 -> 344
B135: 274 | C135: 4 | D135: 4.8 | E135: 274
B136: 345 | C136: 4.13 | D136: =C136*1.2 -> 4.956 | E136: 345
B137: 016 | C137: 4.17 | D137: 5 | E137: 016
B138: 346 | C138: 4.22 | D138: =C138*1.2 -> 5.064 | E138: 346
B139: 408 | C139: 4.33 | D139: =C139*1.2 -> 5.196 | E139: 408
B140: 258 | C140: 4.36 | D140: 5.23 | E140: 258
B141: 302 | C141: 4.41 | D141: 5.29 | E141: 302
B142: 126 | C142: 4.42 | D142: 5.3 | E142: 126
B143: 127 | C143: 4.5 | D143: 5.4 | E143: 127
B144: 065 | C144: 4.58 | D144: 5.5 | E144: 065
B145: 128 | C145: 4.67 | D145: 5.6 | E145: 128
B146: 129 | C146: 4.75 | D146: 5.7 | E146: 129
B147: 287 | C147: 4.8 | D147: 5.76 | E147: 287
B148: 130 | C148: 4.83 | D148: 5.8 | E148: 130
B149: 391 | C149: 4.84 | D149: =C149*1.2 -> 5.808 | E149: 391
B150: 042 | C150: 5 | D150: 6 | E150: 042
B151: 347 | C151: 5.07 | D151: =C151*1.2 -> 6.084 | E151: 347
B152: 264 | C152: 5.09 | D152: 6.11 | E152: 264
B153: 348 | C153: 5.16 | D153: =C153*1.2 -> 6.192 | E153: 348
B154: 131 | C154: 5.17 | D154: 6.2 | E154: 131
B155: 403 | C155: 5.23 | D155: =C155*1.2 -> 6.276 | E155: 403
B156: 349 | C156: 5.25 | D156: =C156*1.2 -> 6.3 | E156: 349
B157: 132 | C157: 5.33 | D157: 6.4 | E157: 132
B158: 416 | C158: 5.39 | D158: =C158*1.2 -> 6.468 | E158: 416
B159: 017 | C159: 5.42 | D159: 6.5 | E159: 017
B160: 316 | C160: 5.43 | D160: 6.52 | E160: 316
B161: 133 | C161: 5.58 | D161: 6.7 | E161: 133
B162: 303 | C162: 5.67 | D162: 6.8 | E162: 303
B163: 402 | C163: 5.72 | D163: =C163*1.2 -> 6.864 | E163: 402
B164: 018 | C164: 5.83 | D164: 7 | E164: 018
B165: 134 | C165: 6.08 | D165: 7.3 | E165: 134
B166: 278 | C166: 6.1 | D166: 7.32 | E166: 278
B167: 350 | C167: 6.19 | D167: =C167*1.2 -> 7.428 | E167: 350
B168: 135 | C168: 6.25 | D168: 7.5 | E168: 135
B169: 409 | C169: 6.39 | D169: =C169*1.2 -> 7.668 | E169: 409
B170: 275 | C170: 6.54 | D170: 7.85 | E170: 275
B171: 351 | C171: 6.57 | D171: =C171*1.2 -> 7.884 | E171: 351
B172: 440 | C172: 6.6 | D172: =C172*1.2 -> 7.92 | E172: 440
B173: 424 | C173: 6.62 | D173: =C173*1.2 -> 7.944 | E173: 424
B174: 019 | C174: 6.67 | D174: 8 | E174: 019
B175: 352 | C175: 6.75 | D175: =C175*1.2 -> 8.1 | E175: 352
B176: 392 | C176: 6.78 | D176: =C176*1.2 -> 8.136 | E176: 392
B177: 136 | C177: 6.92 | D177: 8.3 | E177: 136
B178: 304 | C178: 6.93 | D178: 8.32 | E178: 304
B179: 317 | C179: 6.97 | D179: 8.36 | E179: 317
B180: 322 | C180: 7 | D180: 8.4 | E180: 322
B181: 067 | C181: 7.08 | D181: 8.5 | E181: 067
B182: 261 | C182: 7.26 | D182: 8.71 | E182: 261
B183: 353 | C183: 7.32 | D183: =C183*1.2 -> 8.784 | E183: 353
B184: 020 | C184: 7.5 | D184: 9 | E184: 020
B185: 412 | C185: 7.55 | D185: =C185*1.2 -> 9.06 | E185: 412
B186: 425 | C186: 7.69 | D186: =C186*1.2 -> 9.228 | E186: 425
B187: 288 | C187: 7.85 | D187: 9.42 | E187: 288
B188: 354 | C188: 7.88 | D188: =C188*1.2 -> 9.456 | E188: 354
B189: 068 | C189: 7.92 | D189: 9.5 | E189: 068
B190: 355 | C190: 8.25 | D190: =C190*1.2 -> 9.9 | E190: 355
B191: 021 | C191: 8.33 | D191: 10 | E191: 021
B192: 433 | C192: 8.43 | D192: =C192*1.2 -> 10.116 | E192: 433
B193: 356 | C193: 8.44 | D193: =C193*1.2 -> 10.128 | E193: 356
B194: 318 | C194: 8.52 | D194: 10.22 | E194: 318
B195: 393 | C195: 8.71 | D195: =C195*1.2 -> 10.452 | E195: 393
B196: 069 | C196: 8.75 | D196: 10.5 | E196: 069
B197: 293 | C197: 8.81 | D197: 10.57 | E197: 293
B198: 137 | C198: 8.83 | D198: 10.6 | E198: =B198 -> 137
B199: 435 | C199: 8.86 | D199: =C199*1.2 -> 10.632 | E199: 435
B200: 070 | C200: 9.17 | D200: 11 | E200: 070
B201: 417 | C201: 9.23 | D201: =C201*1.2 -> 11.076 | E201: 417
... 207 more rows

Sheet Table correspondance (hidden)
A1: Table de correspondances
B3: La table ci-dessous présente la correspondance unique entre :
C4: - le code produit (11 chiffres), porte sur le produit, il est utilisé par les metteurs en marché pour leurs déclarations à Eco-mobilier.
C5: - le code éco-participation (3 chiffres), correspond au montant d'éco-participation. Ce code est amené à évoluer avec la mise à jour des barèmes d'éco-participations.
C6: - le code douanier, pour information uniquement, tel qu'il sera transmis à l'ADEME par Eco-mobilier.
B9: Code produit | C9: Code éco-participation | D9: Code douanier
B10: 09001010000 | C10: 051 | D10: 9401.69
B11: 09001010050 | C11: 007 | D11: 9401.69
B12: 09001010060 | C12: 045 | D12: 9401.69
B13: 09001020000 | C13: 051 | D13: 9401.79
B14: 09001020050 | C14: 007 | D14: 9401.79
B15: 09001020060 | C15: 045 | D15: 9401.79
B16: 09001030000 | C16: 051 | D16: 9401.51
B17: 09001030050 | C17: 007 | D17: 9401.51
B18: 09001030060 | C18: 045 | D18: 9401.51
B19: 09001040000 | C19: 051 | D19: 9401.59
B20: 09001040050 | C20: 007 | D20: 9401.59
B21: 09001040060 | C21: 045 | D21: 9401.59
B22: 09001050000 | C22: 051 | D22: 9401.80
B23: 09001050050 | C23: 007 | D23: 9401.80
B24: 09001050060 | C24: 045 | D24: 9401.80
B25: 09001120000 | C25: 051 | D25: 9401.80
B26: 09001120050 | C26: 007 | D26: 9401.80
B27: 09001120060 | C27: 045 | D27: 9401.80
B28: 09002010000 | C28: 054 | D28: 9401.69
B29: 09002020000 | C29: 054 | D29: 9401.79
B30: 09002030000 | C30: 054 | D30: 9401.51
B31: 09002040000 | C31: 054 | D31: 9401.59
B32: 09002050000 | C32: 054 | D32: 9401.80
B33: 09002120000 | C33: 054 | D33: 9401.80
B34: 09003000000 | C34: 053 | D34: 9401.30
B35: 09003000050 | C35: 056 | D35: 9401.30
B36: 09003000060 | C36: 061 | D36: 9401.30
B37: 09004000010 | C37: 053 | D37: 9401.80
B38: 09004000020 | C38: 059 | D38: 9401.80
B39: 09004000030 | C39: 012 | D39: 9401.80
B40: 09005000000 | C40: 002 | D40: 9401.80
B41: 09006000010 | C41: 057 | D41: 9401.61
B42: 09006000020 | C42: 015 | D42: 9401.61
B43: 09006000030 | C43: 067 | D43: 9401.61
B44: 09007000010 | C44: 012 | D44: 9401.40
B45: 09007000020 | C45: 065 | D45: 9401.40
B46: 09007000030 | C46: 069 | D46: 9401.40
B47: 09007000040 | C47: 012 | D47: 9401.40
B48: 09008000010 | C48: 014 | D48: 9401.80
B49: 09008000020 | C49: 018 | D49: 9401.80
B50: 09008000030 | C50: 070 | D50: 9401.80
B51: 09009000000 | C51: 002 | D51: 9401.90
B52: 09026000000 | C52: 052 | D52: 9401.90
B53: 09027010000 | C53: 055 | D53: 9401.90
B54: 09027020000 | C54: 055 | D54: 9401.90
B55: 09027050000 | C55: 055 | D55: 9401.90
B56: 09027120000 | C56: 055 | D56: 9401.90
B57: 04010000100 | C57: 059 | D57: 9404.10
B58: 04010000110 | C58: 012 | D58: 9404.10
B59: 04010000120 | C59: 012 | D59: 9404.10
B60: 04010000130 | C60: 089 | D60: 9404.10
B61: 04011000100 | C61: 062 | D61: 9404.10
B62: 04011000110 | C62: 015 | D62: 9404.10
B63: 04011000120 | C63: 015 | D63: 9404.10
B64: 04011000130 | C64: 090 | D64: 9404.10
B65: 04012000100 | C65: 013 | D65: 9404.10
B66: 04012000110 | C66: 015 | D66: 9404.10
B67: 04012000120 | C67: 015 | D67: 9404.10
B68: 04012000130 | C68: 091 | D68: 9404.10
B69: 04013000000 | C69: 065 | D69: 9404.10
B70: 04013000130 | C70: 070 | D70: 9404.10
B71: 04014000000 | C71: 054 | D71: 9404.10
B72: 04015090100 | C72: 012 | D72: 9404.29
B73: 04015090110 | C73: 042 | D73: 9404.29
B74: 04015090120 | C74: 042 | D74: 9404.29
B75: 04015090130 | C75: 042 | D75: 9404.29
B76: 04015100100 | C76: 012 | D76: 9404.21
B77: 04015100110 | C77: 042 | D77: 9404.21
B78: 04015100120 | C78: 042 | D78: 9404.21
B79: 04015100130 | C79: 042 | D79: 9404.29
B80: 04015110100 | C80: 012 | D80: 9404.29
B81: 04015110110 | C81: 042 | D81: 9404.29
B82: 04015110120 | C82: 042 | D82: 9404.29
B83: 04015110130 | C83: 042 | D83: 9404.29
B84: 04015120100 | C84: 012 | D84: 9404.29
B85: 04015120110 | C85: 042 | D85: 9404.29
B86: 04015120120 | C86: 042 | D86: 9404.29
B87: 04015120130 | C87: 042 | D87: 9404.29
B88: 04016000000 | C88: 054 | D88: 9404.29
B89: 04023000000 | C89: 050 | D89: 9404.29
B90: 04024000100 | C90: 063 | D90: 9404.10
B91: 04024000110 | C91: 066 | D91: 9404.10
B92: 04024000120 | C92: 066 | D92: 9404.10
B93: 04025010000 | C93: 050 | D93: 9403.90
B94: 04025020000 | C94: 050 | D94: 9403.90
B95: 04025050000 | C95: 050 | D95: 9403.90
B96: 04025120000 | C96: 050 | D96: 9403.90
B97: 14010000100 | C97: 059 | D97: 9404.10
B98: 14010000110 | C98: 012 | D98: 9404.10
B99: 14010000120 | C99: 012 | D99: 9404.10
B100: 14010000130 | C100: 089 | D100: 9404.10
B101: 14011000100 | C101: 062 | D101: 9404.10
B102: 14011000110 | C102: 015 | D102: 9404.10
B103: 14011000120 | C103: 015 | D103: 9404.10
B104: 14011000130 | C104: 090 | D104: 9404.10
B105: 14012000100 | C105: 013 | D105: 9404.10
B106: 14012000110 | C106: 015 | D106: 9404.10
B107: 14012000120 | C107: 015 | D107: 9404.10
B108: 14012000130 | C108: 091 | D108: 9404.10
B109: 14013000000 | C109: 065 | D109: 9404.10
B110: 14013000130 | C110: 070 | D110: 9404.10
B111: 14014000000 | C111: 054 | D111: 9404.10
B112: 14015090100 | C112: 012 | D112: 9404.29
B113: 14015090110 | C113: 042 | D113: 9404.29
B114: 14015090120 | C114: 042 | D114: 9404.29
B115: 14015090130 | C115: 042 | D115: 9404.29
B116: 14015100100 | C116: 012 | D116: 9404.21
B117: 14015100110 | C117: 042 | D117: 9404.21
B118: 14015100120 | C118: 042 | D118: 9404.21
B119: 14015100130 | C119: 042 | D119: 9404.29
B120: 14015110100 | C120: 012 | D120: 9404.29
B121: 14015110110 | C121: 042 | D121: 9404.29
B122: 14015110120 | C122: 042 | D122: 9404.29
B123: 14015110130 | C123: 042 | D123: 9404.29
B124: 14015120100 | C124: 012 | D124: 9404.29
B125: 14015120110 | C125: 042 | D125: 9404.29
B126: 14015120120 | C126: 042 | D126: 9404.29
B127: 14015120130 | C127: 042 | D127: 9404.29
B128: 14016000000 | C128: 054 | D128: 9404.29
B129: 14023000000 | C129: 050 | D129: 9404.29
B130: 14024000100 | C130: 063 | D130: 9404.10
B131: 14024000110 | C131: 066 | D131: 9404.10
B132: 14024000120 | C132: 066 | D132: 9404.10
B133: 14025010000 | C133: 050 | D133: 9403.90
B134: 14025020000 | C134: 050 | D134: 9403.90
B135: 14025050000 | C135: 050 | D135: 9403.90
B136: 14025120000 | C136: 050 | D136: 9403.90
B137: 01017010200 | C137: 047 | D137: 9403.60
B138: 01017010210 | C138: 048 | D138: 9403.60
B139: 01017010220 | C139: 049 | D139: 9403.60
B140: 01017010230 | C140: 050 | D140: 9403.60
B141: 01017010240 | C141: 052 | D141: 9403.60
B142: 01017010250 | C142: 055 | D142: 9403.60
B143: 01017010260 | C143: 058 | D143: 9403.60
B144: 01017010270 | C144: 060 | D144: 9403.60
B145: 01017010280 | C145: 012 | D145: 9403.60
B146: 01017010290 | C146: 064 | D146: 9403.60
B147: 01017010300 | C147: 068 | D147: 9403.60
B148: 01017010310 | C148: 071 | D148: 9403.60
B149: 01017010320 | C149: 072 | D149: 9403.60
B150: 01017010330 | C150: 073 | D150: 9403.60
B151: 01017010340 | C151: 074 | D151: 9403.60
B152: 01017010350 | C152: 075 | D152: 9403.60
B153: 01017010360 | C153: 027 | D153: 9403.60
B154: 01017010370 | C154: 076 | D154: 9403.60
B155: 01017010380 | C155: 077 | D155: 9403.60
B156: 01017010390 | C156: 078 | D156: 9403.60
B157: 01017010400 | C157: 079 | D157: 9403.60
B158: 01017010410 | C158: 033 | D158: 9403.60
B159: 01017010420 | C159: 080 | D159: 9403.60
B160: 01017010430 | C160: 081 | D160: 9403.60
B161: 01017010440 | C161: 082 | D161: 9403.60
B162: 01017010450 | C162: 083 | D162: 9403.60
B163: 01017010460 | C163: 039 | D163: 9403.60
B164: 01017010470 | C164: 084 | D164: 9403.60
B165: 01017010480 | C165: 085 | D165: 9403.60
B166: 01017010490 | C166: 086 | D166: 9403.60
B167: 01017010500 | C167: 087 | D167: 9403.60
B168: 01017010510 | C168: 088 | D168: 9403.60
B169: 01017020200 | C169: 047 | D169: 9403.20
B170: 01017020210 | C170: 048 | D170: 9403.20
B171: 01017020220 | C171: 049 | D171: 9403.20
B172: 01017020230 | C172: 050 | D172: 9403.20
B173: 01017020240 | C173: 052 | D173: 9403.20
B174: 01017020250 | C174: 055 | D174: 9403.20
B175: 01017020260 | C175: 058 | D175: 9403.20
B176: 01017020270 | C176: 060 | D176: 9403.20
B177: 01017020280 | C177: 012 | D177: 9403.20
B178: 01017020290 | C178: 064 | D178: 9403.20
B179: 01017020300 | C179: 068 | D179: 9403.20
B180: 01017020310 | C180: 071 | D180: 9403.20
B181: 01017020320 | C181: 072 | D181: 9403.20
B182: 01017020330 | C182: 073 | D182: 9403.20
B183: 01017020340 | C183: 074 | D183: 9403.20
B184: 01017020350 | C184: 075 | D184: 9403.20
B185: 01017020360 | C185: 027 | D185: 9403.20
B186: 01017020370 | C186: 076 | D186: 9403.20
B187: 01017020380 | C187: 077 | D187: 9403.20
B188: 01017020390 | C188: 078 | D188: 9403.20
B189: 01017020400 | C189: 079 | D189: 9403.20
B190: 01017020410 | C190: 033 | D190: 9403.20
B191: 01017020420 | C191: 080 | D191: 9403.20
B192: 01017020430 | C192: 081 | D192: 9403.20
B193: 01017020440 | C193: 082 | D193: 9403.20
B194: 01017020450 | C194: 083 | D194: 9403.20
B195: 01017020460 | C195: 039 | D195: 9403.20
B196: 01017020470 | C196: 084 | D196: 9403.20
B197: 01017020480 | C197: 085 | D197: 9403.20
B198: 01017020490 | C198: 086 | D198: 9403.20
B199: 01017020500 | C199: 087 | D199: 9403.20
B200: 01017020510 | C200: 088 | D200: 9403.20
B201: 01017050200 | C201: 047 | D201: 9403.70
B202: 01017050210 | C202: 048 | D202: 9403.70
B203: 01017050220 | C203: 049 | D203: 9403.70
... 7555 more rows

Sheet Format infos du fab au dist
C1: Format de tableau à renseigner par les fabricants metteurs en marché pour leurs clients distributeurs
E3: Facultatif:
B4: Code EAN du produit (ou tout autre code utilisé par le fabricant et le distributeur) | C4: Libellé du produit | D4: Code éco-participation (3 digits) | E4: Code produit à 11 chiffres
D5: 000 | E5: 00000000000
D6: 000 | E6: 00000000000
D7: 000 | E7: 00000000000
D8: 000 | E8: 00000000000
D9: 000 | E9: 00000000000
D10: 000 | E10: 00000000000
D11: 000 | E11: 00000000000
D12: 000 | E12: 00000000000
D13: 000 | E13: 00000000000
D14: 000 | E14: 00000000000
D15: 000 | E15: 00000000000
D16: 000 | E16: 00000000000
D17: 000 | E17: 00000000000
D18: 000 | E18: 00000000000
D19: 000 | E19: 00000000000
D20: 000 | E20: 00000000000
D21: 000 | E21: 00000000000
D22: 000 | E22: 00000000000
D23: 000 | E23: 00000000000
D24: 000 | E24: 00000000000
B26: Une table de correspondance entre les codes éco-participation et les montants correspondants dans le barème figure dans l'onglet "Codes éco-part".

Sheet Listing Produits
A1: La liste des codes ci-dessous est indicative. Si vous ne trouvez pas le produit à coder dans les exemples de produits ou que vous avez une question, n'hésitez pas à nous contacter pour toutes les précisions utiles (contact@ecomaison.com). | G1: =Infos!$B$10 -> Version 1.5 - 03 mai 2023
A3: Code Cat | B3: Catégorie | C3: Code Tdp | D3: Type de produit | E3: Exemples de produit
A4: 31 | B4: Jouets | C4: 201 | D4: Figurines d'action & accessoires | E4: Figurines à collectionner
A5: 31 | B5: Jouets | C5: 201 | D5: Figurines d'action & accessoires | E5: Figurines d'action
A6: 31 | B6: Jouets | C6: 201 | D6: Figurines d'action & accessoires | E6: Jouets/Figurines de combat et univers de jeu
A7: 31 | B7: Jouets | C7: 201 | D7: Figurines d'action & accessoires | E7: Univers de jeu pour figurines d'action & accessoires
A8: 31 | B8: Jouets | C8: 202 | D8: Jeux de construction & accessoires | E8: Jeux de construction
A9: 31 | B9: Jouets | C9: 202 | D9: Jeux de construction & accessoires | E9: Accessoires de jeux de construction
A10: 31 | B10: Jouets | C10: 203 | D10: Poupons/Poupées & accessoires | E10: Accessoires de poupées mannequins
A11: 31 | B11: Jouets | C11: 203 | D11: Poupons/Poupées & accessoires | E11: Autres accessoires pour poupons
A12: 31 | B12: Jouets | C12: 203 | D12: Poupons/Poupées & accessoires | E12: Grandes poupées et accessoires
A13: 31 | B13: Jouets | C13: 203 | D13: Poupons/Poupées & accessoires | E13: Maison et mobilier de poupées
A14: 31 | B14: Jouets | C14: 203 | D14: Poupons/Poupées & accessoires | E14: Porteurs pour poupons
A15: 31 | B15: Jouets | C15: 203 | D15: Poupons/Poupées & accessoires | E15: Poupées mini-univers et/ou à collectionner
A16: 31 | B16: Jouets | C16: 203 | D16: Poupons/Poupées & accessoires | E16: Poupées décoratives et de collection pour adultes
A17: 31 | B17: Jouets | C17: 203 | D17: Poupons/Poupées & accessoires | E17: Poupées mannequins
A18: 31 | B18: Jouets | C18: 203 | D18: Poupons/Poupées & accessoires | E18: Poupons à pouponner à fonctions
A19: 31 | B19: Jouets | C19: 203 | D19: Poupons/Poupées & accessoires | E19: Poupons à pouponner traditionnels
A20: 31 | B20: Jouets | C20: 203 | D20: Poupons/Poupées & accessoires | E20: Vêtements de poupées mannequins
A21: 31 | B21: Jouets | C21: 203 | D21: Poupons/Poupées & accessoires | E21: Vêtements pour poupons
A22: 31 | B22: Jouets | C22: 204 | D22: Peluches & accessoires | E22: Décors marionnettes
A23: 31 | B23: Jouets | C23: 204 | D23: Peluches & accessoires | E23: Marionnettes
A24: 31 | B24: Jouets | C24: 204 | D24: Peluches & accessoires | E24: Marionnettes à doigts
A25: 31 | B25: Jouets | C25: 204 | D25: Peluches & accessoires | E25: Peluches traditionnelles
A26: 31 | B26: Jouets | C26: 205 | D26: Jouets premier âge et préscolaire & accessoires | E26: Figurines/Univers & accessoires pour tout-petits
A27: 31 | B27: Jouets | C27: 205 | D27: Jouets premier âge et préscolaire & accessoires | E27: Figurines/Univers de jeu & accessoires préscolaires
A28: 31 | B28: Jouets | C28: 205 | D28: Jouets premier âge et préscolaire & accessoires | E28: Hochets
A29: 31 | B29: Jouets | C29: 205 | D29: Jouets premier âge et préscolaire & accessoires | E29: Instruments de musique Préscolaires
A30: 31 | B30: Jouets | C30: 205 | D30: Jouets premier âge et préscolaire & accessoires | E30: Jeux d'imitation
A31: 31 | B31: Jouets | C31: 205 | D31: Jouets premier âge et préscolaire & accessoires | E31: Jeux d'imitation cuisines/supermarché
A32: 31 | B32: Jouets | C32: 205 | D32: Jouets premier âge et préscolaire & accessoires | E32: Jouets à promener et à pousser préscolaires
A33: 31 | B33: Jouets | C33: 205 | D33: Jouets premier âge et préscolaire & accessoires | E33: Jouets de bain
A34: 31 | B34: Jouets | C34: 205 | D34: Jouets premier âge et préscolaire & accessoires | E34: Anneau de dentition
A35: 31 | B35: Jouets | C35: 205 | D35: Jouets premier âge et préscolaire & accessoires | E35: Jouets éducatifs préscolaires
A36: 31 | B36: Jouets | C36: 205 | D36: Jouets premier âge et préscolaire & accessoires | E36: Mobiles
A37: 31 | B37: Jouets | C37: 205 | D37: Jouets premier âge et préscolaire & accessoires | E37: Peluches pour nourrissons
A38: 31 | B38: Jouets | C38: 206 | D38: Véhicules miniatures & accessoires | E38: Avions/Bateaux non motorisés
A39: 31 | B39: Jouets | C39: 206 | D39: Véhicules miniatures & accessoires | E39: Camions non motorisés
A40: 31 | B40: Jouets | C40: 206 | D40: Véhicules miniatures & accessoires | E40: Figurines véhicules
A41: 31 | B41: Jouets | C41: 206 | D41: Véhicules miniatures & accessoires | E41: Mini véhicules
A42: 31 | B42: Jouets | C42: 206 | D42: Véhicules miniatures & accessoires | E42: Univers de jeu pour véhicules & accessoires
A43: 31 | B43: Jouets | C43: 206 | D43: Véhicules miniatures & accessoires | E43: Véhicules à friction
A44: 31 | B44: Jouets | C44: 206 | D44: Véhicules miniatures & accessoires | E44: Véhicules à jouer avec les doigts & accessoires
A45: 31 | B45: Jouets | C45: 206 | D45: Véhicules miniatures & accessoires | E45: Voitures non motorisées
A46: 31 | B46: Jouets | C46: 207 | D46: Arts créatifs & accessoires | E46: Canevas à diamanter
A47: 31 | B47: Jouets | C47: 207 | D47: Arts créatifs & accessoires | E47: Kits créatifs "mallette de bricolage"
A48: 31 | B48: Jouets | C48: 207 | D48: Arts créatifs & accessoires | E48: Kits matériels de sculpture
A49: 31 | B49: Jouets | C49: 207 | D49: Arts créatifs & accessoires | E49: Articles à modeler
A50: 31 | B50: Jouets | C50: 207 | D50: Arts créatifs & accessoires | E50: Jeux gustatifs
A51: 31 | B51: Jouets | C51: 207 | D51: Arts créatifs & accessoires | E51: Ateliers d'écriture
A52: 31 | B52: Jouets | C52: 207 | D52: Arts créatifs & accessoires | E52: Tableaux de sequins
A53: 31 | B53: Jouets | C53: 208 | D53: Jouets d'exploration et autres jouets & accessoires | E53: Ballons de baudruches
A54: 31 | B54: Jouets | C54: 208 | D54: Jouets d'exploration et autres jouets & accessoires | E54: Cartes/Vignettes à collectionner (hors jeux de stratégie)
A55: 31 | B55: Jouets | C55: 208 | D55: Jouets d'exploration et autres jouets & accessoires | E55: Costumes enfants (- de 14 ans)
A56: 31 | B56: Jouets | C56: 208 | D56: Jouets d'exploration et autres jouets & accessoires | E56: Décors et figurines
A57: 31 | B57: Jouets | C57: 208 | D57: Jouets d'exploration et autres jouets & accessoires | E57: Ensembles cosmétique
A58: 31 | B58: Jouets | C58: 208 | D58: Jouets d'exploration et autres jouets & accessoires | E58: Farces et attrapes
A59: 31 | B59: Jouets | C59: 208 | D59: Jouets d'exploration et autres jouets & accessoires | E59: Instruments de musique
A60: 31 | B60: Jouets | C60: 208 | D60: Jouets d'exploration et autres jouets & accessoires | E60: Jeux de magie
A61: 31 | B61: Jouets | C61: 208 | D61: Jouets d'exploration et autres jouets & accessoires | E61: Jeux scientifiques
A62: 31 | B62: Jouets | C62: 208 | D62: Jouets d'exploration et autres jouets & accessoires | E62: Jouets de chimistes
A63: 32 | B63: Jeux de plein air | C63: 209 | D63: Jouets porteurs à pédales & accessoires | E63: Bicyclettes jouets
A64: 32 | B64: Jeux de plein air | C64: 209 | D64: Jouets porteurs à pédales & accessoires | E64: Tricycles jouets
A65: 32 | B65: Jeux de plein air | C65: 210 | D65: Jouets porteurs sans pédales & accessoires | E65: Autres jouets porteurs
A66: 32 | B66: Jeux de plein air | C66: 210 | D66: Jouets porteurs sans pédales & accessoires | E66: Planches à roulette enfants (enfants -20kg)
A67: 32 | B67: Jeux de plein air | C67: 210 | D67: Jouets porteurs sans pédales & accessoires | E67: Trottinettes jouets
A68: 32 | B68: Jeux de plein air | C68: 211 | D68: Jouets sportifs & accessoires | E68: Babyfoots jouets
A69: 32 | B69: Jeux de plein air | C69: 211 | D69: Jouets sportifs & accessoires | E69: Jouets armes factices et accessoires
A70: 32 | B70: Jeux de plein air | C70: 211 | D70: Jouets sportifs & accessoires | E70: Echasses et ballons sauteurs
A71: 32 | B71: Jeux de plein air | C71: 211 | D71: Jouets sportifs & accessoires | E71: Jeux d'imitation de sport d'extérieur
A72: 32 | B72: Jeux de plein air | C72: 211 | D72: Jouets sportifs & accessoires | E72: Jouets de sports d'hivers (pelles à neige…)
A73: 32 | B73: Jeux de plein air | C73: 212 | D73: Jouet d'été & accessoires | E73: Pataugettes couvertes par la Directive Jouets
A74: 32 | B74: Jeux de plein air | C74: 212 | D74: Jouet d'été & accessoires | E74: Jeux d'eau et de plage – Jouets aquatiques
A75: 32 | B75: Jeux de plein air | C75: 212 | D75: Jouet d'été & accessoires | E75: Pistolets à eau
A76: 32 | B76: Jeux de plein air | C76: 213 | D76: Jouets d'activité à usage famillial | E76: Maisons
A77: 33 | B77: Jeux de plein air | C77: 213 | D77: Jouets d'activité à usage famillial | E77: Portiques / Trampolines jouets / Toboggans
A78: 33 | B78: Jeux de société | C78: 214 | D78: Jeux de société & accessoires (directive jouet) | E78: Autres jeux de sociétés
A79: 33 | B79: Jeux de société | C79: 214 | D79: Jeux de société & accessoires (directive jouet) | E79: Casse-têtes
A80: 33 | B80: Jeux de société | C80: 214 | D80: Jeux de société & accessoires (directive jouet) | E80: Jeux de cartes
A81: 33 | B81: Jeux de société | C81: 214 | D81: Jeux de société & accessoires (directive jouet) | E81: Jeux de cartes stratégiques
A82: 33 | B82: Jeux de société | C82: 214 | D82: Jeux de société & accessoires (directive jouet) | E82: Jeux de dés/mots/autres pour la famille
A83: 33 | B83: Jeux de société | C83: 214 | D83: Jeux de société & accessoires (directive jouet) | E83: Jeux de plateau/d'action pour la famille
A84: 33 | B84: Jeux de société | C84: 214 | D84: Jeux de société & accessoires (directive jouet) | E84: Jeux de stratégie
A85: 33 | B85: Jeux de société | C85: 214 | D85: Jeux de société & accessoires (directive jouet) | E85: Jeux de stratégie pour la famille
A86: 33 | B86: Jeux de société | C86: 214 | D86: Jeux de société & accessoires (directive jouet) | E86: Jeux de voyage
A87: 33 | B87: Jeux de société | C87: 214 | D87: Jeux de société & accessoires (directive jouet) | E87: Jeux préscolaires
A88: 33 | B88: Jeux de société | C88: 214 | D88: Jeux de société & accessoires (directive jouet) | E88: Jeux standards pour la famille
A89: 33 | B89: Jeux de société | C89: 215 | D89: Jeux de société & accessoires (hors directive jouet) | E89: Jeux de société adulte
A90: 33 | B90: Jeux de société | C90: 216 | D90: Puzzles & accessoires (directive jouet) | E90: Puzzles 500 pièces max
A91: 33 | B91: Jeux de société | C91: 217 | D91: Puzzles & accessoires (hors directive jouet) | E91: Puzzles plus de 500 pièces
A92: 33 | B92: Jeux de société | C92: 218 | D92: Maquettes & accessoires (directive jouet) | E92: Maquettes pour les moins de 14 ans
A93: 33 | B93: Jeux de société | C93: 219 | D93: Maquettes & accessoires (hors directive jouet) | E93: Maquettes pour les plus de 14 ans
A94: 34 | B94: Jouets cadeaux | C94: 220 | D94: Jouets cadeau & accessoires | E94: Jouets cadeau
